Workbook

Sheet Data_Main (hidden)
B4: Year | C4: 2019 | D4: Enter
B5: Year_Long | C5: =m_year&"/"&m_year+1 -> 2019/2020 | D5: Calculated
B6: Year_Short | C6: =RIGHT(m_year,2)&"/"&RIGHT(m_year,2)+1 -> 19/20 | D6: Calculated
B9: MODEL VERSION | C9: 4
B11: show_disclaimer | C11: TRUE | D11: Calculated

Sheet Data_Sheets (hidden)
B10: Sheet | C10: State(show to keep sheet visible or blank to hide)
B11: Data_Main
B12: Data_Sheets
B13: DV_TABLES
B14: Instructions | C14: Show
B15: Main | C15: Show
B16: Summary | C16: Show
B17: Prime Lambs Input
B18: Prime Lambs
B19: Prime Lambs Merino Ewes Input
B20: Prime Lambs Merino Ewes
B21: Lamb Trading Input
B22: Lamb Trading
B23: GM_INFO
B24: Merino SR Input
B25: Merino SR
B26: Wethers Input
B27: Wethers
B28: Cleanskin Sheep Input
B29: Cleanskin Sheep
B30: Beef Input
B31: Beef
B32: Beef Trading Input
B33: Beef Trading
B34: Beef Feed Lot Input
B35: Beef Feed Lot

Sheet DV_TABLES (hidden)

Sheet Instructions
B7: ="Livestock Farm Gross Margin Guide -"&TEXT(m_year,"0000") -> Livestock Farm Gross Margin Guide -2019
B8: This spreadsheet can take a few moments to load
B9: PLEASE NOTE:THIS VERSION WILL ONLY WORK WITH EXCEL VERSIONS 2007 & ABOVE FOR WINDOWS ONLY. It will not work with Excel for Mac, Ipad, Android, tablets etc.
B11: Before You Start
B12: Before you start you will need to enable macros.
B13: This may appear as a Security Warning at the top of your page. To do this, click on “Enable Content”.
B14: Clicking “Enable Content” allows you to enter data into the Excel Worksheet.
B22: You may also see a message about "PROTECTED VIEW". Please click "Enable Editing".
B29: Yellow cells = data entry (some yellow cells contain formulas, these usually represent default
B30: values but may be over written. To revert back to the default value formula click the blue 'Reset…'
B31: link next to the cell.
B32: Blue cells contain formulas, are protected and can not be overwritten.
B46: Before you begin in the Main sheet please select the Livestock types you will be using:
B76: For technical support or to report errors/omissions regarding this spreadsheet please
B77: email Barry Mudge at:
C78: theoaks5@bigpond.com

Sheet Main
C3: ="FARM GROSS MARGIN GUIDE - "&TEXT(m_year,"0000") -> FARM GROSS MARGIN GUIDE - 2019 | G3: ="Version-"&TEXT(MODEL_VERSION,"0.0") -> Version-4.0
C6: by clicking checkboxes or All or None buttons
B7: FALSE | C7: Prime Lambs 1st Cross Ewes
B8: FALSE | C8: Prime Lambs Merino Ewes
B9: FALSE | C9: Lamb Trading High Rainfall
B10: FALSE | C10: Merino SR
B11: FALSE | C11: Wethers
B12: FALSE | C12: Cleanskin Sheep
B13: FALSE | C13: Beef
B14: FALSE | C14: Beef Trading
B15: FALSE | C15: Beef Feed Lot

Sheet Summary
B2: ="GROSS MARGINS SUMMARY - "&TEXT(m_year,"0000") -> GROSS MARGINS SUMMARY - 2019
D4: Gross Margin
B5: Type | C5: No of head
B6: Prime Lambs 1st Cross Ewes | C6: ='Prime Lambs Input'!E7*rng_Prime_Lambs_DATA -> 0 | D6: ='Prime Lambs'!Q174*rng_Prime_Lambs_DATA -> 0 | E6: ='Prime Lambs'!Q172*rng_Prime_Lambs_DATA -> 0 | F6: ='Prime Lambs'!Q37*rng_Prime_Lambs_DATA -> 0 | G6: ='Prime Lambs'!Q170*rng_Prime_Lambs_DATA -> 0
B7: Prime Lambs Merino Ewes | C7: ='Prime Lambs Merino Ewes Input'!E7*rng_Prime_LambsMerino_DATA -> 0 | D7: ='Prime Lambs Merino Ewes'!Q174*rng_Prime_LambsMerino_DATA -> 0 | E7: ='Prime Lambs Merino Ewes'!Q172*rng_Prime_LambsMerino_DATA -> 0 | F7: ='Prime Lambs Merino Ewes'!Q37*rng_Prime_LambsMerino_DATA -> 0 | G7: ='Prime Lambs Merino Ewes'!Q170*rng_Prime_LambsMerino_DATA -> 0
B8: Lamb Trading High Rainfall | C8: ='Lamb Trading Input'!E7*rng_Lambtrading_DATA -> 0 | D8: ='Lamb Trading'!Q174*rng_Lambtrading_DATA -> 0 | E8: ='Lamb Trading'!Q172*rng_Lambtrading_DATA -> 0 | F8: ='Lamb Trading'!Q37*rng_Lambtrading_DATA -> 0 | G8: ='Lamb Trading'!Q170*rng_Lambtrading_DATA -> 0
B9: Merino SR | C9: ='Merino SR Input'!E8*rng_Merino_SR_DATA -> 0 | D9: ='Merino SR'!Q174*rng_Merino_SR_DATA -> 0 | E9: ='Merino SR'!Q172*rng_Merino_SR_DATA -> 0 | F9: ='Merino SR'!Q37*rng_Merino_SR_DATA -> 0 | G9: ='Merino SR'!Q170*rng_Merino_SR_DATA -> 0
B10: Wethers | C10: ='Wethers Input'!E7*rng_Whethers_DATA -> 0 | D10: =Wethers!Q7*rng_Whethers_DATA -> 0 | E10: =Wethers!Q172*rng_Whethers_DATA -> 0 | F10: =Wethers!Q37*rng_Whethers_DATA -> 0 | G10: =Wethers!Q170*rng_Whethers_DATA -> 0
B11: Cleanskin Sheep | C11: ='Cleanskin Sheep Input'!E7*rng_Cleanskin_Sheep_DATA -> 0 | D11: ='Cleanskin Sheep'!Q174*rng_Cleanskin_Sheep_DATA -> 0 | E11: ='Cleanskin Sheep'!Q172*rng_Cleanskin_Sheep_DATA -> 0 | F11: ='Cleanskin Sheep'!Q37*rng_Cleanskin_Sheep_DATA -> 0 | G11: ='Cleanskin Sheep'!Q170*rng_Cleanskin_Sheep_DATA -> 0
B12: Beef | C12: ='Beef Input'!E15*rng_Beef_DATA -> 0 | D12: =Beef!Q174*rng_Beef_DATA -> 0 | E12: =Beef!Q172*rng_Beef_DATA -> 0 | F12: =Beef!Q41*rng_Beef_DATA -> 0 | G12: =Beef!Q170*rng_Beef_DATA -> 0
B13: Beef Trading | C13: ='Beef Trading Input'!E10*rng_Beeftrading_DATA -> 0
B14: Beef Feed Lot | C14: =100*rng_Beeffeedlot_DATA -> 0 | D14: ='Beef Feed Lot'!Q172*rng_Beeffeedlot_DATA -> 0 | E14: =C14*D14*rng_Beeffeedlot_DATA -> 0 | F14: ='Beef Feed Lot'!Q41*C14*rng_Beeffeedlot_DATA -> 0 | G14: ='Beef Feed Lot'!Q170*C14*rng_Beeffeedlot_DATA -> 0
B15: TOTAL | E15: =SUM(E6:E14) -> 0 | F15: =SUM(F6:F14) -> 0 | G15: =SUM(G6:G14) -> 0

Sheet Prime Lambs Input (hidden)
C1: Prime Lambs (1st cross ewes)
C2: =UPPER(var_animal)&" GROSS MARGIN - "&TEXT(m_year,"0000") -> PRIME LAMBS (1ST CROSS EWES) GROSS MARGIN - 2019
C4: GENERAL INFORMATION
C5: This represents a First Cross Ewe enterprise (Merino X Border Liecester) mated to a terminal sire. All ewe replacements are purchased, but age of replacements can be varied from 1.5 years to 4.5 years. Following are the various assumptions used in the calculation of the Gross Margin. Cells with yellow highlight can be changed. No allowance has been made for pasture expenses such as seed, fertiliser and chemicals. Refer to pasture gross margins in the “Cropping Gross Margin Plan” for annual and perennial pasture costs. Use the livestock gross margin per DSE as income for the pasture gross margin.
C7: Ewes mated | E7: 1000
C8: Age ewes purchased | E8: 1.5
C9: Age ewes sold | E9: 6.5
C10: Av Weaning % | E10: 1.15
C11: Ram percentage | E11: 0.02
C12: Years Rams Kept | E12: 3
C13: Flock death Rate | E13: 0.03
C14: % Lambs carried over | E14: 0
C17: LIVESTOCK SALES | E17: Price/Hd | F17: Number | G17: Total
C18: c.f.a Ewes | E18: 120 | F18: ='Prime Lambs'!AG220 -> 182.3653636 | G18: =E18*ROUND(F18,0) -> 21840
C19: c.f.a Rams | E19: 80 | F19: ='Prime Lambs'!AG238 -> 6.270727266 | G19: =E19*ROUND(F19,0) -> 480
C20: Lambs | E20: 165 | F20: ='Prime Lambs'!AG227 -> 1150 | G20: =E20*ROUND(F20,0) -> 189750
C25: TOTAL SALES | F25: =SUM(F18:F23) -> 1338.636091 | G25: =SUM(G18:G23) -> 212070
C28: LIVESTOCK PURCHASES | E28: Price/Hd | F28: Number | G28: Total
C29: Ewes | E29: 300 | F29: ='Prime Lambs'!AD220 -> 212.3653636 | G29: =E29*F29 -> 63709.60909
C30: Rams | E30: 1500 | F30: ='Prime Lambs'!AD238 -> 6.870727266 | G30: =E30*F30 -> 10306.0909
C32: TOTAL PURCHASES | F32: =SUM(F29:F30) -> 219.2360909 | G32: =SUM(G29:G30) -> 74015.69999
C35: WOOL PRICE (cents/kg) | F35: =TEXT(m_year-3,"0000")&" Average (Clean)" -> 2016 Average (Clean) | G35: =TEXT(m_year-2,"0000")&" Average (Clean)" -> 2017 Average (Clean) | H35: =TEXT(m_year-1,"0000")&" Average (Clean)" -> 2018 Average (Clean) | I35: Budget Base (Clean) | J35: Budget Base (Greasy)
E36: Wool- High Rainfall 28 mic 70% yield | F36: 867 | G36: 774 | H36: 756 | I36: 750 | J36: 525
C37: Allow 90% to account for lower value of bellies, skirtings etc. | J37: =J36*0.9 -> 472.5
C41: WOOL SALES - SHEARING | F41: Wool Cut
E42: Number | F42: kg/hd | G42: Price | H42: Total
C43: Ewes | E43: ='Prime Lambs'!E226 -> 970 | F43: 3.5 | G43: 5.499 | H43: =E43*F43*G43 -> 18669.105
C44: Crossbred Rams | E44: ='Prime Lambs'!E227 -> 19.4 | F44: 2.5 | G44: 2.55 | H44: =E44*F44*G44 -> 123.675
C46: TOTAL | E46: =SUM(E43:E45) -> 989.4 | F46: =(E43*F43)+(E44*F44) -> 3443.5 | H46: =SUM(H43:H45) -> 18792.78
C49: STOCK HEALTH REQUIREMENTS
G50: Number of times
E51: Number | F51: Drench | G51: Vacc. | H51: Blowfly
C52: Ewes | E52: ='Prime Lambs'!E219 -> 1000 | F52: 2 | G52: 1 | H52: 1
C53: Rams | E53: ='Prime Lambs'!E220 -> 20 | F53: 2 | G53: 1 | H53: 0
C54: Lambs | E54: ='Prime Lambs'!E221 -> 1150 | F54: 1 | G54: 2 | H54: 0
C56: TOTAL | E56: =SUM(E52:E54) -> 2170 | F56: =SUMPRODUCT($E$52:$E$54,F52:F54) -> 3190 | G56: =SUMPRODUCT($E$52:$E$54,G52:G54) -> 3320 | H56: 1000
C59: FEEDING
C60: HAY | F60: Hay | G60: Kgs Fed | H60: No Weeks | I60: Total
E61: Number | F61: Cost ($/T) | G61: per Week | H61: of Feeding | I61: Cost ($)
C62: Ewes | E62: ='Prime Lambs'!E219 -> 1000 | F62: 260 | G62: 2.5 | H62: 8 | I62: =(H62*G62*E62)/1000*F62 -> 5200
C63: Rams | E63: ='Prime Lambs'!E220 -> 20 | F63: 260 | G63: 2.5 | H63: 8 | I63: 104
C64: Lambs | E64: ='Prime Lambs'!E221 -> 1150 | F64: 260 | I64: 0
C66: GRAIN | F66: Grain | G66: Kgs Fed | H66: No weeks | I66: Total
E67: Number | F67: Cost ($/T) | G67: per week | H67: of Feeding | I67: Cost ($)
C68: Ewes | E68: ='Prime Lambs'!E219 -> 1000 | F68: 320 | G68: 3 | H68: 8 | I68: =(H68*G68*E68)/1000*F68 -> 7680
C69: Rams | E69: ='Prime Lambs'!E220 -> 20 | F69: 320 | G69: 3 | H69: 10 | I69: 192
C70: Lambs | E70: ='Prime Lambs'!E221 -> 1150 | I70: 0
H72: Total Feed Cost | I72: =SUM(I62:I64,I68:I70) -> 13176

Sheet Prime Lambs (hidden)
C1: Prime Lambs (1st cross ewes)
C2: =UPPER(Var_Animal)&" GROSS MARGIN - "&TEXT(m_year,"0000") -> PRIME LAMBS (1ST CROSS EWES) GROSS MARGIN - 2019
C4: ASSUMPTIONS
C6: Ave Breeding Ewe Fibre Diameter | E6: 28 | O6: Total DSE's | Q6: =E197 -> 1840
C7: No. of breeding ewes (1st Cross) | E7: ='Prime Lambs Input'!$E$7 -> 1000
C8: 1st cross ewe - Terminal meat sire
C32: INCOME | Q32: $
C34: Wool (kg greasy) | E34: =G234 -> 3443.5 | G34: kg | I34: av price | K34: =K234*100/G234 -> 545.7464789 | M34: c/kg | Q34: =K234 -> 18792.78
C35: Sales | E35: =E212 -> 1338.636091 | G35: animals | I35: av price | K35: =G212 -> 158.4224431 | M35: /head | Q35: =E212*G212 -> 212070
C37: Gross Income | Q37: =SUM(Q34:Q35) -> 230862.78
AA45: STOCK VALUE AND D.S.E REQUIREMENT | AG45: Non lamb related expenses | AM45: Lamb Costs | AN45: No: | AO45: per head | AS45: SHEEP GROSS MARGIN
C46: VARIABLE COSTS | AC46: Value | AD46: Ave Live | AE46: DSE | AS46: PRIME LAMB -
C47: Shearing | K47: Rate | AB47: Number | AC47: $/head | AD47: Wt (Kgs) | AE47: rating | AG47: Shearing | AJ47: =SUM(Q48:Q58) -> 8758.70928 | AM47: Marking | AN47: =$E$121 -> 1150 | AO47: =K76+K77 -> 1.58 | AP47: =AN47*AO47 -> 1817
C48: Shearing | E48: =E226 -> 970 | G48: sheep | I48: Reset Rate> | J48: =GM_INFO!C30 | K48: =GM_INFO!C30 -> 310.77 | M48: /100 | Q48: =K48/100*ROUND(E48,0) -> 3014.469 | AA48: ewes | AB48: ='Prime Lambs Input'!$E$7 -> 1000 | AC48: =(G209+G214)/2 -> 210 | AD48: 60 | AE48: =IF(AND(AD48>=55,AD48<60),1.7,IF(AND(AD48>=60,AD48<65),1.8,IF(AND(AD48>=65,AD48<70),1.9,IF(AND(AD48>=70,AD48<75),2,IF(AND(AD48>=75,AD48<80),2.1,IF(AND(AD48>=80,AD48<85),2.2,IF(AND(AD48>=85,AD48<90),2.3,IF(AD48>=90,2.4,0)))))))) -> 1.8 | AG48: Animal health | AJ48: =(E219*G219+E220*G220)*K90+(E219*I219+E220*I220)*K91+(E219*K219)*K92 -> 2998.56 | AM48: Animal health | AN48: 1150 | AO48: =G220*K91+I220*K90 -> 1.256 | AP48: =AN48*AO48 -> 1444.4
C49: (Federal awards) | E49: =E227 -> 19.4 | G49: rams | I49: Reset Rate> | J49: =GM_INFO!C31 | K49: =GM_INFO!C31 -> 621.54 | M49: /100 | Q49: 118.0926 | AA49: rams | AB49: ='Prime Lambs Input'!E11*'Prime Lambs'!AB48 -> 20 | AC49: =(G210+G215)/2 -> 790 | AD49: 100 | AE49: 2 | AG49: Stock Purchase | AJ49: =SUM(Q105:Q105) -> 74015.69999 | AM49: Freight | AN49: 1150 | AO49: =K121 -> 4 | AP49: =AN49*AO49 -> 4600
C50: Shed labour | E50: 5 | G50: days | I50: Reset Rate> | J50: =GM_INFO!C32 | K50: =GM_INFO!C32 -> 234.8 | M50: /day | Q50: =K50*ROUND(E50,0) -> 1174 | AA50: lambs | AB50: =AC227 -> 1150 | AC50: =G211/2 -> 82.5 | AD50: 35 | AE50: 0 | AG50: Freight | AH50: sheep | AJ50: =SUM(Q119:Q120) -> 1605.461454 | AM50: Yard Fees | AN50: 1150 | AO50: =K125 -> 0.85 | AP50: =AN50*AO50 -> 977.5
C51: Woolclasser | E51: 2.5 | G51: days | I51: Reset Rate> | J51: =GM_INFO!C33 | K51: =GM_INFO!C33 -> 297.79 | M51: /day | Q51: =K51*E51 -> 744.475 | AA51: TOTAL | AB51: =SUM(AB48:AB50) -> 2170 | AC51: =AB48*AC48+AB49*AC49+AB50*AC50/2 -> 273237.5 | AH51: Wool | AJ51: =Q122 -> 300 | AM51: Levies | AN51: 1150 | AO51: =K127+K128 -> 2.05 | AP51: =AN51*AO51 -> 2357.5 | AS51: Ewes mated | AU51: ='Prime Lambs Input'!$E$7 -> 1000 | AX51: Ram % | AY51: =E200 -> 0.02
C52: Superannuation (on ord wages only) | I52: Reset Rate> | J52: =GM_INFO!C34 | K52: =GM_INFO!C34 -> 0.095 | M52: wages | Q52: =(Q48+Q49+Q50+Q51)*K52 -> 479.848477 | AG52: Commission on livestock sales | AJ52: =(K209+K210)*K124 -> 1339.2 | AO52: =SUM(AO47:AO51) -> 9.736 | AQ52: =AO52*AD50 -> 340.76 | AS52: Age ewes purchased | AU52: =E201 -> 1.5 | AX52: Price of rams | AY52: =AL68 -> 0
C53: W/Cover (incl. super + otime etc) | I53: Reset Rate> | J53: =GM_INFO!C35 | K53: =GM_INFO!C35 -> 0.04 | M53: total | Q53: =(Q48+Q49+Q50+Q51+Q52)*K53 -> 221.2354031 | AG53: Yard fees | AJ53: =E119*K125 -> 160.3406773 | AM53: Commission | AN53: =$E$121 -> 1150 | AO53: =G212 -> 158.4224431 | AP53: =K124 -> 0.06 | AQ53: =AD50*AO53*AP53 -> 332.6871306 | AS53: Age ewes sold | AU53: =E202 -> 6.5 | AX53: Years rams kept | AY53: =E203 -> 3
C54: Wool packs | E54: =E122 -> 20.25588235 | G54: packs | I54: Reset Rate> | J54: =GM_INFO!C28 | K54: =GM_INFO!C28 -> 11.2 | M54: /pack | Q54: =K54*ROUND(E54,0) -> 224 | AG54: Levies | AJ54: =E126*(K126+K128) -> 141.4770682 | AS54: Av Weaning % | AU54: ='Prime Lambs Input'!E10 -> 1.15 | AX54: Age wethers sold | AY54: 0.5
C55: Shed sundries | E55: =E48+E49 -> 989.4 | G55: sheep | I55: Reset Rate> | J55: =GM_INFO!C36 | K55: =GM_INFO!C36 -> 0.2 | M55: /head | Q55: 197.8 | AG55: Wool Selling Charges | AJ55: =Q130+Q131 -> 1211.6367 | AQ55: =SUM(AQ43:AQ53) -> 673.4471306 | AS55: dse/ewe | AU55: =AE48 -> 1.8 | AX55: Flock death rate | AY55: =E204 -> 0.03
C56: Lice control | E56: =E48+E49 -> 989.4 | G56: sheep | I56: Reset Rate> | J56: =GM_INFO!C19 | K56: =GM_INFO!C19 -> 1.6768 | M56: /head | Q56: 1658.3552 | AG56: Feed & other costs | AJ56: =SUM(Q144:Q149) -> 19610.475
C57: Crutch & Wig | E57: 990 | G57: ewes | I57: Reset Rate> | J57: =GM_INFO!C38 | K57: =GM_INFO!C38 -> 90.12 | M57: /100 | Q57: =K57/100*ROUND(E57,0) -> 892.188 | AK57: =SUM(AJ47:AJ56) -> 110141.5602
E58: =E49 -> 19.4 | G58: rams | I58: Reset Rate> | J58: =GM_INFO!C39 | K58: =GM_INFO!C39 -> 180.24 | M58: /100 | Q58: 34.2456
AS60: EWES | AT60: OPENING | AU60: NATURAL | AV60: PURCHASES | AW60: DEATHS | AX60: % sold | AY60: SALES | AZ60: CLOSING
AS61: AGE | AT61: NUMBERS | AU61: INCREASE | AX61: culled | AZ61: NUMBERS
AS63: 0.5-1.5yr | AV63: =IF($N$78=1.5,AT64,AT63-AW63) -> 0 | AY63: =AT63-AW63 -> 0 | AZ63: =AT63+AU63+AV63-AW63-AY63 -> 0
AS64: 1.5-2.5yr | AT64: =IF(AU52=1.5,AU51/(1+(1-AY55)*(1-AX64)*(1+(1-AY55)*(1-AX65)*(1+(1-AY55)*(1-AX66)*(1+(1-AY55)*(1-AX67))))),0) -> 212.3653636 | AV64: =IF(AU52=2.5,AT65-AY64,0) -> 0 | AW64: =AT64*$R$81 -> 0 | AY64: =(AT64-AW64)*AX64 -> 0 | AZ64: 212.3653636
AS65: 2.5-3.5yr | AT65: =IF(AU52=2.5,AU51/(1+(1-AY55)*(1-AX65)*(1+(1-AY55)*(1-AX66)*(1+(1-AY55)*(1-AX67)))),AZ64) -> 212.3653636 | AV65: =IF(AU52=3.5,AT66-AY65,0) -> 0 | AW65: =AT65*$R$81 -> 0 | AY65: =(AT65-AW65)*AX65 -> 0 | AZ65: 212.3653636
AS66: 3.5-4.5yr | AT66: =IF(AU52=3.5,AU51/(1+(1-AY55)*(1-AX66)*(1+(1-AY55)*(1-AX67))),AZ65) -> 212.3653636 | AV66: =IF(AU52=4.5,AT67-AY66,0) -> 0 | AW66: =AT66*$R$81 -> 0 | AY66: =(AT66-AW66)*AX66 -> 0 | AZ66: 212.3653636
AS67: 4.5-5.5yr | AT67: =IF(AU52=4.5,AU51/(1+(1-AY55)*(1-AX67)),AZ66) -> 212.3653636 | AW67: =AT67*$R$81 -> 0 | AX67: =IF(AU53=5.5,1,0) -> 0 | AY67: =(AT67-AW67)*AX67 -> 0 | AZ67: 212.3653636
AS68: 5.5-6.5yr | AT68: =AZ67 -> 212.3653636 | AW68: =AT68*$R$81 -> 0 | AX68: =IF(AU53=6.5,1,0) -> 1 | AY68: =(AT68-AW68)*AX68 -> 212.3653636 | AZ68: 0
AS69: Ewes | AT69: =SUM(AT64:AT68) -> 1061.826818 | AV69: =AV63+AV64+AV65+AV66 -> 0 | AW69: =SUM(AW63:AW68) -> 0 | AY69: =SUM(AY64:AY68) -> 212.3653636 | AZ69: =SUM(AZ63:AZ67) -> 849.4614545
AS70: d.s.e's | AT70: =AT63+AT69*AU55 -> 1911.288273
AS73: LAMBS | AT73: OPENING | AU73: NATURAL | AV73: PURCHASES | AW73: DEATHS | AX73: % sold | AY73: SALES | AZ73: CLOSING
AS74: AGE | AT74: NUMBERS | AU74: INCREASE | AX74: culled | AZ74: NUMBERS
C75: Marking
C76: Lamb marking | E76: =AC227 -> 1150 | G76: lambs | I76: Reset Rate> | J76: =GM_INFO!C42 | K76: =GM_INFO!C42 -> 1.15 | M76: /head | Q76: =K76*ROUND(E76,0) -> 1322.5 | AS76: 0-0.5yr | AU76: =AU51*AU54 -> 1150 | AX76: 1 | AY76: =AU76*AX76 -> 1150 | AZ76: =AT76+AU76+AV76-AW76-AY76 -> 0
C77: Ear tags | E77: =AC227 -> 1150 | G77: lambs | I77: Reset Rate> | J77: =GM_INFO!C43 | K77: =GM_INFO!C43 -> 0.43 | M77: /head | Q77: 494.5
AS79: RAMS | AT79: OPENING | AU79: NATURAL | AV79: PURCHASES | AW79: DEATHS | AX79: % sold | AY79: SALES | AZ79: CLOSING
AS80: AGE | AT80: NUMBERS | AU80: INCREASE | AX80: culled | AZ80: NUMBERS
AS82: 0.5-1.5yr | AV82: =AT83/(1-AX82) -> 6.870727266 | AW82: =AT82*$R$81 -> 0 | AZ82: =AT82+AU82+AV82-AW82-AY82 -> 6.870727266
AS83: 1.5-2.5yr | AT83: =IF(AY53=3,(AU51*AY51)/(1+(1-AY55)*(1-AX83)*(1+(1-AY55)*(1-AX84)*(1+(1-AY55)*(1-AX85)))),IF(AY53=4,(AU51*AY51)/(1+(1-AY55)*(1-AX83)*(1+(1-AY55)*(1-AX84)*(1+(1-AY55)*(1-AX85)*(1+(1-AY55)*(1-AX86))))),0)) -> 6.870727266 | AW83: =AT83*$R$81 -> 0 | AZ83: =AT83+AU83+AV83-AW83-AY83 -> 6.870727266
AS84: 2.5-3.5yr | AT84: =AZ83 -> 6.870727266 | AW84: =AT84*$R$81 -> 0 | AZ84: =AT84+AU84+AV84-AW84-AY84 -> 6.870727266
AS85: 3.5-4.5yr | AT85: =AZ84 -> 6.870727266 | AW85: =AT85*$R$81 -> 0 | AX85: =IF(AY53=3,100%,0) -> 1 | AY85: =(AT85-AW85)*AX85 -> 6.870727266 | AZ85: =AT85+AU85+AV85-AW85-AY85 -> 0
AS86: 4.5-5.5yr | AT86: =AZ85 -> 0 | AW86: =AT86*$R$81 -> 0 | AX86: =IF(AY53=4,100%,0) -> 0 | AY86: =AT86-AW86 -> 0 | AZ86: =AT86+AU86+AV86-AW86-AY86 -> 0
AT87: =AT82+AT83+AT84+AT85+AT86 -> 20.6121818 | AV87: =AV82+AV83+AV84+AV85+AV86 -> 6.870727266 | AW87: =AW82+AW83+AW84+AW85+AW86 -> 0 | AY87: =AY82+AY83+AY84+AY85+AY86 -> 6.870727266 | AZ87: =AZ82+AZ83+AZ84+AZ85+AZ86 -> 20.6121818
AS88: d.s.e's | AT88: =AT87*AE49 -> 41.2243636
C89: Animal Health
C90: Drench | E90: =G222 -> 3190 | G90: sheep | I90: Reset Rate> | J90: =GM_INFO!C21 | K90: =GM_INFO!C21 -> 0.6 | M90: /head | Q90: =K90*ROUND(E90,0) -> 1914
C91: Vaccinate | E91: =I222 -> 3320 | G91: sheep | I91: Reset Rate> | J91: =GM_INFO!C25 | K91: =GM_INFO!C25 -> 0.328 | M91: /head | Q91: 1088.96
C92: Blowfly control | E92: =K222 -> 1000 | G92: sheep | I92: Reset Rate> | J92: =GM_INFO!C27 | K92: =GM_INFO!C27 -> 1.44 | M92: /head | Q92: 1440
C104: Stock purchases
C105: Purchases | Q105: =K214+K215 -> 74015.69999
C117: Sale Costs
C118: Freight
C119: Livestock | E119: =SUM(E209:E210) -> 188.6360909 | G119: culls | I119: Reset Rate> | J119: =GM_INFO!B111 | K119: =GM_INFO!B111 -> 4 | M119: /head | Q119: =K119*ROUND(E119,0) -> 756
E120: =E214 -> 212.3653636 | G120: ewes | I120: Reset Rate> | J120: =GM_INFO!B112 | K120: =GM_INFO!B112 -> 4 | M120: /head | Q120: =K120*E120 -> 849.4614545
E121: =E211 -> 1150 | G121: prime lambs | I121: Reset Rate> | J121: =GM_INFO!B113 | K121: =GM_INFO!B113 -> 4 | M121: /head | Q121: 4600
C122: Wool | E122: =G234/170 -> 20.25588235 | G122: bales | I122: Reset Rate> | J122: =GM_INFO!B114 | K122: =GM_INFO!B114 -> 15 | M122: /bale | Q122: 300
C123: Stock selling charges
C124: Commission/insurance | I124: Reset Rate> | J124: =GM_INFO!C48 | K124: =GM_INFO!C48 -> 0.06 | M124: gross $ | Q124: =K124*Q35 -> 12724.2
C125: Yard fees | E125: =E212 -> 1338.636091 | G125: head | I125: Reset Rate> | J125: =GM_INFO!C49 | K125: =GM_INFO!C49 -> 0.85 | M125: /head | Q125: =K125*ROUND(E125,0) -> 1138.15
C126: Levy-sheep | E126: =E119 -> 188.6360909 | G126: head | I126: Reset Rate> | J126: =GM_INFO!C50 | K126: =GM_INFO!C50 -> 0.2 | M126: /head | Q126: 37.8
C127: Levy-lambs | E127: =E211 -> 1150 | G127: head | I127: Reset Rate> | J127: =GM_INFO!C51 | K127: =GM_INFO!C51 -> 1.5 | M127: /head | Q127: 1725
C128: SA sheep industry levy | E128: =E212 -> 1338.636091 | G128: head | I128: Reset Rate> | J128: =GM_INFO!C52 | K128: =GM_INFO!C52 -> 0.55 | M128: /head | Q128: 736.45
C129: Wool selling charges
C130: Brokerage/testing/insurance | I130: Reset Rate> | J130: =GM_INFO!C53 | K130: =GM_INFO!C53 -> 0.27 | M130: /kg | Q130: =K130*E34 -> 929.745
C131: Wool levy | I131: Reset Rate> | J131: =GM_INFO!C54 | K131: =GM_INFO!C54 -> 0.015 | M131: gross | Q131: =K131*Q34 -> 281.8917
C143: Feed and Other Costs
C144: Hay | Q144: =SUM('Prime Lambs Input'!I62:I64) -> 5304
C145: Grain | Q145: =SUM('Prime Lambs Input'!I68:I70) -> 7872
C146: Insurance | E146: =AC51 -> 273237.5 | G146: value | I146: Reset Rate> | J146: =GM_INFO!B107 | K146: =GM_INFO!B107 -> 2 | M146: /$'000 | Q146: =K146/1000*E146 -> 546.475
C147: Water | E147: =$Q$6 -> 1840 | G147: DSE's | I147: Reset Rate> | J147: =GM_INFO!D79 | K147: =GM_INFO!D79 -> 1.5 | M147: /DSE's | Q147: =K147*E147 -> 2760
C148: Veh Fuel, R&M | E148: 1840 | G148: DSE's | I148: Reset Rate> | J148: =GM_INFO!D80 | K148: =GM_INFO!D80 -> 1.2 | M148: /DSE's | Q148: 2208
C149: Other | E149: 1840 | G149: DSE's | I149: Reset Rate> | J149: =GM_INFO!D81 | K149: =GM_INFO!D81 -> 0.5 | M149: /DSE's | Q149: 920
C170: TOTAL VARIABLE COSTS | Q170: =SUM(Q48:Q166) -> 132723.5424
C172: GROSS MARGIN TOTAL | Q172: =Q37-Q170 -> 98139.23758
C174: GROSS MARGIN/DSE | Q174: =Q172/Q6 -> 53.33654216
C194: PRODUCTION DATA
C196: Stocking rate (DSE/Ha) | E196: 6 | K196: Culling Rate (% from each group) | AA196: SHEEP GROSS MARGIN
C197: Total DSE's | E197: =SUMPRODUCT(AB48:AB50,AE48:AE50) -> 1840 | K197: Age Group | M197: Ewes | O197: Wethers | AA197: PRIME LAMB -
C198: SHEEP GRAZING AREA | E198: =E197/E196 -> 306.6666667 | K198: 0.5 | M198: =AF214 -> 0
C199: Number of ewes mated | E199: ='Prime Lambs Input'!E7 -> 1000 | K199: 1.5 | M199: 0
C200: Ram percentage | E200: ='Prime Lambs Input'!E11 -> 0.02 | K200: 2.5 | M200: 0
C201: Age ewes bought (yrs) | E201: ='Prime Lambs Input'!E8 -> 1.5 | K201: 3.5 | M201: 0
C202: Age ewes culled | E202: ='Prime Lambs Input'!E9 -> 6.5 | K202: 4.5 | M202: 0 | AA202: Ewes mated | AC202: ='Prime Lambs Input'!E7 -> 1000 | AF202: Ram % | AG202: =E200 -> 0.02
B203: =VLOOKUP(r[0]c3&"No Ops",CHOOSE({1,2},tbl_ops[Name]&tbl_ops[Category],INDIRECT("tbl_ops["&var_crop&"]")),2,0) | C203: Years rams kept | E203: ='Prime Lambs Input'!E12 -> 3 | K203: 5.5 | M203: 1 | AA203: Age ewes purchased | AC203: =E201 -> 1.5 | AF203: Price of rams | AG203: =G215 -> 1500
B204: =VLOOKUP(r[0]c3&"No Ops",CHOOSE({1,2},tbl_ops[Name]&tbl_ops[Category],INDIRECT("tbl_ops["&var_crop&"]")),2,0) | C204: Flock death rate | E204: ='Prime Lambs Input'!E13 -> 0.03 | K204: 6.5 | M204: 0 | AA204: Age ewes sold | AC204: =E202 -> 6.5 | AF204: Years rams kept | AG204: =E203 -> 3
B205: =VLOOKUP(r[0]c3&"No Ops",CHOOSE({1,2},tbl_ops[Name]&tbl_ops[Category],INDIRECT("tbl_ops["&var_crop&"]")),2,0) | C205: Average weaning rate | E205: =AC205 -> 1.15 | AA205: Av Weaning % | AC205: ='Prime Lambs Input'!E10 -> 1.15 | AF205: Age wethers sold | AG205: 0.5
B206: =VLOOKUP(r[0]c3&"No Ops",CHOOSE({1,2},tbl_ops[Name]&tbl_ops[Category],INDIRECT("tbl_ops["&var_crop&"]")),2,0) | C206: % Lambs carried over | E206: 0 | AA206: dse/ewe | AC206: =AE48 -> 1.8 | AF206: Flock death rate | AG206: =E204 -> 0.03
B207: =VLOOKUP(r[0]c3&var_rain,CHOOSE({1,2},tbl_ops[Name]&tbl_ops[Rainfall],INDIRECT("tbl_ops["&var_crop&"]")),2,0)
B208: =VLOOKUP(r[0]c3&var_rain,CHOOSE({1,2},tbl_ops[Name]&tbl_ops[Rainfall],INDIRECT("tbl_ops["&var_crop&"]")),2,0) | C208: SALES | E208: Number | G208: Price/hd | I208: Age | K208: Total
B209: =VLOOKUP(r[0]c3&var_rain,CHOOSE({1,2},tbl_ops[Name]&tbl_ops[Rainfall],INDIRECT("tbl_ops["&var_crop&"]")),2,0) | C209: c.f.a ewes | E209: =AG220 -> 182.3653636 | G209: ='Prime Lambs Input'!E18 -> 120 | I209: =E202 -> 6.5 | K209: =ROUND(E209,0)*G209 -> 21840
B210: =VLOOKUP(r[0]c3&var_rain,CHOOSE({1,2},tbl_ops[Name]&tbl_ops[Rainfall],INDIRECT("tbl_ops["&var_crop&"]")),2,0) | C210: c.f.a rams | E210: =AG238 -> 6.270727266 | G210: ='Prime Lambs Input'!E19 -> 80 | I210: =E203+1.5 -> 4.5 | K210: 480
C211: Lambs | E211: =AG227 -> 1150 | G211: ='Prime Lambs Input'!E20 -> 165 | I211: 20 Weeks | K211: 189750 | AA211: EWES | AB211: OPENING | AC211: NATURAL | AD211: PURCHASES | AE211: DEATHS | AF211: % sold | AG211: SALES | AH211: CLOSING
C212: TOTAL | E212: =SUM(E209:E211) -> 1338.636091 | G212: =K212/E212 -> 158.4224431 | K212: =SUM(K209:K211) -> 212070 | AA212: AGE | AB212: NUMBERS | AC212: INCREASE | AF212: culled | AH212: NUMBERS
C213: PURCHASES | E213: Number | G213: Price/hd | I213: Age | K213: Total
C214: Ewes | E214: =AD220 -> 212.3653636 | G214: ='Prime Lambs Input'!E29 -> 300 | I214: =E201 -> 1.5 | K214: =E214*G214 -> 63709.60909 | AA214: 0.5-1.5yr | AD214: =IF(AC203=1.5,AB215,AB214-AE214) -> 212.3653636 | AG214: =AB214-AE214 -> 0 | AH214: =AB214+AC214+AD214-AE214-AG214 -> 212.3653636
C215: Rams | E215: =AD238 -> 6.870727266 | G215: ='Prime Lambs Input'!E30 -> 1500 | I215: 1.5 | K215: =E215*G215 -> 10306.0909 | AA215: 1.5-2.5yr | AB215: =IF(AC203=1.5,AC202/(1+(1-AG206)*(1-AF215)*(1+(1-AG206)*(1-AF216)*(1+(1-AG206)*(1-AF217)*(1+(1-AG206)*(1-AF218))))),0) -> 212.3653636 | AD215: =IF(AC203=2.5,AB216-AG215,0) -> 0 | AE215: =AB215*$AG$206 -> 6.370960909 | AG215: =(AB215-AE215)*AF215 -> 0 | AH215: 205.9944027
AA216: 2.5-3.5yr | AB216: =IF(AC203=2.5,AC202/(1+(1-AG206)*(1-AF216)*(1+(1-AG206)*(1-AF217)*(1+(1-AG206)*(1-AF218)))),AH215) -> 205.9944027 | AD216: =IF(AC203=3.5,AB217-AG216,0) -> 0 | AE216: 6.179832081 | AG216: =(AB216-AE216)*AF216 -> 0 | AH216: 199.8145706
E217: Number of Times | AA217: 3.5-4.5yr | AB217: =IF(AC203=3.5,AC202/(1+(1-AG206)*(1-AF217)*(1+(1-AG206)*(1-AF218))),AH216) -> 199.8145706 | AD217: =IF(AC203=4.5,AB218-AG217,0) -> 0 | AE217: 5.994437119 | AG217: =(AB217-AE217)*AF217 -> 0 | AH217: 193.8201335
C218: STOCK HEALTH REQUIREMENTS | E218: Number | G218: Drench | I218: Vacc. | K218: Blowfly | M218: DSE | AA218: 4.5-5.5yr | AB218: =IF(AC203=4.5,AC202/(1+(1-AG206)*(1-AF218)),AH217) -> 193.8201335 | AE218: 5.814604005 | AF218: =IF(AC204=5.5,1,0) -> 0 | AG218: =(AB218-AE218)*AF218 -> 0 | AH218: 188.0055295
C219: Ewes | E219: ='Prime Lambs Input'!E7 -> 1000 | G219: ='Prime Lambs Input'!F52 -> 2 | I219: ='Prime Lambs Input'!G52 -> 1 | K219: ='Prime Lambs Input'!H52 -> 1 | M219: 1.8 | AA219: 5.5-6.5yr | AB219: =AH218 -> 188.0055295 | AE219: 5.640165885 | AF219: =IF(AC204=6.5,1,0) -> 1 | AG219: =(AB219-AE219)*AF219 -> 182.3653636 | AH219: 0
C220: Rams | E220: =AB49 -> 20 | G220: ='Prime Lambs Input'!F53 -> 2 | I220: ='Prime Lambs Input'!G53 -> 1 | K220: ='Prime Lambs Input'!H53 -> 0 | M220: 2 | AA220: Ewes | AB220: =SUM(AB215:AB219) -> 1000 | AD220: =AD214+AD215+AD216+AD217 -> 212.3653636 | AE220: =SUM(AE214:AE219) -> 30 | AG220: =SUM(AG215:AG219) -> 182.3653636 | AH220: =SUM(AH214:AH218) -> 1000
C221: Lambs | E221: =AC227 -> 1150 | G221: ='Prime Lambs Input'!F54 -> 1 | I221: ='Prime Lambs Input'!G54 -> 2 | K221: ='Prime Lambs Input'!H54 -> 0 | AA221: d.s.e's | AB221: =AB214+AB220*AC206 -> 1800
C222: TOTAL | E222: =SUM(E219:E221) -> 2170 | G222: =SUMPRODUCT($E$219:$E$221,G219:G221) -> 3190 | I222: =SUMPRODUCT($E$219:$E$221,I219:I221) -> 3320 | K222: =SUMPRODUCT($E$219:$E$221,K219:K221) -> 1000 | M222: =SUMPRODUCT($E$219:$E$221,M219:M221) -> 1840
G224: Wool Cut kg/hd | AA224: LAMBS | AB224: OPENING | AC224: NATURAL | AD224: PURCHASES | AE224: DEATHS | AF224: % sold | AG224: SALES | AH224: CLOSING
C225: SHEARING | E225: Number | I225: Price | K225: Total | AA225: AGE | AB225: NUMBERS | AC225: INCREASE | AF225: culled | AH225: NUMBERS
C226: Ewes | E226: =AB220-AE220 -> 970 | G226: ='Prime Lambs Input'!F43 -> 3.5 | I226: ='Prime Lambs Input'!G43 -> 5.499 | K226: =I226*G226*E226 -> 18669.105
C227: Crossbred rams | E227: =AB238-AE238 -> 19.4 | G227: ='Prime Lambs Input'!F44 -> 2.5 | I227: ='Prime Lambs Input'!G44 -> 2.55 | K227: =I227*G227*E227 -> 123.675 | AA227: 0-0.5yr | AC227: =AC202*AC205 -> 1150 | AF227: 1 | AG227: =AC227*AF227 -> 1150 | AH227: =AB227+AC227+AD227-AE227-AG227 -> 0
AA230: RAMS | AB230: OPENING | AC230: NATURAL | AD230: PURCHASES | AE230: DEATHS | AF230: % sold | AG230: SALES | AH230: CLOSING
AA231: AGE | AB231: NUMBERS | AC231: INCREASE | AF231: culled | AH231: NUMBERS
AA233: 0.5-1.5yr | AD233: =AB234/(1-AF233) -> 6.870727266 | AE233: =AB233*$AG$206 -> 0 | AH233: =AB233+AC233+AD233-AE233-AG233 -> 6.870727266
C234: TOTAL | E234: =SUM(E226:E233) -> 989.4 | G234: =SUMPRODUCT(E226:E233,G226:G233) -> 3443.5 | K234: =SUM(K226:K233) -> 18792.78 | AA234: 1.5-2.5yr | AB234: =IF(AG204=3,(AC202*AG202)/(1+(1-AG206)*(1-AF234)*(1+(1-AG206)*(1-AF235)*(1+(1-AG206)*(1-AF236)))),IF(AG204=4,(AC202*AG202)/(1+(1-AG206)*(1-AF234)*(1+(1-AG206)*(1-AF235)*(1+(1-AG206)*(1-AF236)*(1+(1-AG206)*(1-AF237))))),0)) -> 6.870727266 | AE234: 0.206121818 | AH234: =AB234+AC234+AD234-AE234-AG234 -> 6.664605448
AA235: 2.5-3.5yr | AB235: =AH234 -> 6.664605448 | AE235: 0.1999381635 | AH235: =AB235+AC235+AD235-AE235-AG235 -> 6.464667285
AA236: 3.5-4.5yr | AB236: =AH235 -> 6.464667285 | AE236: 0.1939400186 | AF236: =IF(AG204=3,100%,0) -> 1 | AG236: =(AB236-AE236)*AF236 -> 6.270727266 | AH236: =AB236+AC236+AD236-AE236-AG236 -> 0
G237: Hay Cost ($/T) | I237: Kg Fed per Week | K237: No of Weeks Feeding | M237: Total Cost ($) | AA237: 4.5-5.5yr | AB237: =AH236 -> 0 | AE237: 0 | AF237: =IF(AG204=4,100%,0) -> 0 | AG237: =AB237-AE237 -> 0 | AH237: =AB237+AC237+AD237-AE237-AG237 -> 0
C238: FEEDING | E238: Number | AB238: =AB233+AB234+AB235+AB236+AB237 -> 20 | AD238: =AD233+AD234+AD235+AD236+AD237 -> 6.870727266 | AE238: =AE233+AE234+AE235+AE236+AE237 -> 0.6 | AG238: =AG233+AG234+AG235+AG236+AG237 -> 6.270727266 | AH238: =AH233+AH234+AH235+AH236+AH237 -> 20
C239: Ewes | E239: ='Prime Lambs Input'!E62 -> 1000 | G239: ='Prime Lambs Input'!F62 -> 260 | I239: ='Prime Lambs Input'!G62 -> 2.5 | K239: ='Prime Lambs Input'!H62 -> 8 | M239: =(E239*G239*I239*K239)/1000 -> 5200 | AA239: d.s.e's | AB239: =AB238*AE142 -> 0
C240: Rams | E240: ='Prime Lambs Input'!E63 -> 20 | G240: ='Prime Lambs Input'!F63 -> 260 | I240: ='Prime Lambs Input'!G63 -> 2.5 | K240: ='Prime Lambs Input'!H63 -> 8 | M240: 104
C241: Lambs | E241: ='Prime Lambs Input'!E64 -> 1150 | G241: ='Prime Lambs Input'!F64 -> 260 | I241: ='Prime Lambs Input'!G64 -> 0 | K241: ='Prime Lambs Input'!H64 -> 0 | M241: 0
G242: Grain Cost ($/T) | I242: Kg Fed per Week | K242: No of Weeks Feeding | M242: Total Cost ($)
E243: Number
C244: Ewes | E244: ='Prime Lambs Input'!E68 -> 1000 | G244: ='Prime Lambs Input'!F68 -> 320 | I244: ='Prime Lambs Input'!G68 -> 3 | K244: ='Prime Lambs Input'!H68 -> 8 | M244: =(E244*G244*I244*K244)/1000 -> 7680
C245: Rams | E245: ='Prime Lambs Input'!E69 -> 20 | G245: ='Prime Lambs Input'!F69 -> 320 | I245: ='Prime Lambs Input'!G69 -> 3 | K245: ='Prime Lambs Input'!H69 -> 10 | M245: 192
C246: Lambs | E246: ='Prime Lambs Input'!E70 -> 1150 | G246: ='Prime Lambs Input'!F70 -> 0 | I246: ='Prime Lambs Input'!G70 -> 0 | K246: ='Prime Lambs Input'!H70 -> 0 | M246: 0
C247: TOTAL FEED COST | M247: =SUM(M239:M241,M244:M246) -> 13176
C250: GM SENSITIVITY
C251: Gross Margin/DSE | E251: Average Weaning Rate
G252: 0.95 | I252: 1.05 | K252: 1.15 | M252: 1.25 | O252: 1.35 | Q252: 1.45
E253: 140 | G253: =($E$199*G$252*$E253*(1-$K$124)+SUM($K$209:$K$210)+$K$234-$AK$57-$E$199*G$252*$AO$52)/$E$197 -> 25.40327165 | I253: =($E$199*I$252*$E253*(1-$K$124)+SUM($K$209:$K$210)+$K$234-$AK$57-$E$199*I$252*$AO$52)/$E$197 -> 32.02631513 | K253: =($E$199*K$252*$E253*(1-$K$124)+SUM($K$209:$K$210)+$K$234-$AK$57-$E$199*K$252*$AO$52)/$E$197 -> 38.6493586 | M253: =($E$199*M$252*$E253*(1-$K$124)+SUM($K$209:$K$210)+$K$234-$AK$57-$E$199*M$252*$AO$52)/$E$197 -> 45.27240208 | O253: =($E$199*O$252*$E253*(1-$K$124)+SUM($K$209:$K$210)+$K$234-$AK$57-$E$199*O$252*$AO$52)/$E$197 -> 51.89544556 | Q253: =($E$199*Q$252*$E253*(1-$K$124)+SUM($K$209:$K$210)+$K$234-$AK$57-$E$199*Q$252*$AO$52)/$E$197 -> 58.51848904
E254: 145 | G254: 27.82990208 | I254: 34.70838034 | K254: 41.5868586 | M254: 48.46533687 | O254: 55.34381513 | Q254: 62.22229339
C255: Average Lamb Sale Price($/hd) | E255: 150 | G255: 30.25653252 | I255: 37.39044556 | K255: 44.5243586 | M255: 51.65827165 | O255: 58.79218469 | Q255: 65.92609774
E256: 155 | G256: 32.68316295 | I256: 40.07251078 | K256: 47.4618586 | M256: 54.85120643 | O256: 62.24055426 | Q256: 69.62990208
E257: 160 | G257: 35.10979339 | I257: 42.754576 | K257: 50.3993586 | M257: 58.04414121 | O257: 65.68892382 | Q257: 73.33370643
E258: 165 | G258: 37.53642382 | I258: 45.43664121 | K258: 53.3368586 | M258: 61.237076 | O258: 69.13729339 | Q258: 77.03751078
E259: 170 | G259: 39.96305426 | I259: 48.11870643 | K259: 56.2743586 | M259: 64.43001078 | O259: 72.58566295 | Q259: 80.74131513
E260: 175 | G260: 42.38968469 | I260: 50.80077165 | K260: 59.2118586 | M260: 67.62294556 | O260: 76.03403252 | Q260: 84.44511947
E261: 180 | G261: 44.81631513 | I261: 53.48283687 | K261: 62.1493586 | M261: 70.81588034 | O261: 79.48240208 | Q261: 88.14892382
E262: 185 | G262: 47.24294556 | I262: 56.16490208 | K262: 65.0868586 | M262: 74.00881513 | O262: 82.93077165 | Q262: 91.85272817
E263: 190 | G263: 49.669576 | I263: 58.8469673 | K263: 68.0243586 | M263: 77.20174991 | O263: 86.37914121 | Q263: 95.55653252

Sheet Prime Lambs Merino Ewes Input (hidden)
C1: Prime Lambs Merino Ewes
C2: =UPPER(var_animal)&" GROSS MARGIN - "&TEXT(m_year,"0000") -> PRIME LAMBS MERINO EWES GROSS MARGIN - 2019
C4: GENERAL INFORMATION
C5: This represents a Merino Ewe enterprise mated to a terminal sire. All ewe replacements are purchased, but age of replacements can be varied from 1.5 years to 4.5 years. NB. Can be bought from own self-replacing merino enterprise. Following are the various assumptions used in the calculation of the Gross Margin. Cells with yellow highlight can be changed. No allowance has been made for pasture expenses such as seed, fertiliser and chemicals. Refer to pasture gross margins in the “Cropping Gross Margin Plan” for annual and perennial pasture costs. Use the livestock gross margin per DSE as income for the pasture gross margin.
C7: Ewes mated | E7: 1000
C8: Age ewes purchased | E8: 1.5
C9: Age ewes sold | E9: 5.5
C10: Av Weaning % | E10: 0.95
C11: Ram percentage | E11: 0.025
C12: Years Rams Kept | E12: 3
C13: Flock death Rate | E13: 0.03
C14: % Lambs carried over | E14: 0
C17: LIVESTOCK SALES | E17: Price/Hd | F17: Number | G17: Total
C18: c.f.a Ewes | E18: 115 | F18: ='Prime Lambs Merino Ewes'!AG220 -> 231.53548 | G18: =E18*ROUND(F18,0) -> 26680
C19: c.f.a Rams | E19: 80 | F19: ='Prime Lambs Merino Ewes'!AG238 -> 7.838409083 | G19: =E19*ROUND(F19,0) -> 640
C20: Lambs | E20: 160 | F20: ='Prime Lambs Merino Ewes'!AG227 -> 950 | G20: =E20*ROUND(F20,0) -> 152000
C25: TOTAL SALES | F25: =SUM(F18:F23) -> 1189.373889 | G25: =SUM(G18:G23) -> 179320
C28: LIVESTOCK PURCHASES | E28: Price/Hd | F28: Number | G28: Total
C29: Ewes | E29: 240 | F29: ='Prime Lambs Merino Ewes'!AD220 -> 261.53548 | G29: =E29*F29 -> 62768.51521 | H29: Change Ewe price depending on
C30: Rams | E30: 1500 | F30: ='Prime Lambs Merino Ewes'!AD238 -> 8.588409083 | G30: =E30*F30 -> 12882.61362 | H30: age purchased.
C32: TOTAL PURCHASES | F32: =SUM(F29:F30) -> 270.1238891 | G32: =SUM(G29:G30) -> 75651.12883
C35: WOOL PRICE (cents/kg) | F35: =TEXT(m_year-3,"0000")&" Average (Clean)" -> 2016 Average (Clean) | G35: =TEXT(m_year-2,"0000")&" Average (Clean)" -> 2017 Average (Clean) | H35: =TEXT(m_year-1,"0000")&" Average (Clean)" -> 2018 Average (Clean) | I35: Budget Base (Clean) | J35: Budget Base (Greasy)
E36: Wool- High Rainfall 21 mic 68% yield | F36: 1278 | G36: 1533 | H36: 2085 | I36: 2020 | J36: 1374
C41: WOOL SALES - SHEARING | F41: Wool Cut
E42: Number | F42: kg/hd | G42: Price | H42: Total
C43: Ewes | E43: ='Prime Lambs Merino Ewes'!E226 -> 970 | F43: 6.5 | G43: =J36/100 -> 13.74 | H43: =E43*F43*G43 -> 86630.7
C44: Crossbred Rams | E44: ='Prime Lambs Merino Ewes'!E227 -> 24.25 | F44: 3 | G44: =GM_INFO!F98/100 -> 2.83 | H44: =E44*F44*G44 -> 205.8825
C46: TOTAL | E46: =SUM(E43:E45) -> 994.25 | F46: =(E43*F43)+(E44*F44) -> 6377.75 | H46: =SUM(H43:H45) -> 86836.5825
C49: STOCK HEALTH REQUIREMENTS
G50: Number of times
E51: Number | F51: Drench | G51: Vacc. | H51: Blowfly
C52: Ewes | E52: ='Prime Lambs Merino Ewes'!E219 -> 1000 | F52: 1 | G52: 1 | H52: 1
C53: Rams | E53: ='Prime Lambs Merino Ewes'!E220 -> 25 | F53: 2 | G53: 1 | H53: 0
C54: Lambs | E54: ='Prime Lambs Merino Ewes'!E221 -> 950 | F54: 1 | G54: 2 | H54: 0
C56: TOTAL | E56: =SUM(E52:E54) -> 1975 | F56: =SUMPRODUCT($E$52:$E$54,F52:F54) -> 2000 | G56: =SUMPRODUCT($E$52:$E$54,G52:G54) -> 2925 | H56: 1000
C59: FEEDING
C60: HAY | F60: Hay | G60: Kgs Fed | H60: No Weeks | I60: Total
E61: Number | F61: Cost ($/T) | G61: per Week | H61: of Feeding | I61: Cost ($)
C62: Ewes | E62: ='Prime Lambs Merino Ewes'!E219 -> 1000 | F62: 260 | G62: 2.5 | H62: 8 | I62: =(H62*G62*E62)/1000*F62 -> 5200
C63: Rams | E63: ='Prime Lambs Merino Ewes'!E220 -> 25 | F63: 260 | G63: 2.5 | H63: 8 | I63: 130
C64: Lambs | E64: ='Prime Lambs Merino Ewes'!E221 -> 950 | F64: 260 | I64: 0
C66: GRAIN | F66: Grain | G66: Kgs Fed | H66: No weeks | I66: Total
E67: Number | F67: Cost ($/T) | G67: per week | H67: of Feeding | I67: Cost ($)
C68: Ewes | E68: ='Prime Lambs Merino Ewes'!E219 -> 1000 | F68: 320 | G68: 3 | H68: 8 | I68: =(H68*G68*E68)/1000*F68 -> 7680
C69: Rams | E69: ='Prime Lambs Merino Ewes'!E220 -> 25 | F69: 320 | G69: 3 | H69: 10 | I69: 240
C70: Lambs | E70: ='Prime Lambs Merino Ewes'!E221 -> 950 | I70: 0
H72: Total Feed Cost | I72: =SUM(I62:I64,I68:I70) -> 13250

Sheet Prime Lambs Merino Ewes (hidden)
C1: Prime Lambs Merino Ewes
C2: =UPPER(Var_Animal)&" GROSS MARGIN - "&TEXT(m_year,"0000") -> PRIME LAMBS MERINO EWES GROSS MARGIN - 2019
C4: ASSUMPTIONS
C6: Ave Breeding Ewe Fibre Diameter | E6: 21 | O6: Total DSE's | Q6: =E197 -> 1850
C7: No. of breeding ewes (1st Cross) | E7: ='Prime Lambs Merino Ewes Input'!$E$7 -> 1000
C8: 1st cross ewe - Terminal meat sire
C32: INCOME | Q32: $
C34: Wool (kg greasy) | E34: =G234 -> 6377.75 | G34: kg | I34: av price | K34: =K234*100/G234 -> 1361.555133 | M34: c/kg | Q34: =K234 -> 86836.5825
C35: Sales | E35: =E212 -> 1189.373889 | G35: animals | I35: av price | K35: =G212 -> 150.7684015 | M35: /head | Q35: =E212*G212 -> 179320
C37: Gross Income | Q37: =SUM(Q34:Q35) -> 266156.5825
AA45: STOCK VALUE AND D.S.E REQUIREMENT | AG45: Non lamb related expenses | AM45: Lamb Costs | AN45: No: | AO45: per head | AS45: SHEEP GROSS MARGIN
C46: VARIABLE COSTS | AC46: Value | AD46: Ave Live | AE46: DSE | AS46: PRIME LAMB -
C47: Shearing | K47: Rate | AB47: Number | AC47: $/head | AD47: Wt (Kgs) | AE47: rating | AG47: Shearing | AJ47: =SUM(Q48:Q58) -> 8996.972968 | AM47: Marking | AN47: =$E$121 -> 950 | AO47: =K76+K77 -> 1.58 | AP47: =AN47*AO47 -> 1501
C48: Shearing | E48: =E226 -> 970 | G48: sheep | I48: Reset Rate> | J48: =GM_INFO!C30 | K48: =GM_INFO!C30 -> 310.77 | M48: /100 | Q48: =K48/100*ROUND(E48,0) -> 3014.469 | AA48: ewes | AB48: ='Prime Lambs Merino Ewes Input'!$E$7 -> 1000 | AC48: =(G209+G214)/2 -> 177.5 | AD48: 55 | AE48: =IF(AND(AD48>=55,AD48<60),1.8,IF(AND(AD48>=60,AD48<65),2.5,IF(AND(AD48>=65,AD48<70),1.9,IF(AND(AD48>=70,AD48<75),2,IF(AND(AD48>=75,AD48<80),2.1,IF(AND(AD48>=80,AD48<85),2.2,IF(AND(AD48>=85,AD48<90),2.3,IF(AD48>=90,2.4,0)))))))) -> 1.8 | AG48: Animal health | AJ48: =(E219*G219+E220*G220)*K90+(E219*I219+E220*I220)*K91+(E219*K219)*K92 -> 2340.6 | AM48: Animal health | AN48: 950 | AO48: =G220*K91+I220*K90 -> 1.128 | AP48: =AN48*AO48 -> 1071.6
C49: (Federal awards) | E49: =E227 -> 24.25 | G49: rams | I49: Reset Rate> | J49: =GM_INFO!C31 | K49: =GM_INFO!C31 -> 621.54 | M49: /100 | Q49: 149.1696 | AA49: rams | AB49: ='Prime Lambs Merino Ewes Input'!E11*'Prime Lambs Merino Ewes'!AB48 -> 25 | AC49: =(G210+G215)/2 -> 790 | AD49: 100 | AE49: 2 | AG49: Stock Purchase | AJ49: =SUM(Q105:Q105) -> 75651.12883 | AM49: Freight | AN49: 950 | AO49: =K121 -> 4 | AP49: =AN49*AO49 -> 3800
C50: Shed labour | E50: 5 | G50: days | I50: Reset Rate> | J50: =GM_INFO!C32 | K50: =GM_INFO!C32 -> 234.8 | M50: /day | Q50: =K50*ROUND(E50,0) -> 1174 | AA50: lambs | AB50: =AC227 -> 950 | AC50: =G211/2 -> 80 | AD50: 35 | AE50: 0 | AG50: Freight | AH50: sheep | AJ50: =SUM(Q119:Q120) -> 2002.14192 | AM50: Yard Fees | AN50: 950 | AO50: =K125 -> 0.85 | AP50: =AN50*AO50 -> 807.5
C51: Woolclasser | E51: 2.5 | G51: days | I51: Reset Rate> | J51: =GM_INFO!C33 | K51: =GM_INFO!C33 -> 297.79 | M51: /day | Q51: =K51*E51 -> 744.475 | AA51: TOTAL | AB51: =SUM(AB48:AB50) -> 1975 | AC51: =AB48*AC48+AB49*AC49+AB50*AC50/2 -> 235250 | AH51: Wool | AJ51: =Q122 -> 570 | AM51: Levies | AN51: 950 | AO51: =K127+K128 -> 2.05 | AP51: =AN51*AO51 -> 1947.5 | AS51: Ewes mated | AU51: ='Prime Lambs Merino Ewes Input'!$E$7 -> 1000 | AX51: Ram % | AY51: =E200 -> 0.025
C52: Superannuation (on ord wages only) | I52: Reset Rate> | J52: =GM_INFO!C34 | K52: =GM_INFO!C34 -> 0.095 | M52: wages | Q52: =(Q48+Q49+Q50+Q51)*K52 -> 482.800792 | AG52: Commission on livestock sales | AJ52: =(K209+K210)*K124 -> 1639.2 | AO52: =SUM(AO47:AO51) -> 9.608 | AQ52: =AO52*AD50 -> 336.28 | AS52: Age ewes purchased | AU52: =E201 -> 1.5 | AX52: Price of rams | AY52: =AL68 -> 0
C53: W/Cover (incl. super + otime etc) | I53: Reset Rate> | J53: =GM_INFO!C35 | K53: =GM_INFO!C35 -> 0.04 | M53: total | Q53: =(Q48+Q49+Q50+Q51+Q52)*K53 -> 222.5965757 | AG53: Yard fees | AJ53: =E119*K125 -> 203.4678057 | AM53: Commission | AN53: =$E$121 -> 950 | AO53: =G212 -> 150.7684015 | AP53: =K124 -> 0.06 | AQ53: =AD50*AO53*AP53 -> 316.6136431 | AS53: Age ewes sold | AU53: =E202 -> 5.5 | AX53: Years rams kept | AY53: =E203 -> 3
C54: Wool packs | E54: =E122 -> 37.51617647 | G54: packs | I54: Reset Rate> | J54: =GM_INFO!C28 | K54: =GM_INFO!C28 -> 11.2 | M54: /pack | Q54: =K54*ROUND(E54,0) -> 425.6 | AG54: Levies | AJ54: =E126*(K126+K128) -> 179.5304168 | AS54: Av Weaning % | AU54: ='Prime Lambs Merino Ewes Input'!E10 -> 0.95 | AX54: Age wethers sold | AY54: 0.5
C55: Shed sundries | E55: =E48+E49 -> 994.25 | G55: sheep | I55: Reset Rate> | J55: =GM_INFO!C36 | K55: =GM_INFO!C36 -> 0.2 | M55: /head | Q55: 198.8 | AG55: Wool Selling Charges | AJ55: =Q130+Q131 -> 3024.541238 | AQ55: =SUM(AQ43:AQ53) -> 652.8936431 | AS55: dse/ewe | AU55: =AE48 -> 1.8 | AX55: Flock death rate | AY55: =E204 -> 0.03
C56: Lice control | E56: =E48+E49 -> 994.25 | G56: sheep | I56: Reset Rate> | J56: =GM_INFO!C19 | K56: =GM_INFO!C19 -> 1.6768 | M56: /head | Q56: 1666.7392 | AG56: Feed & other costs | AJ56: =SUM(Q144:Q149) -> 21490.5
C57: Crutch & Wig | E57: =E48+2*E49 -> 1018.5 | G57: ewes | I57: Reset Rate> | J57: =GM_INFO!C38 | K57: =GM_INFO!C38 -> 90.12 | M57: /100 | Q57: =K57/100*ROUND(E57,0) -> 918.3228 | AK57: =SUM(AJ47:AJ56) -> 116098.0832
E58: 0 | G58: lambs | I58: Reset Rate> | J58: =GM_INFO!C38 | K58: =GM_INFO!C38 -> 90.12 | M58: /100 | Q58: 0
AS60: EWES | AT60: OPENING | AU60: NATURAL | AV60: PURCHASES | AW60: DEATHS | AX60: % sold | AY60: SALES | AZ60: CLOSING
AS61: AGE | AT61: NUMBERS | AU61: INCREASE | AX61: culled | AZ61: NUMBERS
AS63: 0.5-1.5yr | AV63: =IF($N$78=1.5,AT64,AT63-AW63) -> 0 | AY63: =AT63-AW63 -> 0 | AZ63: =AT63+AU63+AV63-AW63-AY63 -> 0
AS64: 1.5-2.5yr | AT64: =IF(AU52=1.5,AU51/(1+(1-AY55)*(1-AX64)*(1+(1-AY55)*(1-AX65)*(1+(1-AY55)*(1-AX66)*(1+(1-AY55)*(1-AX67))))),0) -> 261.53548 | AV64: =IF(AU52=2.5,AT65-AY64,0) -> 0 | AW64: =AT64*$R$81 -> 0 | AY64: =(AT64-AW64)*AX64 -> 0 | AZ64: 261.53548
AS65: 2.5-3.5yr | AT65: =IF(AU52=2.5,AU51/(1+(1-AY55)*(1-AX65)*(1+(1-AY55)*(1-AX66)*(1+(1-AY55)*(1-AX67)))),AZ64) -> 261.53548 | AV65: =IF(AU52=3.5,AT66-AY65,0) -> 0 | AW65: =AT65*$R$81 -> 0 | AY65: =(AT65-AW65)*AX65 -> 0 | AZ65: 261.53548
AS66: 3.5-4.5yr | AT66: =IF(AU52=3.5,AU51/(1+(1-AY55)*(1-AX66)*(1+(1-AY55)*(1-AX67))),AZ65) -> 261.53548 | AV66: =IF(AU52=4.5,AT67-AY66,0) -> 0 | AW66: =AT66*$R$81 -> 0 | AY66: =(AT66-AW66)*AX66 -> 0 | AZ66: 261.53548
AS67: 4.5-5.5yr | AT67: =IF(AU52=4.5,AU51/(1+(1-AY55)*(1-AX67)),AZ66) -> 261.53548 | AW67: =AT67*$R$81 -> 0 | AX67: =IF(AU53=5.5,1,0) -> 1 | AY67: =(AT67-AW67)*AX67 -> 261.53548 | AZ67: 0
AS68: 5.5-6.5yr | AT68: =AZ67 -> 0 | AW68: =AT68*$R$81 -> 0 | AX68: =IF(AU53=6.5,1,0) -> 0 | AY68: =(AT68-AW68)*AX68 -> 0 | AZ68: 0
AS69: Ewes | AT69: =SUM(AT64:AT68) -> 1046.14192 | AV69: =AV63+AV64+AV65+AV66 -> 0 | AW69: =SUM(AW63:AW68) -> 0 | AY69: =SUM(AY64:AY68) -> 261.53548 | AZ69: =SUM(AZ63:AZ67) -> 784.6064401
AS70: d.s.e's | AT70: =AT63+AT69*AU55 -> 1883.055456
AS73: LAMBS | AT73: OPENING | AU73: NATURAL | AV73: PURCHASES | AW73: DEATHS | AX73: % sold | AY73: SALES | AZ73: CLOSING
AS74: AGE | AT74: NUMBERS | AU74: INCREASE | AX74: culled | AZ74: NUMBERS
C75: Marking
C76: Lamb marking | E76: =AC227 -> 950 | G76: lambs | I76: Reset Rate> | J76: =GM_INFO!C42 | K76: =GM_INFO!C42 -> 1.15 | M76: /head | Q76: =K76*ROUND(E76,0) -> 1092.5 | AS76: 0-0.5yr | AU76: =AU51*AU54 -> 950 | AX76: 1 | AY76: =AU76*AX76 -> 950 | AZ76: =AT76+AU76+AV76-AW76-AY76 -> 0
C77: Ear tags | E77: =AC227 -> 950 | G77: lambs | I77: Reset Rate> | J77: =GM_INFO!C43 | K77: =GM_INFO!C43 -> 0.43 | M77: /head | Q77: 408.5
AS79: RAMS | AT79: OPENING | AU79: NATURAL | AV79: PURCHASES | AW79: DEATHS | AX79: % sold | AY79: SALES | AZ79: CLOSING
AS80: AGE | AT80: NUMBERS | AU80: INCREASE | AX80: culled | AZ80: NUMBERS
AS82: 0.5-1.5yr | AV82: =AT83/(1-AX82) -> 8.588409083 | AW82: =AT82*$R$81 -> 0 | AZ82: =AT82+AU82+AV82-AW82-AY82 -> 8.588409083
AS83: 1.5-2.5yr | AT83: =IF(AY53=3,(AU51*AY51)/(1+(1-AY55)*(1-AX83)*(1+(1-AY55)*(1-AX84)*(1+(1-AY55)*(1-AX85)))),IF(AY53=4,(AU51*AY51)/(1+(1-AY55)*(1-AX83)*(1+(1-AY55)*(1-AX84)*(1+(1-AY55)*(1-AX85)*(1+(1-AY55)*(1-AX86))))),0)) -> 8.588409083 | AW83: =AT83*$R$81 -> 0 | AZ83: =AT83+AU83+AV83-AW83-AY83 -> 8.588409083
AS84: 2.5-3.5yr | AT84: =AZ83 -> 8.588409083 | AW84: =AT84*$R$81 -> 0 | AZ84: =AT84+AU84+AV84-AW84-AY84 -> 8.588409083
AS85: 3.5-4.5yr | AT85: =AZ84 -> 8.588409083 | AW85: =AT85*$R$81 -> 0 | AX85: =IF(AY53=3,100%,0) -> 1 | AY85: =(AT85-AW85)*AX85 -> 8.588409083 | AZ85: =AT85+AU85+AV85-AW85-AY85 -> 0
AS86: 4.5-5.5yr | AT86: =AZ85 -> 0 | AW86: =AT86*$R$81 -> 0 | AX86: =IF(AY53=4,100%,0) -> 0 | AY86: =AT86-AW86 -> 0 | AZ86: =AT86+AU86+AV86-AW86-AY86 -> 0
AT87: =AT82+AT83+AT84+AT85+AT86 -> 25.76522725 | AV87: =AV82+AV83+AV84+AV85+AV86 -> 8.588409083 | AW87: =AW82+AW83+AW84+AW85+AW86 -> 0 | AY87: =AY82+AY83+AY84+AY85+AY86 -> 8.588409083 | AZ87: =AZ82+AZ83+AZ84+AZ85+AZ86 -> 25.76522725
AS88: d.s.e's | AT88: =AT87*AE49 -> 51.5304545
C89: Animal Health
C90: Drench | E90: =G222 -> 2000 | G90: sheep | I90: Reset Rate> | J90: =GM_INFO!C21 | K90: =GM_INFO!C21 -> 0.6 | M90: /head | Q90: =K90*ROUND(E90,0) -> 1200
C91: Vaccinate | E91: =I222 -> 2925 | G91: sheep | I91: Reset Rate> | J91: =GM_INFO!C25 | K91: =GM_INFO!C23 -> 0.264 | M91: /head | Q91: 772.2
C92: Blowfly control | E92: =K222 -> 1000 | G92: sheep | I92: Reset Rate> | J92: =GM_INFO!C27 | K92: =GM_INFO!C27 -> 1.44 | M92: /head | Q92: 1440
C104: Stock purchases
C105: Purchases | Q105: =K214+K215 -> 75651.12883
C117: Sale Costs
C118: Freight
C119: Livestock | E119: =SUM(E209:E210) -> 239.3738891 | G119: culls | I119: Reset Rate> | J119: =GM_INFO!B111 | K119: =GM_INFO!B111 -> 4 | M119: /head | Q119: =K119*ROUND(E119,0) -> 956
E120: =E214 -> 261.53548 | G120: ewes | I120: Reset Rate> | J120: =GM_INFO!B112 | K120: =GM_INFO!B112 -> 4 | M120: /head | Q120: =K120*E120 -> 1046.14192
E121: =E211 -> 950 | G121: prime lambs | I121: Reset Rate> | J121: =GM_INFO!B113 | K121: =GM_INFO!B113 -> 4 | M121: /head | Q121: 3800
C122: Wool | E122: =G234/170 -> 37.51617647 | G122: bales | I122: Reset Rate> | J122: =GM_INFO!B114 | K122: =GM_INFO!B114 -> 15 | M122: /bale | Q122: 570
C123: Stock selling charges
C124: Commission/insurance | I124: Reset Rate> | J124: =GM_INFO!C48 | K124: =GM_INFO!C48 -> 0.06 | M124: gross $ | Q124: =K124*Q35 -> 10759.2
C125: Yard fees | E125: =E212 -> 1189.373889 | G125: head | I125: Reset Rate> | J125: =GM_INFO!C49 | K125: =GM_INFO!C49 -> 0.85 | M125: /head | Q125: =K125*ROUND(E125,0) -> 1010.65
C126: Levy-sheep | E126: =E119 -> 239.3738891 | G126: head | I126: Reset Rate> | J126: =GM_INFO!C50 | K126: =GM_INFO!C50 -> 0.2 | M126: /head | Q126: 47.8
C127: Levy-lambs | E127: =E211 -> 950 | G127: head | I127: Reset Rate> | J127: =GM_INFO!C51 | K127: =GM_INFO!C51 -> 1.5 | M127: /head | Q127: 1425
C128: SA sheep industry levy | E128: =E212 -> 1189.373889 | G128: head | I128: Reset Rate> | J128: =GM_INFO!C52 | K128: =GM_INFO!C52 -> 0.55 | M128: /head | Q128: 653.95
C129: Wool selling charges
C130: Brokerage/testing/insurance | I130: Reset Rate> | J130: =GM_INFO!C53 | K130: =GM_INFO!C53 -> 0.27 | M130: /kg | Q130: =K130*E34 -> 1721.9925
C131: Wool levy | I131: Reset Rate> | J131: =GM_INFO!C54 | K131: =GM_INFO!C54 -> 0.015 | M131: gross | Q131: =K131*Q34 -> 1302.548738
C143: Feed and Other Costs
C144: Hay | Q144: =SUM('Prime Lambs Merino Ewes Input'!I62:I64) -> 5330
C145: Grain | Q145: =SUM('Prime Lambs Merino Ewes Input'!I68:I70) -> 7920
C146: Insurance | E146: =AC51 -> 235250 | G146: value | I146: Reset Rate> | J146: =GM_INFO!B107 | K146: =GM_INFO!B107 -> 2 | M146: /$'000 | Q146: =K146/1000*E146 -> 470.5
C147: Water | E147: =$Q$6 -> 1850 | G147: DSE's | I147: Reset Rate> | J147: =GM_INFO!D79 | K147: =GM_INFO!E79 -> 2.5 | M147: /DSE's | Q147: =K147*E147 -> 4625
C148: Veh Fuel, R&M | E148: 1850 | G148: DSE's | I148: Reset Rate> | J148: =GM_INFO!D80 | K148: =GM_INFO!E80 -> 1.2 | M148: /DSE's | Q148: 2220
C149: Other | E149: 1850 | G149: DSE's | I149: Reset Rate> | J149: =GM_INFO!D81 | K149: =GM_INFO!E81 -> 0.5 | M149: /DSE's | Q149: 925
C170: TOTAL VARIABLE COSTS | Q170: =SUM(Q48:Q166) -> 134345.085
C172: GROSS MARGIN TOTAL | Q172: =Q37-Q170 -> 131811.4975
C174: GROSS MARGIN/DSE | Q174: =Q172/Q6 -> 71.24945813
C194: PRODUCTION DATA
C196: Stocking rate (DSE/Ha) | E196: 6 | K196: Culling Rate (% from each group) | AA196: SHEEP GROSS MARGIN
C197: Total DSE's | E197: =SUMPRODUCT(AB48:AB50,AE48:AE50) -> 1850 | K197: Age Group | M197: Ewes | O197: Wethers | AA197: PRIME LAMB -
C198: SHEEP GRAZING AREA | E198: =E197/E196 -> 308.3333333 | K198: 0.5 | M198: =AF214 -> 0
C199: Number of ewes mated | E199: ='Prime Lambs Merino Ewes Input'!E7 -> 1000 | K199: 1.5 | M199: 0
C200: Ram percentage | E200: ='Prime Lambs Merino Ewes Input'!E11 -> 0.025 | K200: 2.5 | M200: 0
C201: Age ewes bought (yrs) | E201: ='Prime Lambs Merino Ewes Input'!E8 -> 1.5 | K201: 3.5 | M201: 0
C202: Age ewes culled | E202: ='Prime Lambs Merino Ewes Input'!E9 -> 5.5 | K202: 4.5 | M202: 1 | AA202: Ewes mated | AC202: ='Prime Lambs Merino Ewes Input'!E7 -> 1000 | AF202: Ram % | AG202: =E200 -> 0.025
B203: =VLOOKUP(r[0]c3&"No Ops",CHOOSE({1,2},tbl_ops[Name]&tbl_ops[Category],INDIRECT("tbl_ops["&var_crop&"]")),2,0) | C203: Years rams kept | E203: ='Prime Lambs Merino Ewes Input'!E12 -> 3 | K203: 5.5 | M203: 0 | AA203: Age ewes purchased | AC203: =E201 -> 1.5 | AF203: Price of rams | AG203: =G215 -> 1500
B204: =VLOOKUP(r[0]c3&"No Ops",CHOOSE({1,2},tbl_ops[Name]&tbl_ops[Category],INDIRECT("tbl_ops["&var_crop&"]")),2,0) | C204: Flock death rate | E204: ='Prime Lambs Merino Ewes Input'!E13 -> 0.03 | K204: 6.5 | M204: 0 | AA204: Age ewes sold | AC204: =E202 -> 5.5 | AF204: Years rams kept | AG204: =E203 -> 3
B205: =VLOOKUP(r[0]c3&"No Ops",CHOOSE({1,2},tbl_ops[Name]&tbl_ops[Category],INDIRECT("tbl_ops["&var_crop&"]")),2,0) | C205: Average weaning rate | E205: =AC205 -> 0.95 | AA205: Av Weaning % | AC205: ='Prime Lambs Merino Ewes Input'!E10 -> 0.95 | AF205: Age wethers sold | AG205: 0.5
B206: =VLOOKUP(r[0]c3&"No Ops",CHOOSE({1,2},tbl_ops[Name]&tbl_ops[Category],INDIRECT("tbl_ops["&var_crop&"]")),2,0) | C206: % Lambs carried over | E206: 0 | AA206: dse/ewe | AC206: =AE48 -> 1.8 | AF206: Flock death rate | AG206: =E204 -> 0.03
B207: =VLOOKUP(r[0]c3&var_rain,CHOOSE({1,2},tbl_ops[Name]&tbl_ops[Rainfall],INDIRECT("tbl_ops["&var_crop&"]")),2,0)
B208: =VLOOKUP(r[0]c3&var_rain,CHOOSE({1,2},tbl_ops[Name]&tbl_ops[Rainfall],INDIRECT("tbl_ops["&var_crop&"]")),2,0) | C208: SALES | E208: Number | G208: Price/hd | I208: Age | K208: Total
B209: =VLOOKUP(r[0]c3&var_rain,CHOOSE({1,2},tbl_ops[Name]&tbl_ops[Rainfall],INDIRECT("tbl_ops["&var_crop&"]")),2,0) | C209: c.f.a ewes | E209: =AG220 -> 231.53548 | G209: ='Prime Lambs Merino Ewes Input'!E18 -> 115 | I209: =E202 -> 5.5 | K209: =ROUND(E209,0)*G209 -> 26680
B210: =VLOOKUP(r[0]c3&var_rain,CHOOSE({1,2},tbl_ops[Name]&tbl_ops[Rainfall],INDIRECT("tbl_ops["&var_crop&"]")),2,0) | C210: c.f.a rams | E210: =AG238 -> 7.838409083 | G210: ='Prime Lambs Merino Ewes Input'!E19 -> 80 | I210: =E203+1.5 -> 4.5 | K210: 640
C211: Lambs | E211: =AG227 -> 950 | G211: ='Prime Lambs Merino Ewes Input'!E20 -> 160 | I211: 20 Weeks | K211: 152000 | AA211: EWES | AB211: OPENING | AC211: NATURAL | AD211: PURCHASES | AE211: DEATHS | AF211: % sold | AG211: SALES | AH211: CLOSING
C212: TOTAL | E212: =SUM(E209:E211) -> 1189.373889 | G212: =K212/E212 -> 150.7684015 | K212: =SUM(K209:K211) -> 179320 | AA212: AGE | AB212: NUMBERS | AC212: INCREASE | AF212: culled | AH212: NUMBERS
C213: PURCHASES | E213: Number | G213: Price/hd | I213: Age | K213: Total
C214: Ewes | E214: =AD220 -> 261.53548 | G214: ='Prime Lambs Merino Ewes Input'!E29 -> 240 | I214: =E201 -> 1.5 | K214: =E214*G214 -> 62768.51521 | AA214: 0.5-1.5yr | AD214: =IF(AC203=1.5,AB215,AB214-AE214) -> 261.53548 | AG214: =AB214-AE214 -> 0 | AH214: =AB214+AC214+AD214-AE214-AG214 -> 261.53548
C215: Rams | E215: =AD238 -> 8.588409083 | G215: ='Prime Lambs Merino Ewes Input'!E30 -> 1500 | I215: 1.5 | K215: =E215*G215 -> 12882.61362 | AA215: 1.5-2.5yr | AB215: =IF(AC203=1.5,AC202/(1+(1-AG206)*(1-AF215)*(1+(1-AG206)*(1-AF216)*(1+(1-AG206)*(1-AF217)*(1+(1-AG206)*(1-AF218))))),0) -> 261.53548 | AD215: =IF(AC203=2.5,AB216-AG215,0) -> 0 | AE215: =AB215*$AG$206 -> 7.846064401 | AG215: =(AB215-AE215)*AF215 -> 0 | AH215: 253.6894156
AA216: 2.5-3.5yr | AB216: =IF(AC203=2.5,AC202/(1+(1-AG206)*(1-AF216)*(1+(1-AG206)*(1-AF217)*(1+(1-AG206)*(1-AF218)))),AH215) -> 253.6894156 | AD216: =IF(AC203=3.5,AB217-AG216,0) -> 0 | AE216: 7.610682469 | AG216: =(AB216-AE216)*AF216 -> 0 | AH216: 246.0787332
E217: Number of Times | AA217: 3.5-4.5yr | AB217: =IF(AC203=3.5,AC202/(1+(1-AG206)*(1-AF217)*(1+(1-AG206)*(1-AF218))),AH216) -> 246.0787332 | AD217: =IF(AC203=4.5,AB218-AG217,0) -> 0 | AE217: 7.382361995 | AG217: =(AB217-AE217)*AF217 -> 0 | AH217: 238.6963712
C218: STOCK HEALTH REQUIREMENTS | E218: Number | G218: Drench | I218: Vacc. | K218: Blowfly | M218: DSE | AA218: 4.5-5.5yr | AB218: =IF(AC203=4.5,AC202/(1+(1-AG206)*(1-AF218)),AH217) -> 238.6963712 | AE218: 7.160891135 | AF218: =IF(AC204=5.5,1,0) -> 1 | AG218: =(AB218-AE218)*AF218 -> 231.53548 | AH218: 0
C219: Ewes | E219: ='Prime Lambs Merino Ewes Input'!E7 -> 1000 | G219: ='Prime Lambs Merino Ewes Input'!F52 -> 1 | I219: ='Prime Lambs Merino Ewes Input'!G52 -> 1 | K219: ='Prime Lambs Merino Ewes Input'!H52 -> 1 | M219: 1.8 | AA219: 5.5-6.5yr | AB219: =AH218 -> 0 | AE219: 0 | AF219: =IF(AC204=6.5,1,0) -> 0 | AG219: =(AB219-AE219)*AF219 -> 0 | AH219: 0
C220: Rams | E220: =AB49 -> 25 | G220: ='Prime Lambs Merino Ewes Input'!F53 -> 2 | I220: ='Prime Lambs Merino Ewes Input'!G53 -> 1 | K220: ='Prime Lambs Merino Ewes Input'!H53 -> 0 | M220: 2 | AA220: Ewes | AB220: =SUM(AB215:AB219) -> 1000 | AD220: =AD214+AD215+AD216+AD217 -> 261.53548 | AE220: =SUM(AE214:AE219) -> 30 | AG220: =SUM(AG215:AG219) -> 231.53548 | AH220: =SUM(AH214:AH218) -> 1000
C221: Lambs | E221: =AC227 -> 950 | G221: ='Prime Lambs Merino Ewes Input'!F54 -> 1 | I221: ='Prime Lambs Merino Ewes Input'!G54 -> 2 | K221: ='Prime Lambs Merino Ewes Input'!H54 -> 0 | AA221: d.s.e's | AB221: =AB214+AB220*AC206 -> 1800
C222: TOTAL | E222: =SUM(E219:E221) -> 1975 | G222: =SUMPRODUCT($E$219:$E$221,G219:G221) -> 2000 | I222: =SUMPRODUCT($E$219:$E$221,I219:I221) -> 2925 | K222: =SUMPRODUCT($E$219:$E$221,K219:K221) -> 1000 | M222: =SUMPRODUCT($E$219:$E$221,M219:M221) -> 1850
G224: Wool Cut kg/hd | AA224: LAMBS | AB224: OPENING | AC224: NATURAL | AD224: PURCHASES | AE224: DEATHS | AF224: % sold | AG224: SALES | AH224: CLOSING
C225: SHEARING | E225: Number | I225: Price | K225: Total | AA225: AGE | AB225: NUMBERS | AC225: INCREASE | AF225: culled | AH225: NUMBERS
C226: Ewes | E226: =AB220-AE220 -> 970 | G226: ='Prime Lambs Merino Ewes Input'!F43 -> 6.5 | I226: ='Prime Lambs Merino Ewes Input'!G43 -> 13.74 | K226: =I226*G226*E226 -> 86630.7
C227: Crossbred rams | E227: =AB238-AE238 -> 24.25 | G227: ='Prime Lambs Merino Ewes Input'!F44 -> 3 | I227: ='Prime Lambs Merino Ewes Input'!G44 -> 2.83 | K227: =I227*G227*E227 -> 205.8825 | AA227: 0-0.5yr | AC227: =AC202*AC205 -> 950 | AF227: 1 | AG227: =AC227*AF227 -> 950 | AH227: =AB227+AC227+AD227-AE227-AG227 -> 0
AA230: RAMS | AB230: OPENING | AC230: NATURAL | AD230: PURCHASES | AE230: DEATHS | AF230: % sold | AG230: SALES | AH230: CLOSING
AA231: AGE | AB231: NUMBERS | AC231: INCREASE | AF231: culled | AH231: NUMBERS
AA233: 0.5-1.5yr | AD233: =AB234/(1-AF233) -> 8.588409083 | AE233: =AB233*$AG$206 -> 0 | AH233: =AB233+AC233+AD233-AE233-AG233 -> 8.588409083
C234: TOTAL | E234: =SUM(E226:E233) -> 994.25 | G234: =SUMPRODUCT(E226:E233,G226:G233) -> 6377.75 | K234: =SUM(K226:K233) -> 86836.5825 | AA234: 1.5-2.5yr | AB234: =IF(AG204=3,(AC202*AG202)/(1+(1-AG206)*(1-AF234)*(1+(1-AG206)*(1-AF235)*(1+(1-AG206)*(1-AF236)))),IF(AG204=4,(AC202*AG202)/(1+(1-AG206)*(1-AF234)*(1+(1-AG206)*(1-AF235)*(1+(1-AG206)*(1-AF236)*(1+(1-AG206)*(1-AF237))))),0)) -> 8.588409083 | AE234: 0.2576522725 | AH234: =AB234+AC234+AD234-AE234-AG234 -> 8.330756811
AA235: 2.5-3.5yr | AB235: =AH234 -> 8.330756811 | AE235: 0.2499227043 | AH235: =AB235+AC235+AD235-AE235-AG235 -> 8.080834106
AA236: 3.5-4.5yr | AB236: =AH235 -> 8.080834106 | AE236: 0.2424250232 | AF236: =IF(AG204=3,100%,0) -> 1 | AG236: =(AB236-AE236)*AF236 -> 7.838409083 | AH236: =AB236+AC236+AD236-AE236-AG236 -> 0
G237: Hay Cost ($/T) | I237: Kg Fed per Week | K237: No of Weeks Feeding | M237: Total Cost ($) | AA237: 4.5-5.5yr | AB237: =AH236 -> 0 | AE237: 0 | AF237: =IF(AG204=4,100%,0) -> 0 | AG237: =AB237-AE237 -> 0 | AH237: =AB237+AC237+AD237-AE237-AG237 -> 0
C238: FEEDING | E238: Number | AB238: =AB233+AB234+AB235+AB236+AB237 -> 25 | AD238: =AD233+AD234+AD235+AD236+AD237 -> 8.588409083 | AE238: =AE233+AE234+AE235+AE236+AE237 -> 0.75 | AG238: =AG233+AG234+AG235+AG236+AG237 -> 7.838409083 | AH238: =AH233+AH234+AH235+AH236+AH237 -> 25
C239: Ewes | E239: ='Prime Lambs Merino Ewes Input'!E62 -> 1000 | G239: ='Prime Lambs Merino Ewes Input'!F62 -> 260 | I239: ='Prime Lambs Merino Ewes Input'!G62 -> 2.5 | K239: ='Prime Lambs Merino Ewes Input'!H62 -> 8 | M239: =(E239*G239*I239*K239)/1000 -> 5200 | AA239: d.s.e's | AB239: =AB238*AE142 -> 0
C240: Rams | E240: ='Prime Lambs Merino Ewes Input'!E63 -> 25 | G240: ='Prime Lambs Merino Ewes Input'!F63 -> 260 | I240: ='Prime Lambs Merino Ewes Input'!G63 -> 2.5 | K240: ='Prime Lambs Merino Ewes Input'!H63 -> 8 | M240: 130
C241: Lambs | E241: ='Prime Lambs Merino Ewes Input'!E64 -> 950 | G241: ='Prime Lambs Merino Ewes Input'!F64 -> 260 | I241: ='Prime Lambs Merino Ewes Input'!G64 -> 0 | K241: ='Prime Lambs Merino Ewes Input'!H64 -> 0 | M241: 0
G242: Grain Cost ($/T) | I242: Kg Fed per Week | K242: No of Weeks Feeding | M242: Total Cost ($)
E243: Number
C244: Ewes | E244: ='Prime Lambs Merino Ewes Input'!E68 -> 1000 | G244: ='Prime Lambs Merino Ewes Input'!F68 -> 320 | I244: ='Prime Lambs Merino Ewes Input'!G68 -> 3 | K244: ='Prime Lambs Merino Ewes Input'!H68 -> 8 | M244: =(E244*G244*I244*K244)/1000 -> 7680
C245: Rams | E245: ='Prime Lambs Merino Ewes Input'!E69 -> 25 | G245: ='Prime Lambs Merino Ewes Input'!F69 -> 320 | I245: ='Prime Lambs Merino Ewes Input'!G69 -> 3 | K245: ='Prime Lambs Merino Ewes Input'!H69 -> 10 | M245: 240
C246: Lambs | E246: ='Prime Lambs Merino Ewes Input'!E70 -> 950 | G246: ='Prime Lambs Merino Ewes Input'!F70 -> 0 | I246: ='Prime Lambs Merino Ewes Input'!G70 -> 0 | K246: ='Prime Lambs Merino Ewes Input'!H70 -> 0 | M246: 0
C247: TOTAL FEED COST | M247: =SUM(M239:M241,M244:M246) -> 13250
C250: GM SENSITIVITY
C251: Gross Margin/DSE | E251: Average Weaning Rate
G252: 0.75 | I252: 0.85 | K252: 0.95 | M252: 1.05 | O252: 1.15 | Q252: 1.25
E253: 135 | G253: =($E$199*G$252*$E253*(1-$K$124)+SUM($K$209:$K$210)+$K$234-$AK$57-$E$199*G$252*$AO$52)/$E$197 -> 46.50135098 | I253: =($E$199*I$252*$E253*(1-$K$124)+SUM($K$209:$K$210)+$K$234-$AK$57-$E$199*I$252*$AO$52)/$E$197 -> 52.84145909 | K253: =($E$199*K$252*$E253*(1-$K$124)+SUM($K$209:$K$210)+$K$234-$AK$57-$E$199*K$252*$AO$52)/$E$197 -> 59.1815672 | M253: =($E$199*M$252*$E253*(1-$K$124)+SUM($K$209:$K$210)+$K$234-$AK$57-$E$199*M$252*$AO$52)/$E$197 -> 65.52167531 | O253: =($E$199*O$252*$E253*(1-$K$124)+SUM($K$209:$K$210)+$K$234-$AK$57-$E$199*O$252*$AO$52)/$E$197 -> 71.86178342 | Q253: =($E$199*Q$252*$E253*(1-$K$124)+SUM($K$209:$K$210)+$K$234-$AK$57-$E$199*Q$252*$AO$52)/$E$197 -> 78.20189152
E254: 140 | G254: 48.40675639 | I254: 55.00091855 | K254: 61.59508071 | M254: 68.18924288 | O254: 74.78340504 | Q254: 81.3775672
C255: Average Lamb Sale Price($/hd) | E255: 145 | G255: 50.31216179 | I255: 57.16037801 | K255: 64.00859423 | M255: 70.85681044 | O255: 77.70502666 | Q255: 84.55324288
E256: 150 | G256: 52.2175672 | I256: 59.31983747 | K256: 66.42210774 | M256: 73.52437801 | O256: 80.62664828 | Q256: 87.72891855
E257: 155 | G257: 54.12297261 | I257: 61.47929693 | K257: 68.83562125 | M257: 76.19194558 | O257: 83.5482699 | Q257: 90.90459423
E258: 160 | G258: 56.02837801 | I258: 63.63875639 | K258: 71.24913477 | M258: 78.85951315 | O258: 86.46989152 | Q258: 94.0802699
E259: 165 | G259: 57.93378342 | I259: 65.79821585 | K259: 73.66264828 | M259: 81.52708071 | O259: 89.39151315 | Q259: 97.25594558
E260: 170 | G260: 59.83918882 | I260: 67.95767531 | K260: 76.07616179 | M260: 84.19464828 | O260: 92.31313477 | Q260: 100.4316213
E261: 175 | G261: 61.74459423 | I261: 70.11713477 | K261: 78.48967531 | M261: 86.86221585 | O261: 95.23475639 | Q261: 103.6072969
E262: 180 | G262: 63.64999963 | I262: 72.27659423 | K262: 80.90318882 | M262: 89.52978342 | O262: 98.15637801 | Q262: 106.7829726
E263: 185 | G263: 65.55540504 | I263: 74.43605369 | K263: 83.31670233 | M263: 92.19735098 | O263: 101.0779996 | Q263: 109.9586483

Sheet Lamb Trading Input (hidden)
C2: ="LAMB TRADING GROSS MARGIN - "&TEXT(m_year,"0000") -> LAMB TRADING GROSS MARGIN - 2019
C4: GENERAL INFORMATION
C5: This represents a merino Lamb flock, producing 21 micron wool. Adjust wool price if different micron wool is produced. Following are the various assumptions used in the calculation of the Gross Margin. Cells with yellow highlight can be changed. No allowance has been made for pasture expenses such as seed, fertiliser and chemicals. Refer to pasture gross margins in the “Cropping Gross Margin Plan” for annual and perennial pasture costs. Use the livestock gross margin per DSE as income for the pasture gross margin.
C7: No of Lambs | E7: 1000
C9: Age Lambs sold | E9: 0.8
C10: Age Lambs bought | E10: 0.5
C11: Lambs bought at | E11: 35 | F11: kg liveweight
C12: Lambs sold at | E12: 55 | F12: kg liveweight
C13: Flock death Rate | E13: 0.02
C14: DSE rating/Lamb | E14: 0.8
C17: LIVESTOCK SALES | E17: Price/Hd | F17: Number | G17: Total
C18: Lambs | F18: =ROUND('Lamb Trading'!AG220,0) -> 0 | G18: =E18*F18 -> 0
C25: TOTAL SALES | F25: =SUM(F18:F23) -> 0 | G25: =SUM(G18:G23) -> 0
C28: LIVESTOCK PURCHASES | E28: Price/Hd | F28: Number | G28: Total
C29: Lambs | E29: 130 | F29: =ROUND('Lamb Trading'!AD220,0) -> 208 | G29: =E29*F29 -> 27040
C32: TOTAL PURCHASES | F32: =SUM(F29:F30) -> 208 | G32: =SUM(G29:G30) -> 27040
C35: WOOL PRICE (cents/kg) | F35: =TEXT(m_year-3,"0000")&" Average (Clean)" -> 2016 Average (Clean) | G35: =TEXT(m_year-2,"0000")&" Average (Clean)" -> 2017 Average (Clean) | H35: =TEXT(m_year-1,"0000")&" Average (Clean)" -> 2018 Average (Clean) | I35: Budget Base (Clean) | J35: Budget Base (Greasy)
E36: Cereal Zone 21 mic 68% yield | F36: 1160 | G36: 1274 | H36: 1397 | I36: 1400 | J36: 952
C37: Allow 90% to account for lower value of bellies, skirtings etc. | J37: =J36*0.9 -> 856.8
C41: WOOL SALES - SHEARING | F41: Wool Cut | G41: Yield
E42: Number | F42: kg/hd | G42: %
C43: Lambs | E43: ='Lamb Trading'!E233 -> 1000 | F43: 1.5 | G43: 0.7
C51: TOTAL | E51: =SUM(E43:E50) -> 1000 | F51: =SUMPRODUCT(E43:E49,F43:F49) -> 1500
C54: STOCK HEALTH REQUIREMENTS
G55: Number of times
E56: Number | F56: Drench | G56: Vacc. | H56: Blowfly | I56: DSE rating
C57: Lambs | E57: ='Lamb Trading'!E220 -> 1000 | F57: 1 | G57: 1 | H57: 1 | I57: 0.6
C58: TOTAL | E58: =SUM(E57:E57) -> 1000 | F58: =SUMPRODUCT($E$57:$E$57,F57:F57) -> 1000 | G58: =SUMPRODUCT($E$57:$E$57,G57:G57) -> 1000 | H58: =SUMPRODUCT($E$57:$E$57,H57:H57) -> 1000 | I58: =SUMPRODUCT($E$57:$E$57,I57:I57) -> 600
C60: Av Live Weight | E60: 45
C61: DSE Rating | E61: 0.8
C66: FEEDING
E67: Supplementry | F67: Feed Lot | I67: Supplementry | J67: Feed Lot
E68: kg fed | F68: kg fed | G68: /animal | H68: $/tonne | I68: Total | J68: Total
C69: Oats/barley | F69: 55 | G69: kg/lamb | I69: =(H69*E69)/1000 -> 0 | J69: =(H69*F69)/1000 -> 0
C70: Hay | E70: 15 | F70: 10 | G70: kg/lamb | I70: 0 | J70: 0
C71: Lupins | F71: 9 | G71: kg/lamb | I71: 0 | J71: 0
C72: Supplements | F72: 1 | G72: kg/lamb | H72: 2000 | I72: 0 | J72: 2
C73: Total | I73: =SUM(I69:I72) -> 0 | J73: =SUM(J69:J72) -> 2

Sheet Lamb Trading (hidden)
C1: LAMB TRADING
C2: =UPPER(Var_Animal)&" GROSS MARGIN - "&TEXT(m_year,"0000") -> LAMB TRADING GROSS MARGIN - 2019
C4: ASSUMPTIONS
O5: Total DSE's | Q5: =E197 -> 600
C6: Ave Lamb Fibre Diameter | E6: 20 | O6: Number of Lambs shorn | Q6: 1
C7: Number of Lambs | E7: ='Lamb Trading Input'!$E$7 -> 1000 | O7: Stocking Rate (DSE/Ha) | Q7: =E196 -> 12
C8: Lambs bought at | E8: ='Lamb Trading Input'!E11 -> 35 | G8: kg liveweight | K8: 370 | M8: c/kg dwt
C9: Lambs sold at | E9: ='Lamb Trading Input'!E12 -> 55 | G9: kg liveweight | J9: @ | K9: 730 | M9: c/kg dwt
C32: INCOME | Q32: $
C34: Wool (kg greasy) | E34: =I234 -> 1500 | G34: kg | I34: av price | K34: =GM_INFO!F95*0.9 -> 1375.2 | M34: c/kg | Q34: =E34*K34/100 -> 20628
C35: Sales | E35: =E211 -> 980 | G35: animals | I35: av price | K35: =G210 -> 172.645 | M35: /head | Q35: =K35*E35 -> 169192.1
C37: Gross Income | Q37: =SUM(Q34:Q35) -> 189820.1
AA45: STOCK VALUE AND D.S.E REQUIREMENT
C46: VARIABLE COSTS
C47: Shearing | K47: Rate
C48: Shearing | E48: =E234*Q6 -> 1000 | G48: sheep | I48: Reset Rate> | J48: =GM_INFO!C30 | K48: =GM_INFO!C30 -> 310.77 | M48: /100 | Q48: =K48/100*ROUND(E48,0) -> 3107.7
C50: Shed labour | E50: 2 | G50: days | I50: Reset Rate> | J50: =GM_INFO!C32 | K50: =GM_INFO!C32 -> 234.8 | M50: /day | Q50: =K50*ROUND(E50,0) -> 469.6
C51: Woolclasser | E51: 1 | G51: days | I51: Reset Rate> | J51: =GM_INFO!C33 | K51: =GM_INFO!C33 -> 297.79 | M51: /day | Q51: =K51*E51 -> 297.79
C52: Superannuation (on ord wages only) | I52: Reset Rate> | J52: =GM_INFO!C34 | K52: =GM_INFO!C34 -> 0.095 | M52: wages | Q52: =(Q48+Q50+Q51)*K52 -> 368.13355
C53: W/Cover (incl. super + otime etc) | I53: Reset Rate> | J53: =GM_INFO!C35 | K53: =GM_INFO!C35 -> 0.04 | M53: total | Q53: =(Q48+Q49+Q50+Q51+Q52)*K53 -> 169.728942
C54: Wool packs | E54: =E122 -> 8.823529412 | G54: packs | I54: Reset Rate> | J54: =GM_INFO!C28 | K54: =GM_INFO!C28 -> 11.2 | M54: /pack | Q54: =K54*ROUND(E54,0) -> 100.8
C55: Shed sundries | E55: =E48 -> 1000 | G55: sheep | I55: Reset Rate> | J55: =GM_INFO!C36 | K55: =GM_INFO!C36 -> 0.2 | M55: /head | Q55: 200
C56: Lice control | E56: =E48 -> 1000 | G56: sheep | I56: Reset Rate> | J56: =GM_INFO!C19 | K56: =GM_INFO!C19 -> 1.6768 | M56: /head | Q56: 1676.8
C57: Crutching | E57: =E7-E48 -> 0 | G57: sheep | I57: Reset Rate> | J57: =GM_INFO!C38 | K57: =GM_INFO!C38 -> 90.12 | M57: /100 | Q57: =K57/100*ROUND(E57,0) -> 0
AS79: RAMS | AT79: OPENING | AU79: NATURAL | AV79: PURCHASES | AW79: DEATHS | AX79: % sold | AY79: SALES | AZ79: CLOSING
AS80: AGE | AT80: NUMBERS | AU80: INCREASE | AX80: culled | AZ80: NUMBERS
AS82: 0.5-1.5yr | AV82: =AT83/(1-AX82) -> 0 | AW82: =AT82*$R$81 -> 0 | AZ82: =AT82+AU82+AV82-AW82-AY82 -> 0
AS83: 1.5-2.5yr | AT83: =IF(AY53=3,(AU51*AY51)/(1+(1-AY55)*(1-AX83)*(1+(1-AY55)*(1-AX84)*(1+(1-AY55)*(1-AX85)))),IF(AY53=4,(AU51*AY51)/(1+(1-AY55)*(1-AX83)*(1+(1-AY55)*(1-AX84)*(1+(1-AY55)*(1-AX85)*(1+(1-AY55)*(1-AX86))))),0)) -> 0 | AW83: =AT83*$R$81 -> 0 | AZ83: =AT83+AU83+AV83-AW83-AY83 -> 0
AS84: 2.5-3.5yr | AT84: =AZ83 -> 0 | AW84: =AT84*$R$81 -> 0 | AZ84: =AT84+AU84+AV84-AW84-AY84 -> 0
AS85: 3.5-4.5yr | AT85: =AZ84 -> 0 | AW85: =AT85*$R$81 -> 0 | AX85: =IF(AY53=3,100%,0) -> 0 | AY85: =(AT85-AW85)*AX85 -> 0 | AZ85: =AT85+AU85+AV85-AW85-AY85 -> 0
AS86: 4.5-5.5yr | AT86: =AZ85 -> 0 | AW86: =AT86*$R$81 -> 0 | AX86: =IF(AY53=4,100%,0) -> 0 | AY86: =AT86-AW86 -> 0 | AZ86: =AT86+AU86+AV86-AW86-AY86 -> 0
AT87: =AT82+AT83+AT84+AT85+AT86 -> 0 | AV87: =AV82+AV83+AV84+AV85+AV86 -> 0 | AW87: =AW82+AW83+AW84+AW85+AW86 -> 0 | AY87: =AY82+AY83+AY84+AY85+AY86 -> 0 | AZ87: =AZ82+AZ83+AZ84+AZ85+AZ86 -> 0
AS88: d.s.e's | AT88: =AT87*AE49 -> 0
C89: Animal Health
C90: Drench | E90: =G228 -> 1000 | G90: sheep | I90: Reset Rate> | J90: =GM_INFO!C21 | K90: =GM_INFO!C21 -> 0.6 | M90: /head | Q90: =K90*ROUND(E90,0) -> 600
C91: Vaccinate | E91: =I228 -> 1000 | G91: sheep | I91: Reset Rate> | J91: =GM_INFO!C25 | K91: =GM_INFO!C25 -> 0.328 | M91: /head | Q91: 328
C92: Blowfly control | E92: =K228*0.5 -> 500 | G92: sheep | I92: Reset Rate> | J92: =GM_INFO!C27 | K92: =GM_INFO!C27 -> 1.44 | M92: /head | Q92: 720
C93: Other expenses | G93: sheep | I93: Reset Rate> | M93: /head | Q93: 0
C104: Stock purchases
C105: Purchases | E105: =ROUND(E213,0) -> 1000 | G105: Lambs | I105: Reset Rate> | J105: ='LambS INPUT'!E29 | K105: ='Lamb Trading Input'!E29 -> 130 | M105: /head | Q105: =K105*E105 -> 130000
C117: Sale Costs
C118: Freight
C119: Livestock | E119: =E211+E213 -> 1980 | G119: sheep | I119: Reset Rate> | J119: =GM_INFO!B111 | K119: =GM_INFO!B111 -> 4 | M119: /head | Q119: =K119*ROUND(E119,0) -> 7920
I120: Reset Rate> | M120: /head
I121: Reset Rate> | M121: /head
C122: Wool | E122: =I234/170 -> 8.823529412 | G122: bales | I122: Reset Rate> | J122: =GM_INFO!B114 | K122: =GM_INFO!B114 -> 15 | M122: /bale | Q122: 135
C123: Stock selling charges
C124: Commission/insurance | I124: Reset Rate> | J124: =GM_INFO!C48 | K124: =GM_INFO!C48 -> 0.06 | M124: gross $ | Q124: =K124*Q35 -> 10151.526
C125: Yard fees | E125: =E211 -> 980 | G125: head | I125: Reset Rate> | J125: =GM_INFO!C49 | K125: =GM_INFO!C49 -> 0.85 | M125: /head | Q125: =K125*ROUND(E125,0) -> 833
C126: Levy trans-sheep | E126: =E211 -> 980 | G126: head | I126: Reset Rate> | J126: =GM_INFO!C50 | K126: =GM_INFO!C50 -> 0.2 | M126: /head | Q126: 196
C128: SA sheep industry levy | E128: =E211 -> 980 | G128: head | I128: Reset Rate> | J128: =GM_INFO!C52 | K128: =GM_INFO!C52 -> 0.55 | M128: /head | Q128: 539
C129: Wool selling charges
C130: Brokerage/testing/insurance | I130: Reset Rate> | J130: =GM_INFO!C53 | K130: =GM_INFO!C53 -> 0.27 | M130: /kg | Q130: =K130*E34 -> 405
C131: Wool levy | I131: Reset Rate> | J131: =GM_INFO!C54 | K131: =GM_INFO!C54 -> 0.015 | M131: gross | Q131: =K131*Q34 -> 309.42
C143: Feed and Other Costs
C144: Supplementary Feeding | E144: 0 | K144: =M250 -> 0 | M144: /head | Q144: =IF(E144*K144=0,M250,E144*K144) -> 0
C145: Feed Lot | E145: 0 | K145: =N250 -> 0 | M145: /head | Q145: =IF(E145*K145=0,O250,E145*K145) -> 2
C146: Insurance | E146: =E239*G239 -> 151072.5 | G146: value | I146: Reset Rate> | J146: =GM_INFO!B107 | K146: =GM_INFO!B107 -> 2 | M146: /$'000 | Q146: =K146/1000*E146 -> 302.145
C147: Water | E147: =$E$197 -> 600 | G147: DSE's | I147: Reset Rate> | J147: =GM_INFO!k79 | K147: =GM_INFO!K79 -> 1.5 | M147: /DSE's | Q147: =K147*E147 -> 900
C148: Veh Fuel, R&M | E148: 600 | G148: DSE's | I148: Reset Rate> | J148: =GM_INFO!k80 | K148: =GM_INFO!K80 -> 1 | M148: /DSE's | Q148: 600
C149: Other | E149: 600 | G149: DSE's | I149: Reset Rate> | J149: =GM_INFO!k81 | K149: =GM_INFO!K81 -> 0.5 | M149: /DSE's | Q149: 300
C170: TOTAL VARIABLE COSTS | Q170: =SUM(Q48:Q166) -> 160631.6435
C172: GROSS MARGIN TOTAL | Q172: =Q37-Q170 -> 29188.45651
C174: GROSS MARGIN/DSE | Q174: =Q172/E197 -> 48.64742751
C194: PRODUCTION DATA
C196: Stocking rate (DSE/Ha) | E196: 12 | AA196: SHEEP GROSS MARGIN
C197: Total DSE's | E197: ='Lamb Trading Input'!I58 -> 600
C198: SHEEP GRAZING AREA | E198: =E197/E196 -> 50
C199: Number of Lambs | E199: ='Lamb Trading Input'!E7 -> 1000
C200: Flock death rate | E200: ='Lamb Trading Input'!E13 -> 0.02
C201: Age Lambs bought | E201: ='Lamb Trading Input'!E10 -> 0.5
C202: Age Lambs sold | E202: ='Lamb Trading Input'!E9 -> 0.8 | AA202: No of Lambs | AC202: ='Lamb Trading Input'!E7 -> 1000
B203: =VLOOKUP(r[0]c3&"No Ops",CHOOSE({1,2},tbl_ops[Name]&tbl_ops[Category],INDIRECT("tbl_ops["&var_crop&"]")),2,0) | AA203: Age Lambs purchased | AC203: =E201 -> 0.5
B204: =VLOOKUP(r[0]c3&"No Ops",CHOOSE({1,2},tbl_ops[Name]&tbl_ops[Category],INDIRECT("tbl_ops["&var_crop&"]")),2,0) | AA204: Age Lambs sold | AC204: =E202 -> 0.8
B205: =VLOOKUP(r[0]c3&"No Ops",CHOOSE({1,2},tbl_ops[Name]&tbl_ops[Category],INDIRECT("tbl_ops["&var_crop&"]")),2,0) | AA205: Flock death rate | AC205: =E200 -> 0.02
B206: =VLOOKUP(r[0]c3&"No Ops",CHOOSE({1,2},tbl_ops[Name]&tbl_ops[Category],INDIRECT("tbl_ops["&var_crop&"]")),2,0) | AA206: dse/Lamb | AC206: ='Lamb Trading Input'!E14 -> 0.8
B208: =VLOOKUP(r[0]c3&var_rain,CHOOSE({1,2},tbl_ops[Name]&tbl_ops[Rainfall],INDIRECT("tbl_ops["&var_crop&"]")),2,0)
B209: =VLOOKUP(r[0]c3&var_rain,CHOOSE({1,2},tbl_ops[Name]&tbl_ops[Rainfall],INDIRECT("tbl_ops["&var_crop&"]")),2,0) | C209: SALES | E209: Number | G209: Price/hd | I209: Age | K209: Total
B210: =VLOOKUP(r[0]c3&var_rain,CHOOSE({1,2},tbl_ops[Name]&tbl_ops[Rainfall],INDIRECT("tbl_ops["&var_crop&"]")),2,0) | C210: Prime Lambs | E210: =E199-(E199*E200) -> 980 | G210: =E9*0.43*K9/100 -> 172.645 | I210: =E202 -> 0.8 | K210: =E210*G210 -> 169192.1
B211: =VLOOKUP(r[0]c3&var_rain,CHOOSE({1,2},tbl_ops[Name]&tbl_ops[Rainfall],INDIRECT("tbl_ops["&var_crop&"]")),2,0) | C211: TOTAL | E211: =E210 -> 980 | K211: =K210 -> 169192.1 | AA211: LambS | AB211: OPENING | AC211: NATURAL | AD211: PURCHASES | AE211: DEATHS | AF211: % sold | AG211: SALES | AH211: CLOSING
C212: PURCHASES | E212: Number | G212: Price/hd | I212: Age | K212: Total | AA212: AGE | AB212: NUMBERS | AC212: INCREASE | AF212: culled | AH212: NUMBERS
C213: Store Lambs | E213: =E199 -> 1000 | G213: =(E8*K8)/100 -> 129.5 | I213: =E201 -> 0.5 | K213: =ROUND(E213,0)*G213 -> 129500
AA214: 0-0.5yr | AD214: =IF(AC203=0.5,AB215-AE214-AG214,0) -> 208.1615931 | AE214: =AB214*$AC$205 -> 0 | AF214: =IF(AC204=0.5,100%,0) -> 0 | AG214: =AC214*AF214 -> 0 | AH214: =AB214+AC214+AD214-AE214-AG214 -> 208.1615931
AA215: 0.5-1.5yr | AB215: =IF(AC203=0.5,AC202/(1+(1-AC205)*(1-AF215)*(1+(1-AC205)*(1-AF216)*(1+(1-AC205)*(1-AF217)*(1+(1-AC205)*(1-AF218))))),0) -> 208.1615931 | AD215: =IF(AC203=1.5,AB216-AE215-AG215,0) -> 0 | AE215: 4.163231862 | AF215: =IF(AC204=1.5,100%,0) -> 0 | AG215: =(AB215-AE215)*AF215 -> 0 | AH215: 203.9983612
AA216: 1.5-2.5yr | AB216: =IF(AC203=1.5,AC202/(1+(1-AC205)*(1-AF216)*(1+(1-AC205)*(1-AF217)*(1+(1-AC205)*(1-AF218)))),AH215) -> 203.9983612 | AE216: 4.079967224 | AF216: =IF(AC204=2.5,100%,0) -> 0 | AG216: =(AB216-AE216)*AF216 -> 0 | AH216: 199.918394
AA217: 2.5-3.5yr | AB217: =AH216 -> 199.918394 | AE217: 3.99836788 | AF217: =IF(AC204=3.5,100%,0) -> 0 | AG217: =(AB217-AE217)*AF217 -> 0 | AH217: 195.9200261
E218: Number of Times | AA218: 3.5-4.5yr | AB218: =AH217 -> 195.9200261 | AE218: 3.918400522 | AF218: =IF(AC204=4.5,100%,0) -> 0 | AG218: =(AB218-AE218)*AF218 -> 0 | AH218: 192.0016256
C219: STOCK HEALTH REQUIREMENTS | E219: Number | G219: Drench | I219: Vacc. | K219: Blowfly | AA219: 4.5-5.5yr | AB219: =AH218 -> 192.0016256 | AE219: 3.840032512 | AF219: =IF(AC204=5.5,100%,0) -> 0 | AG219: =(AB219-AE219)*AF219 -> 0 | AH219: 188.1615931
C220: Lambs | E220: =ROUND('Lamb Trading Input'!E7,0) -> 1000 | G220: ='Lamb Trading Input'!F57 -> 1 | I220: ='Lamb Trading Input'!G57 -> 1 | K220: ='Lamb Trading Input'!H57 -> 1 | AA220: Total | AB220: =SUM(AB215:AB219) -> 1000 | AD220: =SUM(AD214:AD219) -> 208.1615931 | AE220: =SUM(AE214:AE219) -> 20 | AG220: =SUM(AG214:AG219) -> 0 | AH220: =SUM(AH214:AH219) -> 1188.161593
AA221: d.s.e's | AB221: =AB220*AC206 -> 800
C228: TOTAL | E228: =SUM(E220:E227) -> 1000 | G228: =SUMPRODUCT($E$220:$E$227,G220:G227) -> 1000 | I228: =SUMPRODUCT($E$220:$E$227,I220:I227) -> 1000 | K228: =SUMPRODUCT($E$220:$E$227,K220:K227) -> 1000
G231: Wool Cut kg/hd | I231: Total | K231: Yield | M231: Total
C232: SHEARING | E232: Number | I232: Greasy kg | K232: % | M232: clean kg
C233: Lambs | E233: ='Lamb Trading Input'!E7 -> 1000 | G233: ='Lamb Trading Input'!F43 -> 1.5 | I233: =G233*E233 -> 1500 | K233: ='Lamb Trading Input'!G43 -> 0.7 | M233: =E233*G233*K233 -> 1050
C234: TOTAL | E234: =E233 -> 1000 | I234: =I233 -> 1500
C237: STOCK VALUE | G237: Value | I237: Av Live | K237: DSE
E238: Number | G238: $/head | I238: weight (kgs) | K238: rating
C239: Lambs | E239: =E199 -> 1000 | G239: =(G210+G213)/2 -> 151.0725 | I239: ='Lamb Trading Input'!E60 -> 45 | K239: ='Lamb Trading Input'!E61 -> 0.8
C240: TOTAL | E240: =E239 -> 1000
E244: Supplementry | G244: Feed Lot | M244: Supplementry | O244: Feed Lot
C245: FEEDING | E245: kg fed | G245: kg fed | I245: /animal | K245: $/tonne | M245: Total | O245: Total
C246: ='Lamb Trading Input'!C69 -> Oats/barley | E246: ='Lamb Trading Input'!E69 -> 0 | G246: ='Lamb Trading Input'!F69 -> 55 | I246: ='Lamb Trading Input'!G69 -> kg/lamb | K246: ='Lamb Trading Input'!H69 -> 0 | M246: ='Lamb Trading Input'!I69 -> 0 | O246: ='Lamb Trading Input'!J69 -> 0
C247: ='Lamb Trading Input'!C70 -> Hay | E247: ='Lamb Trading Input'!E70 -> 15 | G247: ='Lamb Trading Input'!F70 -> 10 | I247: ='Lamb Trading Input'!G70 -> kg/lamb | K247: ='Lamb Trading Input'!H70 -> 0 | M247: ='Lamb Trading Input'!I70 -> 0 | O247: ='Lamb Trading Input'!J70 -> 0
C248: ='Lamb Trading Input'!C71 -> Lupins | E248: ='Lamb Trading Input'!E71 -> 0 | G248: ='Lamb Trading Input'!F71 -> 9 | I248: ='Lamb Trading Input'!G71 -> kg/lamb | K248: ='Lamb Trading Input'!H71 -> 0 | M248: ='Lamb Trading Input'!I71 -> 0 | O248: ='Lamb Trading Input'!J71 -> 0
C249: ='Lamb Trading Input'!C72 -> Supplements | E249: ='Lamb Trading Input'!E72 -> 0 | G249: ='Lamb Trading Input'!F72 -> 1 | I249: ='Lamb Trading Input'!G72 -> kg/lamb | K249: ='Lamb Trading Input'!H72 -> 2000 | M249: ='Lamb Trading Input'!I72 -> 0 | O249: ='Lamb Trading Input'!J72 -> 2
M250: ='Lamb Trading Input'!I73 -> 0 | O250: ='Lamb Trading Input'!J73 -> 2
C259: GM SENSITIVITY
C260: Gross Margin/DSE | E260: Average Greasy Wool Price (c/Kg)
G261: 1150 | I261: 1250 | K261: 1375 | M261: 1450 | O261: 1550 | Q261: 1650
E262: 140 | G262: =(G$261*$E$34*(1-$K$131)/100+$E262*$E$35*(1-$K$124)-($Q$170-$Q$124-$Q$131))/$E$197 -> -7.019079153 | I262: =(I$261*$E$34*(1-$K$131)/100+$E262*$E$35*(1-$K$124)-($Q$170-$Q$124-$Q$131))/$E$197 -> -4.556579153 | K262: =(K$261*$E$34*(1-$K$131)/100+$E262*$E$35*(1-$K$124)-($Q$170-$Q$124-$Q$131))/$E$197 -> -1.478454153 | M262: =(M$261*$E$34*(1-$K$131)/100+$E262*$E$35*(1-$K$124)-($Q$170-$Q$124-$Q$131))/$E$197 -> 0.3684208467 | O262: =(O$261*$E$34*(1-$K$131)/100+$E262*$E$35*(1-$K$124)-($Q$170-$Q$124-$Q$131))/$E$197 -> 2.830920847 | Q262: =(Q$261*$E$34*(1-$K$131)/100+$E262*$E$35*(1-$K$124)-($Q$170-$Q$124-$Q$131))/$E$197 -> 5.293420847
E263: 145 | G263: 0.6575875133 | I263: 3.120087513 | K263: 6.198212513 | M263: 8.045087513 | O263: 10.50758751 | Q263: 12.97008751
C264: Average Sheep Sale Price($/hd) | E264: 150 | G264: 8.33425418 | I264: 10.79675418 | K264: 13.87487918 | M264: 15.72175418 | O264: 18.18425418 | Q264: 20.64675418
E265: 165 | G265: 31.36425418 | I265: 33.82675418 | K265: 36.90487918 | M265: 38.75175418 | O265: 41.21425418 | Q265: 43.67675418
E266: 170 | G266: 39.04092085 | I266: 41.50342085 | K266: 44.58154585 | M266: 46.42842085 | O266: 48.89092085 | Q266: 51.35342085
E267: 173 | G267: 43.64692085 | I267: 46.10942085 | K267: 49.18754585 | M267: 51.03442085 | O267: 53.49692085 | Q267: 55.95942085
E268: 175 | G268: 46.71758751 | I268: 49.18008751 | K268: 52.25821251 | M268: 54.10508751 | O268: 56.56758751 | Q268: 59.03008751
E269: 180 | G269: 54.39425418 | I269: 56.85675418 | K269: 59.93487918 | M269: 61.78175418 | O269: 64.24425418 | Q269: 66.70675418
E270: 185 | G270: 62.07092085 | I270: 64.53342085 | K270: 67.61154585 | M270: 69.45842085 | O270: 71.92092085 | Q270: 74.38342085
E271: 190 | G271: 69.74758751 | I271: 72.21008751 | K271: 75.28821251 | M271: 77.13508751 | O271: 79.59758751 | Q271: 82.06008751
E272: 195 | G272: 77.42425418 | I272: 79.88675418 | K272: 82.96487918 | M272: 84.81175418 | O272: 87.27425418 | Q272: 89.73675418

Sheet GM_INFO (hidden)
A1: G.M. LINK SHEET
A3: COMMENT: spreadsheet is protected EXCEPT for highlighted cells,
A4: i.e. those cells which can be changed.
A6: DATE | B6: =m_year -> 2019
A10: _______________________________________________________________________________________________________________________
A11: Todays Date: | B11: =NOW() -> 2019-02-18T11:24:40.320
A14: ="FARM COSTS - "&m_year -> FARM COSTS - 2019
A17: SHEEP
A18: Lice Control | B18: Avenge | C18: 19.05 | D18: /litre
C19: 1.6768 | D19: /80ml dose
A20: Drench | B20: Triguard | C20: 36 | D20: /litre
C21: 0.6 | D21: /10ml dose
A22: Vaccine | B22: Glanvac 3 | C22: 66 | D22: /250ml
C23: 0.264 | D23: /1ml dose
B24: Glanvac 6 | C24: 82 | D24: 250ml
C25: 0.328 | D25: /1ml dose
A26: Blowfly Control | B26: Clik | C26: 54.25 | D26: /litre
C27: 1.44 | D27: /24 ml dose
A28: Wool packs | B28: nylon | C28: 11.2 | D28: ea
A30: Shearing | B30: Sheep | C30: 310.77 | D30: /100
B31: rams | C31: 621.54 | D31: /100
B32: shed labour | C32: 234.8 | D32: /day
B33: wool classer | C33: 297.79 | D33: day
B34: superannuation | C34: 0.095 | D34: wages
B35: Work Cover-Allow | C35: 0.04 | D35: total
B36: shed sundries | C36: 0.2 | D36: /head
A38: Crutching | B38: sheep | C38: 90.12 | D38: /100
B39: rams | C39: 180.24 | D39: /100
A41: lamb marking | B41: mulesing / materials | C41: 1.4 | D41: /head
B42: marking only | C42: 1.15 | D42: /head
B43: ear tags | C43: 0.43 | D43: /head
B44: pain relief | C44: 0.45 | D44: /head
A45: Stock purchaces | B45: purchase rams | C45: 1000 | D45: /head
B46: purchase wethers | C46: 80 | D46: /head
A48: Stock selling | B48: commission/insurance | C48: 0.06
B49: yard fees | C49: 0.85 | D49: /head
B50: sheep transaction levy | C50: 0.2 | D50: /head
B51: lamb transaction levy | C51: 1.5 | D51: /head
B52: SA sheep industry levy | C52: 0.55 | D52: /head
B53: wool brokerage / testing / insurance | C53: 0.27 | D53: /kg
B54: wool levy | C54: 0.015
A60: BEEF | H60: BEEF FEEDLOT
A61: Drench (backline) | B61: Genesis Pour-on | D61: 124 | E61: /litre | H61: Drench, Dectomax | I61: 4.88 | J61: /head
D62: 4.1125 | E62: /25ml dose | H62: Ear Tags | I62: 0.5 | J62: /tag
A63: 5 in 1 vaccine | D63: 95 | E63: /500 ml | H63: HGP implant , Synovex | I63: 2.5 | J63: /dose
D64: 0.76 | E64: /4ml dose | H64: Lice Treatments | I64: 0 | J64: /dose
H65: Vaccine | I65: 1 | J65: /dose
H66: Veterinary | I66: 1.25 | J66: /head
A67: Trace Element treatments | D67: 3 | E67: /head | H67: Vitamin injection | I67: 1.5 | J67: /head
A68: HGP implant | D68: 1.75 | H68: Premix cost per tonne mixed feed | I68: 50 | J68: /tonne
A69: Vitamin injection | D69: 1.3 | H69: Milling costs + Labour | I69: 26 | J69: /head
H70: Water | I70: 20 | J70: /head
H71: Insurance | I71: 2
H72: Transport In | I72: 15
A73: NLIS Breeder Tags (incl levy) | D73: 4.75 | E73: each | H73: Transport Out | I73: 30
H74: Commission | I74: 0.06
B75: freight cattle in | D75: 30 | E75: /head | H75: Levies | I75: 5
B76: freight cattle out | D76: 30 | E76: /head
B77: Cattle levy | D77: 5 | E77: /head
D78: Prime Lambs | E78: Prime Lambs Cereal | F78: Merino SR Cereal | G78: Wethers Cereal | H78: Cleanskin | I78: Beef Cereal | J78: Beef Trading | K78: Lamb trading
A79: FEED & OTHER COSTS | B79: water | C79: /DSE | D79: 1.5 | E79: 2.5 | F79: 2.5 | G79: 2.5 | H79: 2.5 | I79: 2.5 | J79: 1.5 | K79: 1.5
B80: Veh fuel, R&M | C80: /DSE | D80: 1.2 | E80: 1.2 | F80: 1.2 | G80: 1 | H80: 0.8 | I80: 1 | J80: 1 | K80: 1
B81: other | C81: /DSE | D81: 0.5 | E81: 0.5 | F81: 0.5 | G81: 0.5 | H81: 0.5 | I81: 0.5 | J81: 0.5 | K81: 0.5
B82: hay | C82: /tonne incl freight | D82: 260
B83: Feed Cereal grain | C83: /tonne incl freight | D83: 320
B84: Lamb Feedlot Mix | C84: /tonne incl freight | D84: 300
B85: Blocks/ Mineral Mix | D85: 5
A89: ="FARM COSTS - "&m_year -> FARM COSTS - 2019
A93: STOCK RETURNS | F93: Budget Base (Greasy)
A94: WOOL- High Rainfall 28 mic 70%Yield | F94: 611
A95: - High Rainfall 19.5 mic 70% Yld | F95: 1528
A96: - Med Rainfall 21 mic 68% Yield | F96: 1374
A97: - Low Rainfall 22 mic 63% Yield | F97: 1255
A98: - Crossbred Ram 32 mic | F98: 283
A101: ="FARM COSTS - "&m_year -> FARM COSTS - 2019
A105: INSURANCE COSTS
A106: Livestock
A107: Sheep and cattle | B107: 2 | C107: /$1,000 insured
A110: FREIGHT COSTS | B110: Prime Lambs
A111: culls | B111: 4
A112: ewes | B112: 4
A113: prime lambs | B113: 4
A114: bales | B114: 15
A115: rams | B115: 4
A116: hoggets | B116: 4
A117: vealers | B117: 30
A119: BEEF
A120: Vealers | B120: 270 | C120: kg liveweight @ | D120: 3 | E120: /kg L/W
A121: Yearling | B121: 400 | C121: kg liveweight @ | D121: 2.8 | E121: /kg L/W
A122: Cows | B122: 550 | C122: kg liveweight @ | D122: 1.8 | E122: /kg L/W
A124: BEEF TRADING
A125: Vealers | B125: 280 | C125: kg liveweight @ | D125: 3 | E125: /kg L/W
A126: Yearling | B126: 420 | C126: kg liveweight @ | D126: 2.8 | E126: /kg L/W

Sheet Merino SR Input (hidden)
C2: ="MERINO SR GROSS MARGIN - "&TEXT(m_year,"0000") -> MERINO SR GROSS MARGIN - 2019
C4: GENERAL INFORMATION
C5: This represents a self-replacing merino ewe flock, producing 21 micron wool. Adjust wool price if different micron wool is produced. Following are the various assumptions used in the calculation of the Gross Margin. Cells with yellow highlight can be changed. No allowance has been made for pasture expenses such as seed, fertiliser and chemicals. Refer to pasture gross margins in the “Cropping Gross Margin Plan” for annual and perennial pasture costs. Use the livestock gross margin per DSE as income for the pasture gross margin.
C7: Stocking rate (DSE/Ha) | E7: 6 | G7: Years Rams Kept | I7: 4
C8: Ewes mated | E8: 1000 | G8: Flock death Rate | I8: 0.03
C9: Total DSE's | E9: ='Merino SR'!M228 -> 2420 | G9: % Lambs carried over | I9: 0
C10: SHEEP GRAZING AREA | E10: 285
C11: Age ewes 1st mating | E11: 1.5
C12: Age ewes sold | E12: 6.5
C13: Av Weaning % | E13: 0.95
C14: Ram percentage | E14: 0.025
C17: LIVESTOCK SALES | E17: Price/Hd | F17: Number | G17: Total
C18: c.f.a Ewes | E18: 115 | F18: ='Merino SR'!AG220 -> 203.9596235 | G18: =E18*ROUND(F18,0) -> 23460
C19: c.f.a Merino Rams | E19: 75 | F19: ='Merino SR'!AG244 -> 5.788387001 | G19: 450
C20: ewe hoggets | E20: 240 | F20: ='Merino SR'!AG222 -> 226.7903765 | G20: 54480
C21: wether lambs | E21: 130 | F21: ='Merino SR'!AG230 -> 475 | G21: 61750
G22: 0
G23: 0
C25: TOTAL SALES | F25: =SUM(F18:F23) -> 911.538387 | G25: =SUM(G18:G23) -> 140140
C28: LIVESTOCK PURCHASES | E28: Price/Hd | F28: Number | G28: Total
C29: Ewes | E29: 250 | F29: ='Merino SR'!AD220 -> 0 | G29: =E29*F29 -> 0
C30: Rams | E30: 2000 | F30: ='Merino SR'!AD244 -> 6.538387001 | G30: =E30*F30 -> 13076.774
C32: TOTAL PURCHASES | F32: =SUM(F29:F30) -> 6.538387001 | G32: =SUM(G29:G30) -> 13076.774
C35: WOOL PRICE (cents/kg) | F35: =TEXT(m_year-3,"0000")&" Average (Clean)" -> 2016 Average (Clean) | G35: =TEXT(m_year-2,"0000")&" Average (Clean)" -> 2017 Average (Clean) | H35: =TEXT(m_year-1,"0000")&" Average (Clean)" -> 2018 Average (Clean) | I35: Budget Base (Clean) | J35: Budget Base (Greasy)
E36: Cereal Zone 21 mic 68% yield | F36: 1278 | G36: 1533 | H36: 2085 | I36: 2020 | J36: 1374
C37: Allow 90% to account for lower value of bellies, skirtings etc. | J37: =J36*0.9 -> 1236.6
C41: WOOL SALES - SHEARING | F41: Wool Cut | G41: Wool Price
E42: Number | F42: kg/hd | G42: cents/kg
C43: Ewes | E43: =ROUND('Merino SR'!E233,0) -> 980 | F43: 6.5 | G43: =$J$37 -> 1236.6
C44: Ewe hoggets | E44: =ROUND('Merino SR'!E234,0) -> 468 | F44: 5.5 | G44: 1236.6
C45: Wether weaners | E45: =ROUND('Merino SR'!E235,0) -> 0 | F45: 5 | G45: 1236.6
C46: Lambs | E46: =ROUND('Merino SR'!E236,0) -> 950 | F46: 2 | G46: 1236.6
C47: Merino rams | E47: =ROUND('Merino SR'!E237,0) -> 25 | F47: 9.5 | G47: 1236.6
C51: TOTAL | E51: =SUM(E43:E50) -> 2423 | F51: =SUMPRODUCT(E43:E49,F43:F49) -> 11081.5
C54: STOCK HEALTH REQUIREMENTS
G55: Number of times
E56: Number | F56: Drench | G56: Vacc. | H56: Blowfly
C57: Ewes | E57: ='Merino SR'!E220 -> 1000 | F57: 1 | G57: 1 | H57: 1
C58: Ewe hoggets | E58: ='Merino SR'!E221 -> 475 | F58: 1 | G58: 1 | H58: 1
C59: Wether weaners | E59: ='Merino SR'!E222 -> 0 | F59: 1 | G59: 1 | H59: 1
C60: Merino lambs | E60: ='Merino SR'!E223 -> 950 | F60: 1 | G60: 2 | H60: 0
C61: Merino rams | E61: ='Merino SR'!E224 -> 25 | F61: 2 | G61: 1 | H61: 1
C63: TOTAL | E63: =SUM(E57:E61) -> 2450 | F63: =SUMPRODUCT($E$57:$E$61,F57:F61) -> 2475 | G63: =SUMPRODUCT($E$57:$E$61,G57:G61) -> 3400 | H63: =SUMPRODUCT($E$57:$E$61,H57:H61) -> 1500
C66: FEEDING
C67: HAY | F67: Hay | G67: Kgs Fed | H67: No Weeks | I67: Total
E68: Number | F68: Cost ($/T) | G68: per Week | H68: of Feeding | I68: Cost ($)
C69: Ewes | E69: ='Merino SR'!E220 -> 1000 | F69: 260 | G69: 2 | H69: 10 | I69: =(H69*G69*E69)/1000*F69 -> 5200
C70: Weaner | I70: 0
C71: Ewe hoggets | I71: 0
C72: Merino lambs | I72: 0
C73: Merino rams | I73: 0
C75: GRAIN | F75: Grain | G75: Kgs Fed | H75: No Weeks | I75: Total
E76: Number | F76: Cost ($/T) | G76: per Week | H76: of Feeding | I76: Cost ($)
C77: Ewes | E77: ='Merino SR'!E220 -> 1000 | F77: 320 | G77: 2.4 | H77: 10 | I77: =(H77*G77*E77)/1000*F77 -> 7680
C78: Weaner | E78: ='Merino SR'!E221 -> 475 | F78: 500 | G78: 1 | H78: 10 | I78: 2375
C79: Ewe hoggets | I79: 0
C80: Merino lambs | I80: 0
C81: Merino rams | I81: 0
H83: Total Feed Cost | I83: =SUM(I69:I73,I77:I81) -> 15255

Sheet Merino SR (hidden)
C1: MERINO SR
C2: =UPPER(Var_Animal)&" GROSS MARGIN - "&TEXT(m_year,"0000") -> MERINO SR GROSS MARGIN - 2019
C4: ASSUMPTIONS
C6: Ave Breeding Ewe Fibre Diameter | E6: 21 | O6: Total DSE's | Q6: ='Merino SR Input'!E9 -> 2420
C7: No. of breeding ewes | E7: ='Merino SR Input'!$E$8 -> 1000 | O7: Stocking Rate (DSE/Ha) | Q7: ='Merino SR Input'!E7 -> 6
C32: INCOME | Q32: $
C34: Wool (kg greasy) | E34: =I241 -> 11079.88602 | G34: kg | I34: av price | K34: ='Merino SR Input'!J37 -> 1236.6 | M34: c/kg | Q34: =M241 -> 137013.8706
C35: Sales | E35: =E214 -> 911.538387 | G35: animals | I35: av price | K35: =G214 -> 153.740097 | M35: /head | Q35: =I214 -> 140140
C37: Gross Income | Q37: =SUM(Q34:Q35) -> 277153.8706
AA45: STOCK VALUE AND D.S.E REQUIREMENT
C46: VARIABLE COSTS
C47: Shearing | K47: Rate
C48: Shearing | E48: =E241-E237 -> 2398.280542 | G48: sheep | I48: Reset Rate> | J48: =GM_INFO!C30 | K48: =GM_INFO!C30 -> 310.77 | M48: /100 | Q48: =K48/100*ROUND(E48,0) -> 7452.2646
C49: (Federal awards) | E49: =E224 -> 25 | G49: rams | I49: Reset Rate> | J49: =GM_INFO!C31 | K49: =GM_INFO!C31 -> 621.54 | M49: /100 | Q49: 155.385
C50: Shed labour | E50: 8 | G50: days | I50: Reset Rate> | J50: =GM_INFO!C32 | K50: =GM_INFO!C32 -> 234.8 | M50: /day | Q50: =K50*ROUND(E50,0) -> 1878.4
C51: Woolclasser | E51: 4 | G51: days | I51: Reset Rate> | J51: =GM_INFO!C33 | K51: =GM_INFO!C33 -> 297.79 | M51: /day | Q51: =K51*E51 -> 1191.16
C52: Superannuation (on ord wages only) | I52: Reset Rate> | J52: =GM_INFO!C34 | K52: =GM_INFO!C34 -> 0.095 | M52: wages | Q52: =(Q48+Q49+Q50+Q51)*K52 -> 1014.334912
C53: W/Cover (incl. super + otime etc) | I53: Reset Rate> | J53: =GM_INFO!C35 | K53: =GM_INFO!C35 -> 0.04 | M53: total | Q53: =(Q48+Q49+Q50+Q51+Q52)*K53 -> 467.6617805
C54: Wool packs | E54: =E122 -> 65.17580013 | G54: packs | I54: Reset Rate> | J54: =GM_INFO!C28 | K54: =GM_INFO!C28 -> 11.2 | M54: /pack | Q54: =K54*ROUND(E54,0) -> 728
C55: Shed sundries | E55: =E48+E49 -> 2423.280542 | G55: sheep | I55: Reset Rate> | J55: =GM_INFO!C36 | K55: =GM_INFO!C36 -> 0.2 | M55: /head | Q55: 484.6
C56: Lice control | E56: =E48+E49 -> 2423.280542 | G56: sheep | I56: Reset Rate> | J56: =GM_INFO!C19 | K56: =GM_INFO!C19 -> 1.6768 | M56: /head | Q56: 4062.8864
C57: Crutch & Wig | E57: =SUM(E233:E235) -> 1448.280542 | G57: ewes | I57: Reset Rate> | J57: =GM_INFO!C38 | K57: =GM_INFO!C38 -> 90.12 | M57: /100 | Q57: =K57/100*ROUND(E57,0) -> 1304.9376
E58: =E49 -> 25 | G58: rams | I58: Reset Rate> | J58: =GM_INFO!C39 | K58: =GM_INFO!C39 -> 180.24 | M58: /100 | Q58: 45.06
C75: Marking
C76: Lamb marking | E76: =E199*E205 -> 950 | G76: lambs | I76: Reset Rate> | J76: =GM_INFO!C41 | K76: =GM_INFO!C41 -> 1.4 | M76: /head | Q76: =K76*ROUND(E76,0) -> 1330
C77: Ear tags | E77: =E76 -> 950 | G77: lambs | I77: Reset Rate> | J77: =GM_INFO!C43 | K77: =GM_INFO!C43 -> 0.43 | M77: /head | Q77: 408.5
C78: Pain relief | E78: 900 | G78: lambs | I78: Reset Rate> | J78: =GM_INFO!C44 | K78: =GM_INFO!C44 -> 0.45 | M78: /head | Q78: =K78*ROUND(E78,0) -> 405
AS79: RAMS | AT79: OPENING | AU79: NATURAL | AV79: PURCHASES | AW79: DEATHS | AX79: % sold | AY79: SALES | AZ79: CLOSING
AS80: AGE | AT80: NUMBERS | AU80: INCREASE | AX80: culled | AZ80: NUMBERS
AS82: 0.5-1.5yr | AV82: =AT83/(1-AX82) -> 0 | AW82: =AT82*$R$81 -> 0 | AZ82: =AT82+AU82+AV82-AW82-AY82 -> 0
AS83: 1.5-2.5yr | AT83: =IF(AY53=3,(AU51*AY51)/(1+(1-AY55)*(1-AX83)*(1+(1-AY55)*(1-AX84)*(1+(1-AY55)*(1-AX85)))),IF(AY53=4,(AU51*AY51)/(1+(1-AY55)*(1-AX83)*(1+(1-AY55)*(1-AX84)*(1+(1-AY55)*(1-AX85)*(1+(1-AY55)*(1-AX86))))),0)) -> 0 | AW83: =AT83*$R$81 -> 0 | AZ83: =AT83+AU83+AV83-AW83-AY83 -> 0
AS84: 2.5-3.5yr | AT84: =AZ83 -> 0 | AW84: =AT84*$R$81 -> 0 | AZ84: =AT84+AU84+AV84-AW84-AY84 -> 0
AS85: 3.5-4.5yr | AT85: =AZ84 -> 0 | AW85: =AT85*$R$81 -> 0 | AX85: =IF(AY53=3,100%,0) -> 0 | AY85: =(AT85-AW85)*AX85 -> 0 | AZ85: =AT85+AU85+AV85-AW85-AY85 -> 0
AS86: 4.5-5.5yr | AT86: =AZ85 -> 0 | AW86: =AT86*$R$81 -> 0 | AX86: =IF(AY53=4,100%,0) -> 0 | AY86: =AT86-AW86 -> 0 | AZ86: =AT86+AU86+AV86-AW86-AY86 -> 0
AT87: =AT82+AT83+AT84+AT85+AT86 -> 0 | AV87: =AV82+AV83+AV84+AV85+AV86 -> 0 | AW87: =AW82+AW83+AW84+AW85+AW86 -> 0 | AY87: =AY82+AY83+AY84+AY85+AY86 -> 0 | AZ87: =AZ82+AZ83+AZ84+AZ85+AZ86 -> 0
AS88: d.s.e's | AT88: =AT87*AE49 -> 0
C89: Animal Health
C90: Drench | E90: =G228 -> 2475 | G90: sheep | I90: Reset Rate> | J90: =GM_INFO!C21 | K90: =GM_INFO!C21 -> 0.6 | M90: /head | Q90: =K90*ROUND(E90,0) -> 1485
C91: Vaccinate | E91: =I228 -> 3400 | G91: sheep | I91: Reset Rate> | J91: =GM_INFO!C23 | K91: =GM_INFO!C23 -> 0.264 | M91: /head | Q91: 897.6
C92: Blowfly control | E92: =K228 -> 1500 | G92: sheep | I92: Reset Rate> | J92: =GM_INFO!C27 | K92: =GM_INFO!C27 -> 1.44 | M92: /head | Q92: 2160
C104: Stock purchases
C105: Purchases | E105: =ROUND(AD244,0) -> 7 | G105: rams | I105: Reset Rate> | J105: ='Merino SR Input'!E30 | K105: ='Merino SR Input'!E30 -> 2000 | M105: /head | Q105: =K105*E105 -> 14000
C117: Sale Costs
C118: Freight
C119: Livestock | E119: =E214 -> 911.538387 | G119: sheep | I119: Reset Rate> | J119: =GM_INFO!B111 | K119: =GM_INFO!B111 -> 4 | M119: /head | Q119: =K119*ROUND(E119,0) -> 3648
I120: Reset Rate> | M120: /head
I121: Reset Rate> | M121: /head
C122: Wool | E122: =I241/170 -> 65.17580013 | G122: bales | I122: Reset Rate> | J122: =GM_INFO!B114 | K122: =GM_INFO!B114 -> 15 | M122: /bale | Q122: 975
C123: Stock selling charges
C124: Commission/insurance | I124: Reset Rate> | J124: =GM_INFO!C48 | K124: =GM_INFO!C48 -> 0.06 | M124: gross $ | Q124: =K124*Q35 -> 8408.4
C125: Yard fees | E125: =E214 -> 911.538387 | G125: head | I125: Reset Rate> | J125: =GM_INFO!C49 | K125: =GM_INFO!C49 -> 0.85 | M125: /head | Q125: =K125*ROUND(E125,0) -> 775.2
C126: Levy trans-sheep | E126: =SUM(E210:E212) -> 436.538387 | G126: head | I126: Reset Rate> | J126: =GM_INFO!C50 | K126: =GM_INFO!C50 -> 0.2 | M126: /head | Q126: 87.4
C127: Levy trans-lambs | E127: =E213 -> 475 | G127: head | I127: Reset Rate> | J127: =GM_INFO!C51 | K127: =GM_INFO!C51 -> 1.5 | M127: /head | Q127: 712.5
C128: SA sheep industry levy | E128: =E214 -> 911.538387 | G128: head | I128: Reset Rate> | J128: =GM_INFO!C52 | K128: =GM_INFO!C52 -> 0.55 | M128: /head | Q128: 501.6
C129: Wool selling charges
C130: Brokerage/testing/insurance | I130: Reset Rate> | J130: =GM_INFO!C53 | K130: =GM_INFO!C53 -> 0.27 | M130: /kg | Q130: =K130*E34 -> 2991.569226
C131: Wool levy | I131: Reset Rate> | J131: =GM_INFO!C54 | K131: =GM_INFO!C54 -> 0.015 | M131: gross | Q131: =K131*Q34 -> 2055.208058
C143: Feed and Other Costs
C144: Hand Feeding | Q144: ='Merino SR Input'!I83 -> 15255
C146: Insurance | E146: =E229 -> 376663.2376 | G146: value | I146: Reset Rate> | J146: =GM_INFO!B107 | K146: =GM_INFO!B107 -> 2 | M146: /$'000 | Q146: =K146/1000*E146 -> 753.3264751
C147: Water | E147: ='Merino SR Input'!$E$9 -> 2420 | G147: DSE's | I147: Reset Rate> | J147: =GM_INFO!D79 | K147: =GM_INFO!E79 -> 2.5 | M147: /DSE's | Q147: =K147*E147 -> 6050
C148: Veh Fuel, R&M | E148: ='Merino SR Input'!$E$9 -> 2420 | G148: DSE's | I148: Reset Rate> | J148: =GM_INFO!D80 | K148: =GM_INFO!E80 -> 1.2 | M148: /DSE's | Q148: 2904
C149: Other | E149: ='Merino SR Input'!$E$9 -> 2420 | G149: DSE's | I149: Reset Rate> | J149: =GM_INFO!D81 | K149: =GM_INFO!E81 -> 0.5 | M149: /DSE's | Q149: 1210
C170: TOTAL VARIABLE COSTS | Q170: =SUM(Q48:Q166) -> 85797.99405
C172: GROSS MARGIN TOTAL | Q172: =Q37-Q170 -> 191355.8765
C174: GROSS MARGIN/DSE | Q174: =Q172/Q6 -> 79.07267624
C194: PRODUCTION DATA
AA196: SHEEP GROSS MARGIN
AA197: PRIME LAMB -
C199: Number of ewes mated | E199: ='Merino SR Input'!E8 -> 1000 | K199: Culling Rate (% from each group)
C200: Ram percentage | E200: ='Merino SR Input'!E14 -> 0.025 | K200: Age Group | M200: Ewes | O200: Wethers
C201: Age ewes 1st mating | E201: ='Merino SR Input'!E11 -> 1.5 | K201: 0.5 | M201: =AF213 -> 0
C202: Age ewes culled | E202: ='Merino SR Input'!E12 -> 6.5 | K202: 1.5 | M202: 0.492220025 | AA202: Ewes mated | AC202: ='Merino SR Input'!E8 -> 1000 | AF202: Ram % | AG202: =E200 -> 0.025
B203: =VLOOKUP(r[0]c3&"No Ops",CHOOSE({1,2},tbl_ops[Name]&tbl_ops[Category],INDIRECT("tbl_ops["&var_crop&"]")),2,0) | C203: Years rams kept | E203: ='Merino SR Input'!I7 -> 4 | K203: 2.5 | M203: 0.05 | AA203: Age at 1st mating | AC203: =E201 -> 1.5 | AF203: Price of rams | AG203: ='Merino SR Input'!E30 -> 2000
B204: =VLOOKUP(r[0]c3&"No Ops",CHOOSE({1,2},tbl_ops[Name]&tbl_ops[Category],INDIRECT("tbl_ops["&var_crop&"]")),2,0) | C204: Flock death rate | E204: ='Merino SR Input'!I8 -> 0.03 | K204: 3.5 | M204: 0.05 | AA204: Age ewes sold | AC204: =E202 -> 6.5 | AF204: Years rams kept | AG204: =E203 -> 4
B205: =VLOOKUP(r[0]c3&"No Ops",CHOOSE({1,2},tbl_ops[Name]&tbl_ops[Category],INDIRECT("tbl_ops["&var_crop&"]")),2,0) | C205: Average weaning rate | E205: =AC205 -> 0.95 | K205: 4.5 | M205: 0.05 | AA205: Av Weaning % | AC205: ='Merino SR Input'!E13 -> 0.95 | AF205: Age wethers sold | AG205: 0.5
B206: =VLOOKUP(r[0]c3&"No Ops",CHOOSE({1,2},tbl_ops[Name]&tbl_ops[Category],INDIRECT("tbl_ops["&var_crop&"]")),2,0) | C206: % Lambs carried over | E206: 0 | K206: 5.5 | M206: 0.05 | AA206: dse/ewe | AC206: 1.6 | AF206: Flock death rate | AG206: =E204 -> 0.03
C207: Age wethers sold | E207: =AG205 -> 0.5 | K207: 6.5 | M207: 1
B208: =VLOOKUP(r[0]c3&var_rain,CHOOSE({1,2},tbl_ops[Name]&tbl_ops[Rainfall],INDIRECT("tbl_ops["&var_crop&"]")),2,0)
B209: =VLOOKUP(r[0]c3&var_rain,CHOOSE({1,2},tbl_ops[Name]&tbl_ops[Rainfall],INDIRECT("tbl_ops["&var_crop&"]")),2,0) | C209: SALES | E209: Number | G209: Price/hd | I209: Total
B210: =VLOOKUP(r[0]c3&var_rain,CHOOSE({1,2},tbl_ops[Name]&tbl_ops[Rainfall],INDIRECT("tbl_ops["&var_crop&"]")),2,0) | C210: c.f.a ewes | E210: =AG220 -> 203.9596235 | G210: ='Merino SR Input'!E18 -> 115 | I210: =ROUND(E210,0)*G210 -> 23460
B211: =VLOOKUP(r[0]c3&var_rain,CHOOSE({1,2},tbl_ops[Name]&tbl_ops[Rainfall],INDIRECT("tbl_ops["&var_crop&"]")),2,0) | C211: c.f.a merino rams | E211: =AG244 -> 5.788387001 | G211: ='Merino SR Input'!E19 -> 75 | I211: 450 | AA211: EWES | AB211: OPENING | AC211: NATURAL | AD211: PURCHASES | AE211: DEATHS | AF211: % sold | AG211: SALES | AH211: CLOSING
C212: Ewe hoggets | E212: =AG222 -> 226.7903765 | G212: ='Merino SR Input'!E20 -> 240 | I212: 54480 | AA212: AGE | AB212: NUMBERS | AC212: INCREASE | AF212: culled | AH212: NUMBERS
C213: Wether lambs | E213: =AG230 -> 475 | G213: ='Merino SR Input'!E21 -> 130 | I213: 61750 | AA213: 0-0.5yr | AC213: =AC202*AC205/2 -> 475 | AE213: =AB213*$AG$206 -> 0 | AF213: 0 | AG213: =AC213*AF213 -> 0 | AH213: =AB213+AC213+AD213-AE213-AG213 -> 475
C214: TOTAL | E214: =SUM(E210:E213) -> 911.538387 | G214: =I214/E214 -> 153.740097 | I214: =SUM(I210:I213) -> 140140 | AA214: 0.5-1.5yr | AB214: =AH213 -> 475 | AE214: 14.25 | AF214: =(AB214*(1-AG206)-AB215)/(AB214-AE214) -> 0.492220025 | AG214: =AB214-AE214-AB215 -> 226.7903765 | AH214: 233.9596235
AA215: 1.5-2.5yr | AB215: =AC202/(1+(1-AG206)*(1-AF215)*(1+(1-AG206)*(1-AF216)*(1+(1-AG206)*(1-AF217)*(1+(1-AG206)*(1-AF218))))) -> 233.9596235 | AE215: 7.018788705 | AF215: 0.05 | AG215: =(AB215-AE215)*AF215 -> 11.34704174 | AH215: 215.5937931
AA216: 2.5-3.5yr | AB216: =AH215 -> 215.5937931 | AE216: 6.467813792 | AF216: 0.05 | AG216: =(AB216-AE216)*AF216 -> 10.45629896 | AH216: 198.6696803
AA217: 3.5-4.5yr | AB217: =AH216 -> 198.6696803 | AE217: 5.960090409 | AF217: 0.05 | AG217: =(AB217-AE217)*AF217 -> 9.635479495 | AH217: 183.0741104
E218: Number of Times | AA218: 4.5-5.5yr | AB218: =AH217 -> 183.0741104 | AE218: 5.492223312 | AF218: =IF(AC204=5.5,1,5%) -> 0.05 | AG218: =(AB218-AE218)*AF218 -> 8.879094354 | AH218: =AB218+AC218+AD218-AE218-AG218 -> 168.7027927
C219: STOCK HEALTH REQUIREMENTS | E219: Number | G219: Drench | I219: Vacc. | K219: Blowfly | M219: DSE | AA219: 5.5-6.5yr | AB219: =AH218 -> 168.7027927 | AE219: 5.061083782 | AF219: =IF(AC204=6.5,100%,0) -> 1 | AG219: =(AB219-AE219)*AF219 -> 163.641709 | AH219: 0
C220: Ewes | E220: ='Merino SR Input'!E8 -> 1000 | G220: ='Merino SR Input'!F57 -> 1 | I220: ='Merino SR Input'!G57 -> 1 | K220: ='Merino SR Input'!H57 -> 1 | M220: 1.8 | AA220: Ewes | AB220: =SUM(AB215:AB219) -> 1000 | AC220: =SUM(AC213:AC217) -> 475 | AD220: =SUM(AD213:AD219) -> 0 | AE220: =SUM(AE213:AE218) -> 39.18891622 | AG220: =SUM(AG215:AG219) -> 203.9596235 | AH220: =SUM(AH214:AH218) -> 1000
C221: Ewe hoggets | E221: =AB222 -> 475 | G221: ='Merino SR Input'!F58 -> 1 | I221: ='Merino SR Input'!G58 -> 1 | K221: ='Merino SR Input'!H58 -> 1 | M221: 1.2 | AA221: d.s.e's | AB221: =AB214+AC206*(AB215+AB216+AB217+AB218) -> 1805.075532
C222: Wether weaners | E222: =AB228 -> 0 | G222: ='Merino SR Input'!F59 -> 1 | I222: ='Merino SR Input'!G59 -> 1 | K222: ='Merino SR Input'!H59 -> 1 | M222: 0.8 | AA222: Ewe Hoggets | AB222: =AB214 -> 475 | AG222: =AG214 -> 226.7903765 | AH222: =AH213 -> 475
C223: Merino lambs | E223: =AC213+AC227 -> 950 | G223: ='Merino SR Input'!F60 -> 1 | I223: ='Merino SR Input'!G60 -> 2 | K223: ='Merino SR Input'!H60 -> 0 | M223: 0
C224: Merino rams | E224: =AB244 -> 25 | G224: ='Merino SR Input'!F61 -> 2 | I224: ='Merino SR Input'!G61 -> 1 | K224: ='Merino SR Input'!H61 -> 1 | M224: 2 | AA224: WETHERS | AB224: OPENING | AC224: NATURAL | AD224: PURCHASES | AE224: DEATHS | AF224: % sold | AG224: SALES | AH224: CLOSING
AA225: AGE | AB225: NUMBERS | AC225: INCREASE | AF225: culled | AH225: NUMBERS
AA227: 0-0.5yr | AC227: =AC205*AC202/2 -> 475 | AE227: =AB227*$AG$206 -> 0 | AF227: =IF(AG205=0.5,100%,0) -> 1 | AG227: =AC227*AF227 -> 475 | AH227: =AB227+AC227+AD227-AE227-AG227 -> 0
C228: TOTAL | E228: =SUM(E220:E227) -> 2450 | G228: =SUMPRODUCT($E$220:$E$227,G220:G227) -> 2475 | I228: =SUMPRODUCT($E$220:$E$227,I220:I227) -> 3400 | K228: =SUMPRODUCT($E$220:$E$227,K220:K227) -> 1500 | M228: =SUMPRODUCT($E$220:$E$227,M220:M227) -> 2420 | AA228: 0.5-1.5yr | AB228: =AH227 -> 0 | AE228: 0 | AF228: =IF(AG205=1.5,100%,0) -> 0 | AG228: =(AB228-AE228)*AF228 -> 0 | AH228: =AB228+AC228+AD228-AE228-AG228 -> 0
C229: TOTAL VALUE | E229: =E228*G214 -> 376663.2376 | AA229: 1.5-2.5 | AB229: 0 | AE229: 0 | AF229: =IF(AG205=2.5,100%,0) -> 0 | AG229: =(AB229-AE229)*AF229 -> 0
AA230: Wth lambs | AB230: =AB227 -> 0 | AC230: =AC227 -> 475 | AD230: 0 | AE230: =AE227 -> 0 | AG230: =AG227 -> 475 | AH230: 0
G231: Wool Cut kg/hd | I231: Total | K231: Wool Price | M231: Total | AA231: Wth hgts | AB231: 0 | AC231: 0 | AD231: 0 | AE231: =AE228 -> 0 | AG231: 0 | AH231: 0
C232: SHEARING | E232: Number | I232: Greasy kg | K232: cents/kg | AA232: Wethers | AB232: 0 | AC232: 0 | AD232: 0 | AE232: =AE229 -> 0 | AG232: 0 | AH232: 0
C233: Ewes | E233: =AB220-0.5*AE220 -> 980.4055419 | G233: ='Merino SR Input'!F43 -> 6.5 | I233: =G233*E233 -> 6372.636022 | K233: ='Merino SR Input'!G43 -> 1236.6 | M233: =K233*G233*E233/100 -> 78804.01705 | AA233: d.s.e's | AB233: =AB231+AB232 -> 0
C234: Ewe hoggets | E234: =AB214-0.5*AE214 -> 467.875 | G234: ='Merino SR Input'!F44 -> 5.5 | I234: 2573.3125 | K234: ='Merino SR Input'!G44 -> 1236.6 | M234: 31821.58238
C235: Wether weaners | E235: =AB228-0.5*AE228 -> 0 | G235: ='Merino SR Input'!F45 -> 5 | I235: 0 | K235: ='Merino SR Input'!G45 -> 1236.6 | M235: 0
C236: Lambs | E236: =AC213+AC227 -> 950 | G236: ='Merino SR Input'!F46 -> 2 | I236: 1900 | K236: ='Merino SR Input'!G46 -> 1236.6 | M236: 23495.4 | AA236: RAMS | AB236: OPENING | AC236: NATURAL | AD236: PURCHASES | AE236: DEATHS | AF236: % sold | AG236: SALES | AH236: CLOSING
C237: Merino rams | E237: =AB244-0.5*AE244 -> 24.625 | G237: ='Merino SR Input'!F47 -> 9.5 | I237: 233.9375 | K237: ='Merino SR Input'!G47 -> 1236.6 | M237: 2892.871125 | AA237: AGE | AB237: NUMBERS | AC237: INCREASE | AF237: culled | AH237: NUMBERS
AA239: 0.5-1.5yr | AD239: =AB240/(1-AF239) -> 6.538387001 | AH239: =AB239+AC239+AD239-AE239-AG239 -> 6.538387001
AA240: 1.5-2.5yr | AB240: =IF(AG204=3,(AC202*AG202)/(1+(1-AG206)*(1-AF240)*(1+(1-AG206)*(1-AF241)*(1+(1-AG206)*(1-AF242)))),IF(AG204=4,(AC202*AG202)/(1+(1-AG206)*(1-AF240)*(1+(1-AG206)*(1-AF241)*(1+(1-AG206)*(1-AF242)*(1+(1-AG206)*(1-AF243))))),0)) -> 6.538387001 | AE240: =AB240*$AG$206 -> 0.19615161 | AF240: 0 | AG240: =(SUM(AB240:AD240)-AE240)*AF240 -> 0 | AH240: =AB240+AC240+AD240-AE240-AG240 -> 6.342235391
C241: TOTAL | E241: =SUM(E233:E239) -> 2422.905542 | G241: =SUMPRODUCT(E233:E234,G233:G234) -> 8945.948522 | I241: =SUM(I233:I239) -> 11079.88602 | M241: =SUM(M233:M239) -> 137013.8706 | AA241: 2.5-3.5yr | AB241: =AH240 -> 6.342235391 | AE241: 0.1902670617 | AF241: 0 | AG241: =(SUM(AB241:AD241)-AE241)*AF241 -> 0 | AH241: =AB241+AC241+AD241-AE241-AG241 -> 6.151968329
AA242: 3.5-4.5yr | AB242: =AH241 -> 6.151968329 | AE242: 0.1845590499 | AF242: =IF(AG204=3,100%,0) -> 0 | AG242: =(SUM(AB242:AD242)-AE242)*AF242 -> 0 | AH242: =AB242+AC242+AD242-AE242-AG242 -> 5.967409279
AA243: 4.5-5.5yr | AB243: =AH242 -> 5.967409279 | AE243: 0.1790222784 | AF243: =IF(AG204=4,100%,0) -> 1 | AG243: =AB243-AE243 -> 5.788387001 | AH243: =AB243+AC243+AD243-AE243-AG243 -> 0
G244: Hay Cost ($/T) | I244: Kg Fed per Week | K244: No of Weeks Feeding | M244: Total Cost ($) | AB244: =AB239+AB240+AB241+AB242+AB243 -> 25 | AD244: =AD239+AD240+AD241+AD242+AD243 -> 6.538387001 | AE244: =AE239+AE240+AE241+AE242+AE243 -> 0.75 | AG244: =AG239+AG240+AG241+AG242+AG243 -> 5.788387001 | AH244: =AH239+AH240+AH241+AH242+AH243 -> 25
C245: FEEDING | E245: Number | AA245: d.s.e's | AB245: =AB244*2 -> 50
C246: Ewes | E246: ='Merino SR Input'!E69 -> 1000 | G246: ='Merino SR Input'!F69 -> 260 | I246: ='Merino SR Input'!G69 -> 2 | K246: ='Merino SR Input'!H69 -> 10 | M246: =(E246*G246*I246*K246)/1000 -> 5200
C247: Weaner | E247: ='Merino SR Input'!E70 -> 0 | G247: ='Merino SR Input'!F70 -> 0 | I247: ='Merino SR Input'!G70 -> 0 | K247: ='Merino SR Input'!H70 -> 0 | M247: =(E247*G247*I247*K247)/1000 -> 0
C248: Ewe hoggets | E248: ='Merino SR Input'!E71 -> 0 | G248: ='Merino SR Input'!F71 -> 0 | I248: ='Merino SR Input'!G71 -> 0 | K248: ='Merino SR Input'!H71 -> 0 | M248: 0
C249: Merino lambs | E249: ='Merino SR Input'!E72 -> 0 | G249: ='Merino SR Input'!F72 -> 0 | I249: ='Merino SR Input'!G72 -> 0 | K249: ='Merino SR Input'!H72 -> 0 | M249: 0
C250: Merino rams | E250: ='Merino SR Input'!E73 -> 0 | G250: ='Merino SR Input'!F73 -> 0 | I250: ='Merino SR Input'!G73 -> 0 | K250: ='Merino SR Input'!H73 -> 0 | M250: 0
G251: Grain Cost ($/T) | I251: Kg Fed per Week | K251: No of Weeks Feeding | M251: Total Cost ($)
E252: Number
C253: Ewes | E253: ='Merino SR Input'!E77 -> 1000 | G253: ='Merino SR Input'!F77 -> 320 | I253: ='Merino SR Input'!G77 -> 2.4 | K253: ='Merino SR Input'!H77 -> 10 | M253: =(E253*G253*I253*K253)/1000 -> 7680
C254: Weaner | E254: ='Merino SR Input'!E78 -> 475 | G254: ='Merino SR Input'!F78 -> 500 | I254: ='Merino SR Input'!G78 -> 1 | K254: ='Merino SR Input'!H78 -> 10 | M254: =(E254*G254*I254*K254)/1000 -> 2375
C255: Ewe hoggets | E255: ='Merino SR Input'!E79 -> 0 | G255: ='Merino SR Input'!F79 -> 0 | I255: ='Merino SR Input'!G79 -> 0 | K255: ='Merino SR Input'!H79 -> 0 | M255: 0
C256: Merino lambs | E256: ='Merino SR Input'!E80 -> 0 | G256: ='Merino SR Input'!F80 -> 0 | I256: ='Merino SR Input'!G80 -> 0 | K256: ='Merino SR Input'!H80 -> 0 | M256: 0
C257: Merino rams | E257: ='Merino SR Input'!E81 -> 0 | G257: ='Merino SR Input'!F81 -> 0 | I257: ='Merino SR Input'!G81 -> 0 | K257: ='Merino SR Input'!H81 -> 0 | M257: 0
C258: TOTAL FEED COST | M258: =SUM(M246:M250,M253:M257) -> 15255
C263: GM SENSITIVITY
C264: Gross Margin/DSE | E264: Average Greasy Wool Price (c/Kg)
G265: 1050 | I265: 1150 | K265: 1237 | M265: 1350 | O265: 1450 | Q265: 1550
E266: 125 | G266: =(G$265*$E$34*(1-$K$131)/100+$E266*$E$35*(1-$K$124)-($Q$170-$Q$124-$Q$131))/$Q$6 -> 60.48144449 | I266: =(I$265*$E$34*(1-$K$131)/100+$E266*$E$35*(1-$K$124)-($Q$170-$Q$124-$Q$131))/$Q$6 -> 64.99123281 | K266: =(K$265*$E$34*(1-$K$131)/100+$E266*$E$35*(1-$K$124)-($Q$170-$Q$124-$Q$131))/$Q$6 -> 68.91474865 | M266: =(M$265*$E$34*(1-$K$131)/100+$E266*$E$35*(1-$K$124)-($Q$170-$Q$124-$Q$131))/$Q$6 -> 74.01080945 | O266: =(O$265*$E$34*(1-$K$131)/100+$E266*$E$35*(1-$K$124)-($Q$170-$Q$124-$Q$131))/$Q$6 -> 78.52059777 | Q266: =(Q$265*$E$34*(1-$K$131)/100+$E266*$E$35*(1-$K$124)-($Q$170-$Q$124-$Q$131))/$Q$6 -> 83.03038608
E267: 130 | G267: 62.25178764 | I267: 66.76157596 | K267: 70.68509179 | M267: 75.78115259 | O267: 80.29094091 | Q267: 84.80072923
C268: Average Sheep Sale Price($/hd) | E268: 135 | G268: 64.02213079 | I268: 68.53191911 | K268: 72.45543494 | M268: 77.55149574 | O268: 82.06128406 | Q268: 86.57107238
E269: 140 | G269: 65.79247393 | I269: 70.30226225 | K269: 74.22577809 | M269: 79.32183889 | O269: 83.83162721 | Q269: 88.34141553
E270: 145 | G270: 67.56281708 | I270: 72.0726054 | K270: 75.99612124 | M270: 81.09218204 | O270: 85.60197036 | Q270: 90.11175868
E271: 150 | G271: 69.33316023 | I271: 73.84294855 | K271: 77.76646439 | M271: 82.86252519 | O271: 87.37231351 | Q271: 91.88210183
E272: 154 | G272: 70.74943475 | I272: 75.25922307 | K272: 79.18273891 | M272: 84.27879971 | O272: 88.78858803 | Q272: 93.29837634
E273: 160 | G273: 72.87384653 | I273: 77.38363485 | K273: 81.30715068 | M273: 86.40321148 | O273: 90.9129998 | Q273: 95.42278812
E274: 165 | G274: 74.64418968 | I274: 79.15397799 | K274: 83.07749383 | M274: 88.17355463 | O274: 92.68334295 | Q274: 97.19313127
E275: 170 | G275: 76.41453282 | I275: 80.92432114 | K275: 84.84783698 | M275: 89.94389778 | O275: 94.4536861 | Q275: 98.96347442
E276: 175 | G276: 78.18487597 | I276: 82.69466429 | K276: 86.61818013 | M276: 91.71424093 | O276: 96.22402925 | Q276: 100.7338176
C279: FLOCK STRUCTURE | E279: This table shows the number of merino sheep in each age group at mating
E280: Age Group
C281: Class of Sheep | E281: 0.5 y.o. | G281: 1.5 y.o. | I281: 2.5 y.o. | K281: 3.5 y.o. | M281: 4.5 y.o. | O281: 5.5 y.o. | Q281: 6.5 y.o.
C282: Ewes | E282: =$AB214 -> 475 | G282: =$AB215 -> 233.9596235 | I282: =$AB216 -> 215.5937931 | K282: =$AB217 -> 198.6696803 | M282: =$AB218 -> 183.0741104 | O282: =$AB219 -> 168.7027927 | Q282: 0
C283: Wethers | E283: =$AB228 -> 0 | G283: =$AB229 -> 0 | I283: 0 | K283: 0 | M283: 0 | O283: 0 | Q283: 0
C284: Rams | G284: =$AB240 -> 6.538387001 | I284: =$AB241 -> 6.342235391 | K284: =$AB242 -> 6.151968329 | M284: =$AB243 -> 5.967409279 | O284: 0 | Q284: 0

Sheet Wethers Input (hidden)
C2: ="WETHERS GROSS MARGIN - "&TEXT(m_year,"0000") -> WETHERS GROSS MARGIN - 2019
C4: GENERAL INFORMATION
C5: This represents a merino wether flock, producing 21 micron wool. Adjust wool price if different micron wool is produced. Following are the various assumptions used in the calculation of the Gross Margin. Cells with yellow highlight can be changed. No allowance has been made for pasture expenses such as seed, fertiliser and chemicals. Refer to pasture gross margins in the “Cropping Gross Margin Plan” for annual and perennial pasture costs. Use the livestock gross margin per DSE as income for the pasture gross margin.
C7: No of Wethers | E7: 1000
C9: Age Wethers sold | E9: 5.5
C10: Age Wethers bought | E10: 0.5
C13: Flock death Rate | E13: 0.03
C14: DSE rating/wether | E14: 1.2
C17: LIVESTOCK SALES | E17: Price/Hd | F17: Number | G17: Total
C18: Wethers | E18: 135 | F18: =ROUND(Wethers!AG220,0) -> 182 | G18: =E18*F18 -> 24570
C25: TOTAL SALES | F25: =SUM(F18:F23) -> 182 | G25: =SUM(G18:G23) -> 24570
C28: LIVESTOCK PURCHASES | E28: Price/Hd | F28: Number | G28: Total
C29: Wethers | E29: 120 | F29: =ROUND(Wethers!AD220,0) -> 212 | G29: =E29*F29 -> 25440
C32: TOTAL PURCHASES | F32: =SUM(F29:F30) -> 212 | G32: =SUM(G29:G30) -> 25440
C35: WOOL PRICE (cents/kg) | F35: =TEXT(m_year-3,"0000")&" Average (Clean)" -> 2016 Average (Clean) | G35: =TEXT(m_year-2,"0000")&" Average (Clean)" -> 2017 Average (Clean) | H35: =TEXT(m_year-1,"0000")&" Average (Clean)" -> 2018 Average (Clean) | I35: Budget Base (Clean) | J35: Budget Base (Greasy)
E36: Cereal Zone 21 mic 68% yield | F36: 1160 | G36: 1274 | H36: 1397 | I36: 1400 | J36: 952
C37: Allow 90% to account for lower value of bellies, skirtings etc. | J37: =J36*0.9 -> 856.8
C41: WOOL SALES - SHEARING | F41: Wool Cut | G41: Wool Price
E42: Number | F42: kg/hd | G42: cents/kg
C43: Wethers | E43: =Wethers!E233 -> 970 | F43: 7.5 | G43: =J37 -> 856.8
C51: TOTAL | E51: =SUM(E43:E50) -> 970 | F51: =SUMPRODUCT(E43:E49,F43:F49) -> 7275
C54: STOCK HEALTH REQUIREMENTS
G55: Number of times
E56: Number | F56: Drench | G56: Vacc. | H56: Blowfly
C57: Wethers | E57: =Wethers!E220 -> 1000 | F57: 1 | G57: 1 | H57: 1
C63: TOTAL | E63: =SUM(E57:E61) -> 1000 | F63: =SUMPRODUCT($E$57:$E$61,F57:F61) -> 1000 | G63: =SUMPRODUCT($E$57:$E$61,G57:G61) -> 1000 | H63: =SUMPRODUCT($E$57:$E$61,H57:H61) -> 1000
C66: FEEDING
C67: HAY | F67: Hay | G67: Kgs Fed | H67: No Weeks | I67: Total
E68: Number | F68: Cost ($/T) | G68: per Week | H68: of Feeding | I68: Cost ($)
C69: Wethers | E69: =Wethers!E220 -> 1000 | F69: 260 | G69: 1.5 | H69: 10 | I69: =(H69*G69*E69)/1000*F69 -> 3900
I70: 0
I71: 0
C73: GRAIN | F73: Grain | G73: Kgs Fed | H73: No Weeks | I73: Total
E74: Number | F74: Cost ($/T) | G74: per Week | H74: of Feeding | I74: Cost ($)
C75: Wethers | E75: =Wethers!E220 -> 1000 | F75: 320 | I75: =(H75*G75*E75)/1000*F75 -> 0
I76: 0
I77: 0
H79: Total Feed Cost | I79: =SUM(I69:I71,I75:I77) -> 3900

Sheet Wethers (hidden)
C1: WHETHERS
C2: ="WETHERS GROSS MARGIN - "&TEXT(m_year,"0000") -> WETHERS GROSS MARGIN - 2019
C4: ASSUMPTIONS
C6: Ave Wether Fibre Diameter | E6: 21 | O6: Gross Margin per Ha | Q6: =Q172/E198 -> 310.9597207
C7: Number of Wethers | E7: ='Wethers Input'!$E$7 -> 1000 | O7: Gross Margin per DSE | Q7: =Q174 -> 51.82662011
C8: Stocking Rate (DSE/Ha) | E8: =E196 -> 6 | O8: Gross Margin/Wether | Q8: =Q172/E199 -> 62.19194413
C32: INCOME | Q32: $
C34: Wool (kg greasy) | E34: =I234 -> 7275 | G34: kg | I34: av price | K34: =GM_INFO!F96*0.9 -> 1236.6 | M34: c/kg | Q34: =E34*K34/100 -> 89962.65
C35: Sales | E35: =E211 -> 182.3653636 | G35: animals | I35: av price | K35: =G210 -> 135 | M35: /head | Q35: =K35*E35 -> 24619.32409
C37: Gross Income | Q37: =SUM(Q34:Q35) -> 114581.9741
AA45: STOCK VALUE AND D.S.E REQUIREMENT
C46: VARIABLE COSTS
C47: Shearing | K47: Rate
C48: Shearing | E48: =E234 -> 970 | G48: sheep | I48: Reset Rate> | J48: =GM_INFO!C30 | K48: =GM_INFO!C30 -> 310.77 | M48: /100 | Q48: =K48/100*ROUND(E48,0) -> 3014.469
C50: Shed labour | E50: 4 | G50: days | I50: Reset Rate> | J50: =GM_INFO!C32 | K50: =GM_INFO!C32 -> 234.8 | M50: /day | Q50: =K50*ROUND(E50,0) -> 939.2
C51: Woolclasser | E51: 2 | G51: days | I51: Reset Rate> | J51: =GM_INFO!C33 | K51: =GM_INFO!C33 -> 297.79 | M51: /day | Q51: =K51*E51 -> 595.58
C52: Superannuation (on ord wages only) | I52: Reset Rate> | J52: =GM_INFO!C34 | K52: =GM_INFO!C34 -> 0.095 | M52: wages | Q52: =(Q48+Q50+Q51)*K52 -> 432.178655
C53: W/Cover (incl. super + otime etc) | I53: Reset Rate> | J53: =GM_INFO!C35 | K53: =GM_INFO!C35 -> 0.04 | M53: total | Q53: =(Q48+Q49+Q50+Q51+Q52)*K53 -> 199.2571062
C54: Wool packs | E54: =E122 -> 42.79411765 | G54: packs | I54: Reset Rate> | J54: =GM_INFO!C28 | K54: =GM_INFO!C28 -> 11.2 | M54: /pack | Q54: =K54*ROUND(E54,0) -> 481.6
C55: Shed sundries | E55: =E48 -> 970 | G55: sheep | I55: Reset Rate> | J55: =GM_INFO!C36 | K55: =GM_INFO!C36 -> 0.2 | M55: /head | Q55: 194
C56: Lice control | E56: =E48 -> 970 | G56: sheep | I56: Reset Rate> | J56: =GM_INFO!C19 | K56: =GM_INFO!C19 -> 1.6768 | M56: /head | Q56: 1626.496
C57: Crutching | E57: =E228 -> 1000 | G57: sheep | I57: Reset Rate> | J57: =GM_INFO!C38 | K57: =GM_INFO!C38 -> 90.12 | M57: /100 | Q57: =K57/100*ROUND(E57,0) -> 901.2
AS79: RAMS | AT79: OPENING | AU79: NATURAL | AV79: PURCHASES | AW79: DEATHS | AX79: % sold | AY79: SALES | AZ79: CLOSING
AS80: AGE | AT80: NUMBERS | AU80: INCREASE | AX80: culled | AZ80: NUMBERS
AS82: 0.5-1.5yr | AV82: =AT83/(1-AX82) -> 0 | AW82: =AT82*$R$81 -> 0 | AZ82: =AT82+AU82+AV82-AW82-AY82 -> 0
AS83: 1.5-2.5yr | AT83: =IF(AY53=3,(AU51*AY51)/(1+(1-AY55)*(1-AX83)*(1+(1-AY55)*(1-AX84)*(1+(1-AY55)*(1-AX85)))),IF(AY53=4,(AU51*AY51)/(1+(1-AY55)*(1-AX83)*(1+(1-AY55)*(1-AX84)*(1+(1-AY55)*(1-AX85)*(1+(1-AY55)*(1-AX86))))),0)) -> 0 | AW83: =AT83*$R$81 -> 0 | AZ83: =AT83+AU83+AV83-AW83-AY83 -> 0
AS84: 2.5-3.5yr | AT84: =AZ83 -> 0 | AW84: =AT84*$R$81 -> 0 | AZ84: =AT84+AU84+AV84-AW84-AY84 -> 0
AS85: 3.5-4.5yr | AT85: =AZ84 -> 0 | AW85: =AT85*$R$81 -> 0 | AX85: =IF(AY53=3,100%,0) -> 0 | AY85: =(AT85-AW85)*AX85 -> 0 | AZ85: =AT85+AU85+AV85-AW85-AY85 -> 0
AS86: 4.5-5.5yr | AT86: =AZ85 -> 0 | AW86: =AT86*$R$81 -> 0 | AX86: =IF(AY53=4,100%,0) -> 0 | AY86: =AT86-AW86 -> 0 | AZ86: =AT86+AU86+AV86-AW86-AY86 -> 0
AT87: =AT82+AT83+AT84+AT85+AT86 -> 0 | AV87: =AV82+AV83+AV84+AV85+AV86 -> 0 | AW87: =AW82+AW83+AW84+AW85+AW86 -> 0 | AY87: =AY82+AY83+AY84+AY85+AY86 -> 0 | AZ87: =AZ82+AZ83+AZ84+AZ85+AZ86 -> 0
AS88: d.s.e's | AT88: =AT87*AE49 -> 0
C89: Animal Health
C90: Drench | E90: =G228 -> 1000 | G90: sheep | I90: Reset Rate> | J90: =GM_INFO!C21 | K90: =GM_INFO!C21 -> 0.6 | M90: /head | Q90: =K90*ROUND(E90,0) -> 600
C91: Vaccinate | E91: =I228 -> 1000 | G91: sheep | I91: Reset Rate> | J91: =GM_INFO!C23 | K91: =GM_INFO!C23 -> 0.264 | M91: /head | Q91: 264
C92: Blowfly control | E92: =K228 -> 1000 | G92: sheep | I92: Reset Rate> | J92: =GM_INFO!C27 | K92: =GM_INFO!C27 -> 1.44 | M92: /head | Q92: 1440
C93: Other expenses | G93: sheep | I93: Reset Rate> | M93: /head | Q93: =K93*ROUND(E93,0) -> 0
C104: Stock purchases
C105: Purchases | E105: =ROUND(E213,0) -> 212 | G105: wethers | I105: Reset Rate> | J105: ='WETHERS INPUT'!E29 | K105: ='Wethers Input'!E29 -> 120 | M105: /head | Q105: =K105*E105 -> 25440
C117: Sale Costs
C118: Freight
C119: Livestock | E119: =E211+E213 -> 394.7307272 | G119: sheep | I119: Reset Rate> | J119: =GM_INFO!B111 | K119: =GM_INFO!B111 -> 4 | M119: /head | Q119: =K119*ROUND(E119,0) -> 1580
I120: Reset Rate> | M120: /head
I121: Reset Rate> | M121: /head
C122: Wool | E122: =I234/170 -> 42.79411765 | G122: bales | I122: Reset Rate> | J122: =GM_INFO!B114 | K122: =GM_INFO!B114 -> 15 | M122: /bale | Q122: 645
C123: Stock selling charges
C124: Commission/insurance | I124: Reset Rate> | J124: =GM_INFO!C48 | K124: =GM_INFO!C48 -> 0.06 | M124: gross $ | Q124: =K124*Q35 -> 1477.159445
C125: Yard fees | E125: =E211 -> 182.3653636 | G125: head | I125: Reset Rate> | J125: =GM_INFO!C49 | K125: =GM_INFO!C49 -> 0.85 | M125: /head | Q125: =K125*ROUND(E125,0) -> 154.7
C126: Levy trans-sheep | E126: =E211 -> 182.3653636 | G126: head | I126: Reset Rate> | J126: =GM_INFO!C50 | K126: =GM_INFO!C50 -> 0.2 | M126: /head | Q126: 36.4
C128: SA sheep industry levy | E128: =E211 -> 182.3653636 | G128: head | I128: Reset Rate> | J128: =GM_INFO!C52 | K128: =GM_INFO!C52 -> 0.55 | M128: /head | Q128: 100.1
C129: Wool selling charges
C130: Brokerage/testing/insurance | I130: Reset Rate> | J130: =GM_INFO!C53 | K130: =GM_INFO!C53 -> 0.27 | M130: /kg | Q130: =K130*E34 -> 1964.25
C131: Wool levy | I131: Reset Rate> | J131: =GM_INFO!C54 | K131: =GM_INFO!C54 -> 0.015 | M131: gross | Q131: =K131*Q34 -> 1349.43975
C143: Feed and Other Costs
C144: Hand Feeding | Q144: ='Wethers Input'!I79 -> 3900
C146: Insurance | E146: =E239*G239 -> 127500 | G146: value | I146: Reset Rate> | J146: =GM_INFO!B107 | K146: =GM_INFO!B107 -> 2 | M146: /$'000 | Q146: =K146/1000*E146 -> 255
C147: Water | E147: =$E$197 -> 1200 | G147: DSE's | I147: Reset Rate> | J147: =GM_INFO!G79 | K147: =GM_INFO!G79 -> 2.5 | M147: /DSE's | Q147: =K147*E147 -> 3000
C148: Veh Fuel, R&M | E148: 1200 | G148: DSE's | I148: Reset Rate> | J148: =GM_INFO!G80 | K148: =GM_INFO!G80 -> 1 | M148: /DSE's | Q148: 1200
C149: Other | E149: 1200 | G149: DSE's | I149: Reset Rate> | J149: =GM_INFO!G81 | K149: =GM_INFO!G81 -> 0.5 | M149: /DSE's | Q149: 600
C170: TOTAL VARIABLE COSTS | Q170: =SUM(Q48:Q166) -> 52390.02996
C172: GROSS MARGIN TOTAL | Q172: =Q37-Q170 -> 62191.94413
C174: GROSS MARGIN/DSE | Q174: =Q172/E197 -> 51.82662011
C194: PRODUCTION DATA
C196: Stocking rate (DSE/Ha) | E196: 6 | K196: Culling Rate (% from each group) | Q196: Stock | AA196: SHEEP GROSS MARGIN
C197: Total DSE's | E197: ='Wethers Input'!E7*'Wethers Input'!E14 -> 1200 | K197: Age Group | M197: Ewes | O197: Wethers | Q197: No's
C198: SHEEP GRAZING AREA | E198: =E197/E196 -> 200 | K198: 0.5 | O198: =AF214 -> 0 | Q198: =AH214 -> 212.3653636
C199: Number of wethers | E199: ='Wethers Input'!E7 -> 1000 | K199: 1.5 | O199: 0 | Q199: 205.9944027
C200: Flock death rate | E200: ='Wethers Input'!E13 -> 0.03 | K200: 2.5 | O200: 0 | Q200: 199.8145706
C201: Age wethers bought | E201: ='Wethers Input'!E10 -> 0.5 | K201: 3.5 | O201: 0 | Q201: 193.8201335
C202: Age wethers culled | E202: ='Wethers Input'!E9 -> 5.5 | K202: 4.5 | O202: 0 | Q202: 188.0055295 | AA202: No of wethers | AC202: ='Wethers Input'!E7 -> 1000
B203: =VLOOKUP(r[0]c3&"No Ops",CHOOSE({1,2},tbl_ops[Name]&tbl_ops[Category],INDIRECT("tbl_ops["&var_crop&"]")),2,0) | K203: 5.5 | O203: 1 | Q203: 0 | AA203: Age wethers purchased | AC203: =E201 -> 0.5
B204: =VLOOKUP(r[0]c3&"No Ops",CHOOSE({1,2},tbl_ops[Name]&tbl_ops[Category],INDIRECT("tbl_ops["&var_crop&"]")),2,0) | AA204: Age wethers sold | AC204: =E202 -> 5.5
B205: =VLOOKUP(r[0]c3&"No Ops",CHOOSE({1,2},tbl_ops[Name]&tbl_ops[Category],INDIRECT("tbl_ops["&var_crop&"]")),2,0) | AA205: Flock death rate | AC205: =E200 -> 0.03
B206: =VLOOKUP(r[0]c3&"No Ops",CHOOSE({1,2},tbl_ops[Name]&tbl_ops[Category],INDIRECT("tbl_ops["&var_crop&"]")),2,0) | AA206: dse/wether | AC206: ='Wethers Input'!E14 -> 1.2
B208: =VLOOKUP(r[0]c3&var_rain,CHOOSE({1,2},tbl_ops[Name]&tbl_ops[Rainfall],INDIRECT("tbl_ops["&var_crop&"]")),2,0)
B209: =VLOOKUP(r[0]c3&var_rain,CHOOSE({1,2},tbl_ops[Name]&tbl_ops[Rainfall],INDIRECT("tbl_ops["&var_crop&"]")),2,0) | C209: SALES | E209: Number | G209: Price/hd | I209: Age | K209: Total
B210: =VLOOKUP(r[0]c3&var_rain,CHOOSE({1,2},tbl_ops[Name]&tbl_ops[Rainfall],INDIRECT("tbl_ops["&var_crop&"]")),2,0) | C210: c.f.a wethers | E210: =AG220 -> 182.3653636 | G210: ='Wethers Input'!E18 -> 135 | I210: =E202 -> 5.5 | K210: =ROUND(E210,0)*G210 -> 24570
B211: =VLOOKUP(r[0]c3&var_rain,CHOOSE({1,2},tbl_ops[Name]&tbl_ops[Rainfall],INDIRECT("tbl_ops["&var_crop&"]")),2,0) | C211: TOTAL | E211: =E210 -> 182.3653636 | K211: =K210 -> 24570 | AA211: WETHERS | AB211: OPENING | AC211: NATURAL | AD211: PURCHASES | AE211: DEATHS | AF211: % sold | AG211: SALES | AH211: CLOSING
C212: PURCHASES | E212: Number | G212: Price/hd | I212: Age | K212: Total | AA212: AGE | AB212: NUMBERS | AC212: INCREASE | AF212: culled | AH212: NUMBERS
C213: Wethers | E213: =AD220 -> 212.3653636 | G213: ='Wethers Input'!E29 -> 120 | I213: =E201 -> 0.5 | K213: =ROUND(E213,0)*G213 -> 25440
AA214: 0-0.5yr | AD214: =IF(AC203=0.5,AB215-AE214-AG214,0) -> 212.3653636 | AE214: =AB214*$AC$205 -> 0 | AF214: =IF(AC204=0.5,100%,0) -> 0 | AG214: =AC214*AF214 -> 0 | AH214: =AB214+AC214+AD214-AE214-AG214 -> 212.3653636
AA215: 0.5-1.5yr | AB215: =IF(AC203=0.5,AC202/(1+(1-AC205)*(1-AF215)*(1+(1-AC205)*(1-AF216)*(1+(1-AC205)*(1-AF217)*(1+(1-AC205)*(1-AF218))))),0) -> 212.3653636 | AD215: =IF(AC203=1.5,AB216-AE215-AG215,0) -> 0 | AE215: 6.370960909 | AF215: =IF(AC204=1.5,100%,0) -> 0 | AG215: =(AB215-AE215)*AF215 -> 0 | AH215: 205.9944027
AA216: 1.5-2.5yr | AB216: =IF(AC203=1.5,AC202/(1+(1-AC205)*(1-AF216)*(1+(1-AC205)*(1-AF217)*(1+(1-AC205)*(1-AF218)))),AH215) -> 205.9944027 | AE216: 6.179832081 | AF216: =IF(AC204=2.5,100%,0) -> 0 | AG216: =(AB216-AE216)*AF216 -> 0 | AH216: 199.8145706
AA217: 2.5-3.5yr | AB217: =AH216 -> 199.8145706 | AE217: 5.994437119 | AF217: =IF(AC204=3.5,100%,0) -> 0 | AG217: =(AB217-AE217)*AF217 -> 0 | AH217: 193.8201335
E218: Number of Times | AA218: 3.5-4.5yr | AB218: =AH217 -> 193.8201335 | AE218: 5.814604005 | AF218: =IF(AC204=4.5,100%,0) -> 0 | AG218: =(AB218-AE218)*AF218 -> 0 | AH218: 188.0055295
C219: STOCK HEALTH REQUIREMENTS | E219: Number | G219: Drench | I219: Vacc. | K219: Blowfly | AA219: 4.5-5.5yr | AB219: =AH218 -> 188.0055295 | AE219: 5.640165885 | AF219: =IF(AC204=5.5,100%,0) -> 1 | AG219: =(AB219-AE219)*AF219 -> 182.3653636 | AH219: 0
C220: Wethers | E220: =ROUND('Wethers Input'!E7,0) -> 1000 | G220: ='Wethers Input'!F57 -> 1 | I220: ='Wethers Input'!G57 -> 1 | K220: ='Wethers Input'!H57 -> 1 | AA220: Total | AB220: =SUM(AB215:AB219) -> 1000 | AD220: =SUM(AD214:AD219) -> 212.3653636 | AE220: =SUM(AE214:AE219) -> 30 | AG220: =SUM(AG214:AG219) -> 182.3653636 | AH220: =SUM(AH214:AH219) -> 1000
AA221: d.s.e's | AB221: =AB220*AC206 -> 1200
C228: TOTAL | E228: =SUM(E220:E227) -> 1000 | G228: =SUMPRODUCT($E$220:$E$227,G220:G227) -> 1000 | I228: =SUMPRODUCT($E$220:$E$227,I220:I227) -> 1000 | K228: =SUMPRODUCT($E$220:$E$227,K220:K227) -> 1000
G231: Wool Cut kg/hd | I231: Total | K231: Wool Price
C232: SHEARING | E232: Number | I232: Greasy kg | K232: cents/kg
C233: Wethers | E233: =AB220-AE220 -> 970 | G233: ='Wethers Input'!F43 -> 7.5 | I233: =G233*E233 -> 7275 | K233: ='Wethers Input'!G43 -> 856.8
C234: TOTAL | E234: =E233 -> 970 | I234: =I233 -> 7275
C237: STOCK VALUE | G237: Value
E238: Number | G238: $/head
C239: Wethers | E239: =E199 -> 1000 | G239: =(G213+G210)/2 -> 127.5
C240: TOTAL | E240: =E239 -> 1000
G244: Hay Cost ($/T) | I244: Kg Fed per Week | K244: No of Weeks Feeding | M244: Total Cost ($)
C245: FEEDING | E245: Number
C246: Wethers | E246: ='Wethers Input'!E69 -> 1000 | G246: ='Wethers Input'!F69 -> 260 | I246: ='Wethers Input'!G69 -> 1.5 | K246: ='Wethers Input'!H69 -> 10 | M246: =(E246*G246*I246*K246)/1000 -> 3900
E247: ='Wethers Input'!E70 -> 0 | G247: ='Wethers Input'!F70 -> 0 | I247: ='Wethers Input'!G70 -> 0 | K247: ='Wethers Input'!H70 -> 0 | M247: 0
E248: ='Wethers Input'!E71 -> 0 | G248: ='Wethers Input'!F71 -> 0 | I248: ='Wethers Input'!G71 -> 0 | K248: ='Wethers Input'!H71 -> 0 | M248: 0
G249: Grain Cost ($/T) | I249: Kg Fed per Week | K249: No of Weeks Feeding | M249: Total Cost ($)
E250: Number
C251: Wethers | E251: ='Wethers Input'!E75 -> 1000 | G251: ='Wethers Input'!F75 -> 320 | I251: ='Wethers Input'!G75 -> 0 | K251: ='Wethers Input'!H75 -> 0 | M251: =(E251*G251*I251*K251)/1000 -> 0
E252: ='Wethers Input'!E76 -> 0 | G252: ='Wethers Input'!F76 -> 0 | I252: ='Wethers Input'!G76 -> 0 | K252: ='Wethers Input'!H76 -> 0 | M252: 0
E253: ='Wethers Input'!E77 -> 0 | G253: ='Wethers Input'!F77 -> 0 | I253: ='Wethers Input'!G77 -> 0 | K253: ='Wethers Input'!H77 -> 0 | M253: 0
C254: TOTAL FEED COST | M254: =SUM(M246:M248,M251:M253) -> 3900
C259: GM SENSITIVITY
C260: Gross Margin/DSE | E260: Average Greasy Wool Price (c/Kg)
G261: 1050 | I261: 1150 | K261: 1237 | M261: 1350 | O261: 1450 | Q261: 1550
E262: 110 | G262: =(G$261*$E$34*(1-$K$131)/100+$E262*$E$35*(1-$K$124)-($Q$170-$Q$124-$Q$131))/$E$197 -> 37.11236278 | I262: =(I$261*$E$34*(1-$K$131)/100+$E262*$E$35*(1-$K$124)-($Q$170-$Q$124-$Q$131))/$E$197 -> 43.08392528 | K262: =(K$261*$E$34*(1-$K$131)/100+$E262*$E$35*(1-$K$124)-($Q$170-$Q$124-$Q$131))/$E$197 -> 48.27918466 | M262: =(M$261*$E$34*(1-$K$131)/100+$E262*$E$35*(1-$K$124)-($Q$170-$Q$124-$Q$131))/$E$197 -> 55.02705028 | O262: =(O$261*$E$34*(1-$K$131)/100+$E262*$E$35*(1-$K$124)-($Q$170-$Q$124-$Q$131))/$E$197 -> 60.99861278 | Q262: =(Q$261*$E$34*(1-$K$131)/100+$E262*$E$35*(1-$K$124)-($Q$170-$Q$124-$Q$131))/$E$197 -> 66.97017528
E263: 115 | G263: 37.82662712 | I263: 43.79818962 | K263: 48.993449 | M263: 55.74131462 | O263: 61.71287712 | Q263: 67.68443962
C264: Average Sheep Sale Price($/hd) | E264: 120 | G264: 38.54089146 | I264: 44.51245396 | K264: 49.70771334 | M264: 56.45557896 | O264: 62.42714146 | Q264: 68.39870396
E265: 125 | G265: 39.2551558 | I265: 45.2267183 | K265: 50.42197768 | M265: 57.1698433 | O265: 63.1414058 | Q265: 69.1129683
E266: 130 | G266: 39.96942014 | I266: 45.94098264 | K266: 51.13624202 | M266: 57.88410764 | O266: 63.85567014 | Q266: 69.82723264
E267: 135 | G267: 40.68368449 | I267: 46.65524699 | K267: 51.85050636 | M267: 58.59837199 | O267: 64.56993449 | Q267: 70.54149699
E268: 140 | G268: 41.39794883 | I268: 47.36951133 | K268: 52.5647707 | M268: 59.31263633 | O268: 65.28419883 | Q268: 71.25576133
E269: 145 | G269: 42.11221317 | I269: 48.08377567 | K269: 53.27903504 | M269: 60.02690067 | O269: 65.99846317 | Q269: 71.97002567
E270: 150 | G270: 42.82647751 | I270: 48.79804001 | K270: 53.99329938 | M270: 60.74116501 | O270: 66.71272751 | Q270: 72.68429001
E271: 155 | G271: 43.54074185 | I271: 49.51230435 | K271: 54.70756372 | M271: 61.45542935 | O271: 67.42699185 | Q271: 73.39855435
E272: 160 | G272: 44.25500619 | I272: 50.22656869 | K272: 55.42182806 | M272: 62.16969369 | O272: 68.14125619 | Q272: 74.11281869

Sheet Cleanskin Sheep Input (hidden)
C2: ="CLEANSKIN SHEEP GROSS MARGIN - "&TEXT(m_year,"0000") -> CLEANSKIN SHEEP GROSS MARGIN - 2019
C4: GENERAL INFORMATION
C5: This represents a fully wool shedding self-replacing flock, with no shearing, crutching or lice control. Assumes only one lambing each year. Following are the various assumptions used in the calculation of the Gross Margin. Cells with yellow highlight can be changed. No allowance has been made for pasture expenses such as seed, fertiliser and chemicals. Refer to pasture gross margins in the “Cropping Gross Margin Plan” for annual and perennial pasture costs. Use the livestock gross margin per DSE as income for the pasture gross margin.
C7: Ewes mated | E7: 1000
C8: Age ewes 1st mating | E8: 1.5
C9: Age ewes sold | E9: 6.5
C10: Av Weaning % | E10: 1.5
C11: Ram percentage | E11: 0.025
C12: Years Rams Kept | E12: 4
C13: Flock death Rate | E13: 0.03
C17: LIVESTOCK SALES | E17: Price/Hd | F17: Number | G17: Total
C18: c.f.a Ewes | E18: 115 | F18: =ROUND('Cleanskin Sheep'!AG220,0) -> 204 | G18: =E18*ROUND(F18,0) -> 23460
C19: c.f.a Rams | E19: 80 | F19: =ROUND('Cleanskin Sheep'!AG244,0) -> 6 | G19: 480
C20: ewe hoggets | E20: 210 | F20: =ROUND('Cleanskin Sheep'!AG222,0) -> 494 | G20: 103740
C21: wether lambs | E21: 150 | F21: =ROUND('Cleanskin Sheep'!AG230,0) -> 750 | G21: 112500
C25: TOTAL SALES | F25: =SUM(F18:F23) -> 1454 | G25: =SUM(G18:G23) -> 240180
C28: LIVESTOCK PURCHASES | E28: Price/Hd | F28: Number | G28: Total
C30: Rams | E30: 1500 | F30: =ROUND('Cleanskin Sheep'!AD244,0) -> 7 | G30: =E30*F30 -> 10500
C32: TOTAL PURCHASES | F32: =SUM(F29:F30) -> 7 | G32: =SUM(G29:G30) -> 10500
C54: STOCK HEALTH REQUIREMENTS
G55: Number of times
E56: Number | F56: Drench | G56: Vacc. | H56: Blowfly | I56: Lice
C57: Ewes | E57: ='Cleanskin Sheep'!E220 -> 1000 | F57: 1 | G57: 1
C58: Ewe hoggets | E58: ='Cleanskin Sheep'!E221 -> 750 | F58: 1 | G58: 1
C59: Wether weaners | E59: ='Cleanskin Sheep'!E222 -> 0 | F59: 1 | G59: 1
C60: Lambs | E60: ='Cleanskin Sheep'!E223 -> 1500 | F60: 1 | G60: 2
C61: Rams | E61: ='Cleanskin Sheep'!E224 -> 25 | F61: 2 | G61: 1
C63: TOTAL | E63: =SUM(E57:E61) -> 3275 | F63: =SUMPRODUCT($E$57:$E$61,F57:F61) -> 3300 | G63: =SUMPRODUCT($E$57:$E$61,G57:G61) -> 4775 | H63: =SUMPRODUCT($E$57:$E$61,H57:H61) -> 0 | I63: =SUMPRODUCT($E$57:$E$61,I57:I61) -> 0
C66: FEEDING
C67: HAY | F67: Hay | G67: Kgs Fed | H67: No Weeks | I67: Total
E68: Number | F68: Cost ($/T) | G68: per Week | H68: of Feeding | I68: Cost ($)
C69: Ewes | E69: ='Cleanskin Sheep'!E220 -> 1000 | F69: 260 | G69: 2 | H69: 10 | I69: =(H69*G69*E69)/1000*F69 -> 5200
C70: Weaner | I70: 0
C71: Ewe hoggets | I71: 0
C72: Lambs | I72: 0
C73: Rams | I73: 0
I74: 0
C76: GRAIN | F76: Grain | G76: Kgs Fed | H76: No Weeks | I76: Total
E77: Number | F77: Cost ($/T) | G77: per Week | H77: of Feeding | I77: Cost ($)
C78: Ewes | E78: ='Cleanskin Sheep'!E220 -> 1000 | F78: 320 | G78: 2.4 | H78: 10 | I78: =(H78*G78*E78)/1000*F78 -> 7680
C79: Weaner | E79: ='Cleanskin Sheep'!E221 -> 750 | F79: 500 | G79: 1 | H79: 10 | I79: 3750
C80: Ewe hoggets | I80: 0
C81: Lambs | I81: 0
C82: Rams | I82: 0
H84: Total Feed Cost | I84: =SUM(I69:I74,I78:I82) -> 16630

Sheet Cleanskin Sheep (hidden)
C1: CLEANSKIN SHEEP
C2: =UPPER(Var_Animal)&" GROSS MARGIN - "&TEXT(m_year,"0000") -> CLEANSKIN SHEEP GROSS MARGIN - 2019
C4: ASSUMPTIONS
O6: Total DSE's | Q6: =E197 -> 2750
C7: No. of breeding ewes | E7: ='Cleanskin Sheep Input'!$E$7 -> 1000 | O7: Stocking Rate (DSE/Ha) | Q7: =E196 -> 6
C32: INCOME | Q32: $
C35: Sales | E35: =ROUND(E214,0) -> 1453 | G35: animals | I35: av price | K35: =G214 -> 165.266579 | M35: /head | Q35: =I214 -> 240180
C37: Gross Income | Q37: =SUM(Q34:Q35) -> 240180
AA45: STOCK VALUE AND D.S.E REQUIREMENT
C46: VARIABLE COSTS
C75: Marking | K75: Rate
C76: Lamb marking | E76: =E199*E203 -> 1500 | G76: lambs | I76: Reset Rate> | J76: =GM_INFO!C42 | K76: =GM_INFO!C42 -> 1.15 | M76: /head | Q76: =K76*ROUND(E76,0) -> 1725
C77: Ear tags | E77: =E76 -> 1500 | G77: lambs | I77: Reset Rate> | J77: =GM_INFO!C43 | K77: =GM_INFO!C43 -> 0.43 | M77: /head | Q77: 645
AS79: RAMS | AT79: OPENING | AU79: NATURAL | AV79: PURCHASES | AW79: DEATHS | AX79: % sold | AY79: SALES | AZ79: CLOSING
AS80: AGE | AT80: NUMBERS | AU80: INCREASE | AX80: culled | AZ80: NUMBERS
AS82: 0.5-1.5yr | AV82: =AT83/(1-AX82) -> 0 | AW82: =AT82*$R$81 -> 0 | AZ82: =AT82+AU82+AV82-AW82-AY82 -> 0
AS83: 1.5-2.5yr | AT83: =IF(AY53=3,(AU51*AY51)/(1+(1-AY55)*(1-AX83)*(1+(1-AY55)*(1-AX84)*(1+(1-AY55)*(1-AX85)))),IF(AY53=4,(AU51*AY51)/(1+(1-AY55)*(1-AX83)*(1+(1-AY55)*(1-AX84)*(1+(1-AY55)*(1-AX85)*(1+(1-AY55)*(1-AX86))))),0)) -> 0 | AW83: =AT83*$R$81 -> 0 | AZ83: =AT83+AU83+AV83-AW83-AY83 -> 0
AS84: 2.5-3.5yr | AT84: =AZ83 -> 0 | AW84: =AT84*$R$81 -> 0 | AZ84: =AT84+AU84+AV84-AW84-AY84 -> 0
AS85: 3.5-4.5yr | AT85: =AZ84 -> 0 | AW85: =AT85*$R$81 -> 0 | AX85: =IF(AY53=3,100%,0) -> 0 | AY85: =(AT85-AW85)*AX85 -> 0 | AZ85: =AT85+AU85+AV85-AW85-AY85 -> 0
AS86: 4.5-5.5yr | AT86: =AZ85 -> 0 | AW86: =AT86*$R$81 -> 0 | AX86: =IF(AY53=4,100%,0) -> 0 | AY86: =AT86-AW86 -> 0 | AZ86: =AT86+AU86+AV86-AW86-AY86 -> 0
AT87: =AT82+AT83+AT84+AT85+AT86 -> 0 | AV87: =AV82+AV83+AV84+AV85+AV86 -> 0 | AW87: =AW82+AW83+AW84+AW85+AW86 -> 0 | AY87: =AY82+AY83+AY84+AY85+AY86 -> 0 | AZ87: =AZ82+AZ83+AZ84+AZ85+AZ86 -> 0
AS88: d.s.e's | AT88: =AT87*AE49 -> 0
C89: Animal Health
C90: Drench | E90: =G228 -> 3300 | G90: sheep | I90: Reset Rate> | J90: =GM_INFO!C21 | K90: =GM_INFO!C21 -> 0.6 | M90: /head | Q90: =K90*ROUND(E90,0) -> 1980
C91: Vaccinate | E91: =I228 -> 4775 | G91: sheep | I91: Reset Rate> | J91: =GM_INFO!C23 | K91: =GM_INFO!C23 -> 0.264 | M91: /head | Q91: 1260.6
C92: Blowfly control | E92: =K228 -> 0 | G92: sheep | I92: Reset Rate> | J92: =GM_INFO!C27 | K92: =GM_INFO!C27 -> 1.44 | M92: /head | Q92: 0
C93: Lice control | E93: =M228 -> 0 | G93: sheep | I93: Reset Rate> | J93: =GM_INFO!C19 | K93: =GM_INFO!C19 -> 1.6768 | M93: /head | Q93: =K93*ROUND(E93,0) -> 0
C104: Stock purchases
C105: Purchases | E105: =ROUND(AD244,0) -> 7 | G105: rams | I105: Reset Rate> | J105: ='Cleanskin sheep input'!E30 | K105: ='Cleanskin Sheep Input'!E30 -> 1500 | M105: /head | Q105: =K105*E105 -> 10500
C117: Sale Costs
C118: Freight
C119: ewes | E119: =E210 -> 203.9596235 | G119: sheep | I119: Reset Rate> | J119: =GM_INFO!B111 | K119: =GM_INFO!B111 -> 4 | M119: /head | Q119: =K119*ROUND(E119,0) -> 816
C120: rams | E120: 5.788387001 | G120: sheep | I120: Reset Rate> | J120: =GM_INFO!B115 | K120: =GM_INFO!B115 -> 4 | M120: /head | Q120: 24
C121: hoggets | E121: 493.5403765 | G121: sheep | I121: Reset Rate> | J121: =GM_INFO!B116 | K121: =GM_INFO!B116 -> 4 | M121: /head | Q121: 1976
C122: lambs | E122: 750 | G122: sheep | I122: Reset Rate> | J122: =GM_INFO!B113 | K122: =GM_INFO!B113 -> 4 | M122: /head | Q122: =K122*ROUND(E122,0) -> 3000
C123: Stock selling charges
C124: Commission/insurance | I124: Reset Rate> | J124: =GM_INFO!C48 | K124: =GM_INFO!C48 -> 0.06 | M124: gross $ | Q124: =K124*Q35 -> 14410.8
C125: Yard fees | E125: =E214 -> 1453.288387 | G125: head | I125: Reset Rate> | J125: =GM_INFO!C49 | K125: =GM_INFO!C49 -> 0.85 | M125: /head | Q125: =K125*ROUND(E125,0) -> 1235.05
C126: Levy trans-sheep | E126: =SUM(E210:E212) -> 703.288387 | G126: head | I126: Reset Rate> | J126: =GM_INFO!C50 | K126: =GM_INFO!C50 -> 0.2 | M126: /head | Q126: 140.6
C127: Levy trans-lambs | E127: =E213 -> 750 | G127: head | I127: Reset Rate> | J127: =GM_INFO!C51 | K127: =GM_INFO!C51 -> 1.5 | M127: /head | Q127: 1125
C128: SA sheep industry levy | E128: =E214 -> 1453.288387 | G128: head | I128: Reset Rate> | J128: =GM_INFO!C52 | K128: =GM_INFO!C52 -> 0.55 | M128: /head | Q128: 799.15
C143: Feed and Other Costs
C144: Hand Feeding | Q144: ='Cleanskin Sheep Input'!I84 -> 16630
C146: Insurance | E146: =E229 -> 541248.0462 | G146: value | I146: Reset Rate> | J146: =GM_INFO!B107 | K146: =GM_INFO!B107 -> 2 | M146: /$'000 | Q146: =K146/1000*E146 -> 1082.496092
C147: Water | E147: =$E$197 -> 2750 | G147: DSE's | I147: Reset Rate> | J147: =GM_INFO!h79 | K147: =GM_INFO!H79 -> 2.5 | M147: /DSE's | Q147: =K147*E147 -> 6875
C148: Veh Fuel, R&M | E148: 2750 | G148: DSE's | I148: Reset Rate> | J148: =GM_INFO!h80 | K148: =GM_INFO!H80 -> 0.8 | M148: /DSE's | Q148: 2200
C149: Other | E149: 2750 | G149: DSE's | I149: Reset Rate> | J149: =GM_INFO!h81 | K149: =GM_INFO!H81 -> 0.5 | M149: /DSE's | Q149: 1375
C170: TOTAL VARIABLE COSTS | Q170: =SUM(Q48:Q166) -> 67799.69609
C172: GROSS MARGIN TOTAL | Q172: =Q37-Q170 -> 172380.3039
C174: GROSS MARGIN/DSE | Q174: =Q172/Q6 -> 62.68374688
C194: PRODUCTION DATA
C196: Stocking rate (DSE/Ha) | E196: 6 | K196: Culling Rate (% from each group) | AA196: SHEEP GROSS MARGIN
C197: Total DSE's | E197: =O228 -> 2750 | K197: Age Group | M197: Ewes | O197: Wethers | AA197: PRIME LAMB -
C198: SHEEP GRAZING AREA | E198: =E197/E196 -> 458.3333333 | K198: 0.5 | M198: =AF213 -> 0 | O198: =AF227 -> 1
C199: Number of ewes mated | E199: ='Cleanskin Sheep Input'!E7 -> 1000 | K199: 1.5 | M199: 0.6784060158 | O199: 0
C200: Ram percentage | E200: ='Cleanskin Sheep Input'!E11 -> 0.025 | K200: 2.5 | M200: 0.05 | O200: 0
C201: Years rams kept | E201: ='Cleanskin Sheep Input'!E12 -> 4 | K201: 3.5 | M201: 0.05 | O201: 0
C202: Flock death rate | E202: ='Cleanskin Sheep Input'!E13 -> 0.03 | K202: 4.5 | M202: 0.05 | O202: 0 | AA202: Ewes mated | AC202: ='Cleanskin Sheep Input'!E7 -> 1000 | AF202: Ram % | AG202: =E200 -> 0.025
B203: =VLOOKUP(r[0]c3&"No Ops",CHOOSE({1,2},tbl_ops[Name]&tbl_ops[Category],INDIRECT("tbl_ops["&var_crop&"]")),2,0) | C203: Average weaning rate | E203: =AC205 -> 1.5 | K203: 5.5 | M203: 0.05 | O203: 0 | AA203: Age at 1st mating | AC203: ='Cleanskin Sheep Input'!E8 -> 1.5 | AF203: Price of rams | AG203: ='Cleanskin Sheep Input'!E30 -> 1500
B204: =VLOOKUP(r[0]c3&"No Ops",CHOOSE({1,2},tbl_ops[Name]&tbl_ops[Category],INDIRECT("tbl_ops["&var_crop&"]")),2,0) | C204: Age wethers sold | E204: =AG205 -> 0.5 | K204: 6.5 | M204: 1 | O204: 0 | AA204: Age ewes sold | AC204: ='Cleanskin Sheep Input'!E9 -> 6.5 | AF204: Years rams kept | AG204: =E201 -> 4
B205: =VLOOKUP(r[0]c3&"No Ops",CHOOSE({1,2},tbl_ops[Name]&tbl_ops[Category],INDIRECT("tbl_ops["&var_crop&"]")),2,0) | AA205: Av Weaning % | AC205: ='Cleanskin Sheep Input'!E10 -> 1.5 | AF205: Age wethers sold | AG205: 0.5
B206: =VLOOKUP(r[0]c3&"No Ops",CHOOSE({1,2},tbl_ops[Name]&tbl_ops[Category],INDIRECT("tbl_ops["&var_crop&"]")),2,0) | AA206: dse/ewe | AC206: 1.6 | AF206: Flock death rate | AG206: =E202 -> 0.03
B208: =VLOOKUP(r[0]c3&var_rain,CHOOSE({1,2},tbl_ops[Name]&tbl_ops[Rainfall],INDIRECT("tbl_ops["&var_crop&"]")),2,0)
B209: =VLOOKUP(r[0]c3&var_rain,CHOOSE({1,2},tbl_ops[Name]&tbl_ops[Rainfall],INDIRECT("tbl_ops["&var_crop&"]")),2,0) | C209: SALES | E209: Number | G209: Price/hd | I209: Total
B210: =VLOOKUP(r[0]c3&var_rain,CHOOSE({1,2},tbl_ops[Name]&tbl_ops[Rainfall],INDIRECT("tbl_ops["&var_crop&"]")),2,0) | C210: c.f.a ewes | E210: =AG220 -> 203.9596235 | G210: ='Cleanskin Sheep Input'!E18 -> 115 | I210: =ROUND(E210,0)*G210 -> 23460
B211: =VLOOKUP(r[0]c3&var_rain,CHOOSE({1,2},tbl_ops[Name]&tbl_ops[Rainfall],INDIRECT("tbl_ops["&var_crop&"]")),2,0) | C211: c.f.a rams | E211: =AG244 -> 5.788387001 | G211: ='Cleanskin Sheep Input'!E19 -> 80 | I211: 480 | AA211: EWES | AB211: OPENING | AC211: NATURAL | AD211: PURCHASES | AE211: DEATHS | AF211: % sold | AG211: SALES | AH211: CLOSING
C212: Ewe hoggets | E212: =AG222 -> 493.5403765 | G212: ='Cleanskin Sheep Input'!E20 -> 210 | I212: 103740 | AA212: AGE | AB212: NUMBERS | AC212: INCREASE | AF212: culled | AH212: NUMBERS
C213: Wether lambs | E213: =AG230 -> 750 | G213: ='Cleanskin Sheep Input'!E21 -> 150 | I213: 112500 | AA213: 0-0.5yr | AC213: =AC202*AC205/2 -> 750 | AE213: =AB213*$AG$206 -> 0 | AF213: 0 | AG213: =AC213*AF213 -> 0 | AH213: =AB213+AC213+AD213-AE213-AG213 -> 750
C214: TOTAL | E214: =SUM(E210:E213) -> 1453.288387 | G214: =I214/E214 -> 165.266579 | I214: =SUM(I210:I213) -> 240180 | AA214: 0.5-1.5yr | AB214: =AH213 -> 750 | AE214: 22.5 | AF214: =(AB214*(1-AG206)-AB215)/(AB214-AE214) -> 0.6784060158 | AG214: =AB214-AE214-AB215 -> 493.5403765 | AH214: 233.9596235
AA215: 1.5-2.5yr | AB215: =AC202/(1+(1-AG206)*(1-AF215)*(1+(1-AG206)*(1-AF216)*(1+(1-AG206)*(1-AF217)*(1+(1-AG206)*(1-AF218))))) -> 233.9596235 | AE215: 7.018788705 | AF215: 0.05 | AG215: =(AB215-AE215)*AF215 -> 11.34704174 | AH215: 215.5937931
AA216: 2.5-3.5yr | AB216: =AH215 -> 215.5937931 | AE216: 6.467813792 | AF216: 0.05 | AG216: =(AB216-AE216)*AF216 -> 10.45629896 | AH216: 198.6696803
AA217: 3.5-4.5yr | AB217: =AH216 -> 198.6696803 | AE217: 5.960090409 | AF217: 0.05 | AG217: =(AB217-AE217)*AF217 -> 9.635479495 | AH217: 183.0741104
E218: Number of Times | AA218: 4.5-5.5yr | AB218: =AH217 -> 183.0741104 | AE218: 5.492223312 | AF218: =IF(AC204=5.5,1,5%) -> 0.05 | AG218: =(AB218-AE218)*AF218 -> 8.879094354 | AH218: =AB218+AC218+AD218-AE218-AG218 -> 168.7027927
C219: STOCK HEALTH REQUIREMENTS | E219: Number | G219: Drench | I219: Vacc. | K219: Blowfly | M219: Lice | O219: DSE | AA219: 5.5-6.5yr | AB219: =AH218 -> 168.7027927 | AE219: 5.061083782 | AF219: =IF(AC204=6.5,100%,0) -> 1 | AG219: =(AB219-AE219)*AF219 -> 163.641709 | AH219: 0
C220: Ewes | E220: =ROUND('Cleanskin Sheep Input'!E7,0) -> 1000 | G220: ='Cleanskin Sheep Input'!F57 -> 1 | I220: ='Cleanskin Sheep Input'!G57 -> 1 | K220: ='Cleanskin Sheep Input'!H57 -> 0 | M220: ='Cleanskin Sheep Input'!I57 -> 0 | O220: 1.8 | AA220: Ewes | AB220: =SUM(AB215:AB219) -> 1000 | AC220: =SUM(AC213:AC217) -> 750 | AD220: =SUM(AD213:AD219) -> 0 | AE220: =SUM(AE213:AE218) -> 47.43891622 | AG220: =SUM(AG215:AG219) -> 203.9596235 | AH220: =SUM(AH214:AH218) -> 1000
C221: Ewe hoggets | E221: =ROUND(AB222,0) -> 750 | G221: ='Cleanskin Sheep Input'!F58 -> 1 | I221: ='Cleanskin Sheep Input'!G58 -> 1 | K221: ='Cleanskin Sheep Input'!H58 -> 0 | M221: ='Cleanskin Sheep Input'!I58 -> 0 | O221: 1.2 | AA221: d.s.e's | AB221: =AB214+AC206*(AB215+AB216+AB217+AB218) -> 2080.075532
C222: Wether weaners | E222: =ROUND(AB228,0) -> 0 | G222: ='Cleanskin Sheep Input'!F59 -> 1 | I222: ='Cleanskin Sheep Input'!G59 -> 1 | K222: ='Cleanskin Sheep Input'!H59 -> 0 | M222: ='Cleanskin Sheep Input'!I59 -> 0 | O222: 0.8 | AA222: Ewe Hoggets | AB222: =AB214 -> 750 | AG222: =AG214 -> 493.5403765 | AH222: =AH213 -> 750
C223: Lambs | E223: =ROUND(AC213+AC227,0) -> 1500 | G223: ='Cleanskin Sheep Input'!F60 -> 1 | I223: ='Cleanskin Sheep Input'!G60 -> 2 | K223: ='Cleanskin Sheep Input'!H60 -> 0 | M223: ='Cleanskin Sheep Input'!I60 -> 0 | O223: 0 | AA223: Ewe lambs | AG223: =AG213 -> 0
C224: Rams | E224: =ROUND(AB244,0) -> 25 | G224: ='Cleanskin Sheep Input'!F61 -> 2 | I224: ='Cleanskin Sheep Input'!G61 -> 1 | K224: ='Cleanskin Sheep Input'!H61 -> 0 | M224: ='Cleanskin Sheep Input'!I61 -> 0 | O224: 2 | AA224: WETHERS | AB224: OPENING | AC224: NATURAL | AD224: PURCHASES | AE224: DEATHS | AF224: % sold | AG224: SALES | AH224: CLOSING
AA225: AGE | AB225: NUMBERS | AC225: INCREASE | AF225: culled | AH225: NUMBERS
AA227: 0-0.5yr | AC227: =AC202*AC205/2 -> 750 | AE227: =AB227*$AG$206 -> 0 | AF227: =IF(AG205=0.5,100%,0) -> 1 | AG227: =AC227*AF227 -> 750 | AH227: =AB227+AC227+AD227-AE227-AG227 -> 0
C228: TOTAL | E228: =SUM(E220:E227) -> 3275 | G228: =SUMPRODUCT($E$220:$E$227,G220:G227) -> 3300 | I228: =SUMPRODUCT($E$220:$E$227,I220:I227) -> 4775 | K228: =SUMPRODUCT($E$220:$E$227,K220:K227) -> 0 | M228: =SUMPRODUCT($E$220:$E$227,M220:M227) -> 0 | O228: =SUMPRODUCT($E$220:$E$227,O220:O227) -> 2750 | AA228: 0.5-1.5yr | AB228: =AH227 -> 0 | AE228: =AB228*$AG$206 -> 0 | AF228: =IF(AG205=1.5,100%,0) -> 0 | AG228: =(AB228-AE228)*AF228 -> 0 | AH228: =AB228+AC228+AD228-AE228-AG228 -> 0
C229: TOTAL VALUE | E229: =E228*G214 -> 541248.0462 | AA229: 1.5-2.5 | AB229: =AH228 -> 0 | AE229: =AB229*$AG$206 -> 0 | AF229: =IF(AG205=2.5,100%,0) -> 0 | AG229: =(AB229-AE229)*AF229 -> 0
AA230: Wth lambs | AB230: =AB227 -> 0 | AC230: =AC227 -> 750 | AD230: =AD227 -> 0 | AE230: 0 | AG230: =AG227 -> 750 | AH230: 0
AA231: Wth hgts | AB231: 0 | AC231: 0 | AD231: 0 | AE231: 0 | AG231: 0 | AH231: 0
AA232: Wethers | AB232: 0 | AC232: 0 | AD232: 0 | AE232: 0 | AG232: 0 | AH232: 0
AA233: d.s.e's | AB233: =AB231+AB232 -> 0
AA236: RAMS | AB236: OPENING | AC236: NATURAL | AD236: PURCHASES | AE236: DEATHS | AF236: % sold | AG236: SALES | AH236: CLOSING
AA237: AGE | AB237: NUMBERS | AC237: INCREASE | AF237: culled | AH237: NUMBERS
AA239: 0.5-1.5yr | AD239: =AB240/(1-AF239) -> 6.538387001 | AH239: =AB239+AC239+AD239-AE239-AG239 -> 6.538387001
AA240: 1.5-2.5yr | AB240: =IF(AG204=3,(AC202*AG202)/(1+(1-AG206)*(1-AF240)*(1+(1-AG206)*(1-AF241)*(1+(1-AG206)*(1-AF242)))),IF(AG204=4,(AC202*AG202)/(1+(1-AG206)*(1-AF240)*(1+(1-AG206)*(1-AF241)*(1+(1-AG206)*(1-AF242)*(1+(1-AG206)*(1-AF243))))),0)) -> 6.538387001 | AE240: =AB240*$AG$206 -> 0.19615161 | AF240: 0 | AG240: =(SUM(AB240:AD240)-AE240)*AF240 -> 0 | AH240: =AB240+AC240+AD240-AE240-AG240 -> 6.342235391
AA241: 2.5-3.5yr | AB241: =AH240 -> 6.342235391 | AE241: =AB241*$AG$206 -> 0.1902670617 | AF241: 0 | AG241: =(SUM(AB241:AD241)-AE241)*AF241 -> 0 | AH241: =AB241+AC241+AD241-AE241-AG241 -> 6.151968329
AA242: 3.5-4.5yr | AB242: =AH241 -> 6.151968329 | AE242: =AB242*$AG$206 -> 0.1845590499 | AF242: =IF(AG204=3,100%,0) -> 0 | AG242: =(SUM(AB242:AD242)-AE242)*AF242 -> 0 | AH242: =AB242+AC242+AD242-AE242-AG242 -> 5.967409279
AA243: 4.5-5.5yr | AB243: =AH242 -> 5.967409279 | AE243: =AB243*$AG$206 -> 0.1790222784 | AF243: =IF(AG204=4,100%,0) -> 1 | AG243: =AB243-AE243 -> 5.788387001 | AH243: =AB243+AC243+AD243-AE243-AG243 -> 0
G244: Hay Cost ($/T) | I244: Kg Fed per Week | K244: No of Weeks Feeding | M244: Total Cost ($) | AB244: =AB239+AB240+AB241+AB242+AB243 -> 25 | AD244: =AD239+AD240+AD241+AD242+AD243 -> 6.538387001 | AE244: =AE239+AE240+AE241+AE242+AE243 -> 0.75 | AG244: =AG239+AG240+AG241+AG242+AG243 -> 5.788387001 | AH244: =AH239+AH240+AH241+AH242+AH243 -> 25
C245: FEEDING | E245: Number | AA245: d.s.e's | AB245: =AB244*2 -> 50
C246: Ewes | E246: ='Cleanskin Sheep Input'!E69 -> 1000 | G246: ='Cleanskin Sheep Input'!F69 -> 260 | I246: ='Cleanskin Sheep Input'!G69 -> 2 | K246: ='Cleanskin Sheep Input'!H69 -> 10 | M246: =(E246*G246*I246*K246)/1000 -> 5200
C247: Weaner | E247: ='Cleanskin Sheep Input'!E70 -> 0 | G247: ='Cleanskin Sheep Input'!F70 -> 0 | I247: ='Cleanskin Sheep Input'!G70 -> 0 | K247: ='Cleanskin Sheep Input'!H70 -> 0 | M247: =(E247*G247*I247*K247)/1000 -> 0
C248: Ewe hoggets | E248: ='Cleanskin Sheep Input'!E71 -> 0 | G248: ='Cleanskin Sheep Input'!F71 -> 0 | I248: ='Cleanskin Sheep Input'!G71 -> 0 | K248: ='Cleanskin Sheep Input'!H71 -> 0 | M248: 0
C249: Lambs | E249: ='Cleanskin Sheep Input'!E72 -> 0 | G249: ='Cleanskin Sheep Input'!F72 -> 0 | I249: ='Cleanskin Sheep Input'!G72 -> 0 | K249: ='Cleanskin Sheep Input'!H72 -> 0 | M249: 0
C250: Rams | E250: ='Cleanskin Sheep Input'!E73 -> 0 | G250: ='Cleanskin Sheep Input'!F73 -> 0 | I250: ='Cleanskin Sheep Input'!G73 -> 0 | K250: ='Cleanskin Sheep Input'!H73 -> 0 | M250: 0
G251: Grain Cost ($/T) | I251: Kg Fed per Week | K251: No of Weeks Feeding | M251: Total Cost ($)
E252: Number
C253: Ewes | E253: ='Cleanskin Sheep Input'!E78 -> 1000 | G253: ='Cleanskin Sheep Input'!F78 -> 320 | I253: ='Cleanskin Sheep Input'!G78 -> 2.4 | K253: ='Cleanskin Sheep Input'!H78 -> 10 | M253: =(E253*G253*I253*K253)/1000 -> 7680
C254: Weaner | E254: ='Cleanskin Sheep Input'!E79 -> 750 | G254: ='Cleanskin Sheep Input'!F79 -> 500 | I254: ='Cleanskin Sheep Input'!G79 -> 1 | K254: ='Cleanskin Sheep Input'!H79 -> 10 | M254: =(E254*G254*I254*K254)/1000 -> 3750
C255: Ewe hoggets | E255: ='Cleanskin Sheep Input'!E80 -> 0 | G255: ='Cleanskin Sheep Input'!F80 -> 0 | I255: ='Cleanskin Sheep Input'!G80 -> 0 | K255: ='Cleanskin Sheep Input'!H80 -> 0 | M255: 0
C256: Lambs | E256: ='Cleanskin Sheep Input'!E81 -> 0 | G256: ='Cleanskin Sheep Input'!F81 -> 0 | I256: ='Cleanskin Sheep Input'!G81 -> 0 | K256: ='Cleanskin Sheep Input'!H81 -> 0 | M256: 0
C257: Rams | E257: ='Cleanskin Sheep Input'!E82 -> 0 | G257: ='Cleanskin Sheep Input'!F82 -> 0 | I257: ='Cleanskin Sheep Input'!G82 -> 0 | K257: ='Cleanskin Sheep Input'!H82 -> 0 | M257: 0
C258: TOTAL FEED COST | M258: =SUM(M246:M250,M253:M257) -> 16630
C263: GM SENSITIVITY | AB263: Water,Fuel,Other | AE263: =SUM(Q146:Q149) -> 11532.49609 | AF263: Lamb Costs | AG263: No: | AH263: per head
C264: Gross Margin/DSE | E264: Average Weaning % | AB264: Animal health | AE264: =((E220*G220+E224*G224+AB215*G221)*K90+(E220*I220+E224*I224+AB215*I221)*K91+(E220*K220+E224*K224+AB215*K221)*K93) -> 1102.741115
G265: 1.2 | I265: 1.35 | K265: 1.5 | M265: 1.65 | O265: 1.8 | Q265: 1.9 | AB265: Stock Purchase | AE265: =Q105 -> 10500 | AF265: Marking | AG265: =E199*G265 -> 1200 | AH265: =SUM(K76:K77) -> 1.58
E266: 130 | G266: =(($E$199*(G$265*100)*$E266/200+($E$199*(G$265*100)/200-$AB$215-$AE$214)*$G$212)*(1-$K$124)+SUM($I$210:$I$211)-$AE$273-($E$199*(G$265*100)*$AH$270/100)-($E$199*(G$265*100)/200-$AB$215-$AE$214)*$AC$285)/$E$197 -> 41.43632411 | I266: 49.50414229 | K266: 57.57196047 | M266: 65.63977866 | O266: 73.70759684 | Q266: 79.08614229 | AB266: Freight | AC266: sheep | AE266: =SUM(Q119:Q120) -> 840 | AF266: Animal health | AH266: =G223*K90+I223*K91+K223*K93 -> 1.128
E267: 135 | G267: 42.46177866 | I267: 50.65777866 | K267: 58.85377866 | M267: 67.04977866 | O267: 75.24577866 | Q267: 80.70977866 | AC267: Wool | AF267: Freight | AH267: =K122/2 -> 2
C268: Average Sheep Sale Price($/hd) | E268: 140 | G268: 43.4872332 | I268: 51.81141502 | K268: 60.13559684 | M268: 68.45977866 | O268: 76.78396047 | Q268: 82.33341502 | AB268: Commission on livestock sales | AE268: =SUM(I210:I211)*K124 -> 1436.4 | AF268: Yard Fees | AH268: =K125/2 -> 0.425
E269: 145 | G269: 44.51268775 | I269: 52.96505138 | K269: 61.41741502 | M269: 69.86977866 | O269: 78.32214229 | Q269: 83.95705138 | AB269: Yard fees | AE269: =SUM(E210:E211)*K125 -> 178.2858089 | AF269: Levies | AH269: =SUM(K127:K128)/2 -> 1.025
E270: 150 | G270: 45.53814229 | I270: 54.11868775 | K270: 62.6992332 | M270: 71.27977866 | O270: 79.86032411 | Q270: 85.58068775 | AB270: Levies | AE270: =SUM(E210:E211)*K126 -> 41.9496021 | AF270: TOTAL | AH270: =SUM(AH265:AH269) -> 6.158
E271: 155 | G271: 46.56359684 | I271: 55.27232411 | K271: 63.98105138 | M271: 72.68977866 | O271: 81.39850593 | Q271: 87.20432411 | AB271: SASheep Industry | AE271: =SUM(E210:E211)*K128 -> 115.3614058
E272: 160 | G272: 47.58905138 | I272: 56.42596047 | K272: 65.26286956 | M272: 74.09977866 | O272: 82.93668775 | Q272: 88.82796047 | AB272: Feed & other costs | AE272: =M253+M246+AB215*G254*I254*K254/1000 -> 14049.79812
E273: 165 | G273: 48.61450593 | I273: 57.57959684 | K273: 66.54468775 | M273: 75.50977866 | O273: 84.47486956 | Q273: 90.45159684 | AE273: =SUM(AE263:AE272) -> 39797.03214
E274: 170 | G274: 49.63996047 | I274: 58.7332332 | K274: 67.82650593 | M274: 76.91977866 | O274: 86.01305138 | Q274: 92.0752332
E275: 175 | G275: 50.66541502 | I275: 59.88686956 | K275: 69.10832411 | M275: 78.32977866 | O275: 87.5512332 | Q275: 93.69886956
E276: 180 | G276: 51.69086956 | I276: 61.04050593 | K276: 70.39014229 | M276: 79.73977866 | O276: 89.08941502 | Q276: 95.32250593
AC277: Sale Ewe Hog Cost
C279: FLOCK STRUCTURE | E279: This table shows the number of merino sheep in each age group at mating | AB279: Feed | AC279: =G254*K254/1000 -> 5
E280: Age Group | AC280: =G221*K90+I221*K91+K221*K92+M221*K93 -> 0.864
C281: Class of Sheep | E281: 0.5 y.o. | G281: 1.5 y.o. | I281: 2.5 y.o. | K281: 3.5 y.o. | M281: 4.5 y.o. | O281: 5.5 y.o. | Q281: 6.5 y.o. | AC281: =K121 -> 4
C282: Ewes | E282: =$AB214 -> 750 | G282: =$AB215 -> 233.9596235 | I282: =$AB216 -> 215.5937931 | K282: =$AB217 -> 198.6696803 | M282: =$AB218 -> 183.0741104 | O282: =$AB219 -> 168.7027927 | Q282: 0 | AC282: =K125 -> 0.85
C283: Wethers | E283: =$AB228 -> 0 | G283: =$AB229 -> 0 | I283: 0 | K283: 0 | M283: 0 | O283: 0 | Q283: 0 | AC283: =K126 -> 0.2
C284: Rams | G284: =$AB240 -> 6.538387001 | I284: =$AB241 -> 6.342235391 | K284: =$AB242 -> 6.151968329 | M284: =$AB243 -> 5.967409279 | O284: 0 | Q284: 0 | AC284: =K128 -> 0.55
AB285: Total | AC285: =SUM(AC279:AC284) -> 11.464

Sheet Beef Input (hidden)
C2: ="BEEF GROSS MARGIN - "&TEXT(m_year,"0000") -> BEEF GROSS MARGIN - 2019
C4: GENERAL INFORMATION
C5: Cells with yellow highlight can be changed. No allowance has been made for pasture expenses such as seed, fertiliser and chemicals. Refer to pasture gross margins in the “Cropping Gross Margin Plan” for annual and perennial pasture costs. Use the livestock gross margin per DSE as income for the pasture gross margin.
C7: Breeding Cow | E7: 14.5 | F7: DSE
C8: Calf Weaning | E8: 0.9
C9: Herd Deaths | E9: 0.03
C10: Cows c.f.a | E10: 10 | F10: years old
C11: Carry over calf | E11: 8 | F11: DSE
C12: Weaned @ | E12: 8 | F12: months
C13: Heifers mated @ | E13: 15 | F13: months
C14: Stocking rate | E14: 5 | F14: DSE/ha
C15: Cow breeding herd | E15: 100
C16: Bull Percentage | E16: 0.03
C17: Vealers bought for | E17: 785
C18: sold for | E18: 1500
C19: after | E19: 3 | F19: years
C20: carryover to heavier weights | E20: 0.5 | F20: including heifer replacements
C21: months extra carry over | E21: 6
C22: Drench cows | E22: 2 | F22: x
C23: Drench calves | E23: 1 | F23: x
C25: Supplementary Feed
C26: Hay | E26: 68 | F26: tonne
C27: Grain | E27: 0 | F27: tonne

Sheet Beef (hidden)
C1: BEEF
C2: =UPPER(Var_Animal)&" GROSS MARGIN - "&TEXT(m_year,"0000") -> BEEF GROSS MARGIN - 2019
C4: ASSUMPTIONS | E4: (Breeding young cattle for local trade, grass fattened)
C7: Breeding Cow | E7: ='Beef Input'!$E$7 -> 14.5 | G7: DSE | O7: Cow breeding herd | Q7: ='Beef Input'!E15 -> 100
C8: Calf Weaning | E8: ='Beef Input'!E8 -> 0.9 | O8: Cows replaced per year | Q8: =(Q7/E10)+(Q7*E9) -> 13
C9: Herd Deaths | E9: ='Beef Input'!E9 -> 0.03 | O9: Bull Percentage | Q9: ='Beef Input'!E16 -> 0.03
C10: Cows c.f.a | E10: ='Beef Input'!E10 -> 10 | G10: years old | O10: Bulls bought for | Q10: ='Beef Input'!E17 -> 785
C11: Uses | E11: =Q8 -> 13 | G11: heifers as replacements | O11: sold for | Q11: ='Beef Input'!E18 -> 1500
C12: Carry over calf | E12: ='Beef Input'!E11 -> 8 | G12: DSE | O12: after | Q12: ='Beef Input'!E19 -> 3 | R12: years
C13: Weaned @ | E13: ='Beef Input'!E12 -> 8 | G13: months | O13: carryover to heavier weights | Q13: ='Beef Input'!E20 -> 0.5
C14: Heifers mated @ | E14: ='Beef Input'!E13 -> 15 | G14: months | O14: months extra carry over | Q14: ='Beef Input'!E21 -> 6
C15: Stocking rate | E15: ='Beef Input'!E14 -> 5 | G15: DSE/ha | O15: Herd DSE | Q15: =(Q7*E7)+(Q7*Q9*20)+(E11*E12*((E14-E13)/12))+(E11*E7*(24-E14)/12)+(E36*E12) -> 1960.041667
C16: Area required | E16: =Q15/E15 -> 392.0083333 | G16: hectares | O16: Drench cows | Q16: ='Beef Input'!E22 -> 2
O17: Drench calves | Q17: ='Beef Input'!E23 -> 1
C32: INCOME | Q32: $
I34: kg liveweight | M34: /kg L/W
B35: Stock Sales | D35: vealers | E35: =(1-Q13)*(Q7*E8) -> 45 | G35: Reset Rate> | H35: =GM_INFO!B120 | I35: =GM_INFO!B120 -> 270 | K35: Reset Rate> | L35: =GM_INFO!D120 | M35: =GM_INFO!D120 -> 3 | Q35: =M35*I35*E35 -> 36450
D36: yearlings | E36: =ROUND(((Q7*E8)-E35-E11)*(1-E9),0) -> 31 | G36: Reset Rate> | H36: =GM_INFO!B121 | I36: =GM_INFO!B121 -> 400 | K36: Reset Rate> | L36: =GM_INFO!D121 | M36: =GM_INFO!D121 -> 2.8 | Q36: =M36*I36*E36 -> 34720
B37: Culls | D37: cows | E37: =Q8*(1-E9)^E10 -> 9.58651365 | G37: Reset Rate> | H37: =GM_INFO!B122 | I37: =GM_INFO!B122 -> 550 | K37: Reset Rate> | L37: =GM_INFO!D122 | M37: =GM_INFO!D122 -> 1.8 | Q37: 9490.648513
D38: bull | E38: =Q7*Q9/Q12 -> 1 | Q38: ='Beef Input'!E18*E38 -> 1500
C41: Gross Income | Q41: =SUM(Q35:Q38) -> 82160.64851
C46: VARIABLE COSTS
C75: Bull Purchases | K75: Rate
C76: No. of Bulls | E76: =E38 -> 1 | G76: bulls | I76: Reset Rate> | J76: ='Beef Input'!E17 | K76: ='Beef Input'!E17 -> 785 | M76: total | Q76: =K76*ROUND(E76,0) -> 785
C89: Veterinary & Medicines
C90: Drench - cows 2x calves 1x | E90: =(Q7*Q16)+Q17*(Q7*E8) -> 290 | G90: head | I90: Reset Rate> | J90: =GM_INFO!d62 | K90: =GM_INFO!D62 -> 4.1125 | M90: /head | Q90: =K90*ROUND(E90,0) -> 1192.625
C91: Ear Tags | E91: =Q7*E8 -> 90 | G91: head | I91: Reset Rate> | J91: =GM_INFO!d73 | K91: =GM_INFO!D73 -> 4.75 | M91: /tag | Q91: 427.5
C92: Lice Treatments | E92: =Q7 -> 100 | G92: head | I92: Reset Rate> | J92: =GM_INFO!d62 | K92: =GM_INFO!D62 -> 4.1125 | M92: /dose | Q92: 411.25
C93: Vaccine (5 in 1) | E93: =Q7*E8*2 -> 180 | G93: head | I93: Reset Rate> | J93: =GM_INFO!d64 | K93: =GM_INFO!D64 -> 0.76 | M93: /dose | Q93: 136.8
C117: Sale Costs and other
C119: Insurance | E119: =(Q7*800)+(3*2500)+(Q7*E8*350) -> 119000 | I119: Reset Rate> | J119: =GM_INFO!B107 | K119: =GM_INFO!B107 -> 2 | M119: /$1000 | Q119: =K119*ROUND(E119,0)/1000 -> 238
C120: Water | E120: =Q15 -> 1960.041667 | G120: dse's | I120: Reset Rate> | J120: =GM_INFO!i79 | K120: =GM_INFO!I79 -> 2.5 | Q120: =K120*ROUND(E120,0) -> 4900
C121: Veh Fuel, R&M | E121: =Q15 -> 1960.041667 | G121: dse's | I121: Reset Rate> | J121: =GM_INFO!i80 | K121: =GM_INFO!I80 -> 1 | Q121: 1960
C122: Other | E122: =Q15 -> 1960.041667 | G122: dse's | I122: Reset Rate> | J122: =GM_INFO!i81 | K122: =GM_INFO!I81 -> 0.5 | Q122: 980
C123: Transport: | E123: =SUM(E35:E38) -> 86.58651365 | G123: head | I123: Reset Rate> | J123: =GM_INFO!d76 | K123: =GM_INFO!D76 -> 30 | M123: /head | Q123: =K123*E123 -> 2597.595409
C125: Commission | I125: Reset Rate> | J125: =GM_INFO!C48 | K125: =GM_INFO!C48 -> 0.06 | Q125: =Q41*K125 -> 4929.638911
C126: Levies | I126: Reset Rate> | J126: =GM_INFO!d77 | K126: =GM_INFO!D77 -> 5 | M126: /head | Q126: =K126*SUM(E35:E38) -> 432.9325682
C143: Supplementary Feed
C145: Grain
C146: Hay | E146: ='Beef Input'!E26 -> 68 | G146: tonne | I146: Reset Rate> | J146: =GM_INFO!d82 | K146: =GM_INFO!D82 -> 260 | M146: /tonne | Q146: =K146*E146 -> 17680
C147: Grain | E147: ='Beef Input'!E27 -> 0 | G147: tonne | I147: Reset Rate> | J147: =GM_INFO!d83 | K147: =GM_INFO!D83 -> 320 | M147: /tonne | Q147: =K147*E147 -> 0
C148: Blocks/ Mineral Mix | E148: =Q7 -> 100 | G148: @ | I148: Reset Rate> | J148: =GM_INFO!d85 | K148: =GM_INFO!D85 -> 5 | M148: /head | Q148: 500
C170: TOTAL VARIABLE COSTS | Q170: =SUM(Q48:Q166) -> 37171.34189
C172: GROSS MARGIN TOTAL | Q172: =Q41-Q170 -> 44989.30662
C174: GROSS MARGIN/DSE | Q174: =$Q$172/Q15 -> 22.95323992
C176: GROSS MARGIN/COW | Q176: =$Q$172/Q7 -> 449.8930662
C178: GROSS MARGIN/HA | Q178: =$Q$172/E16 -> 114.7661996
B203: =VLOOKUP(r[0]c3&"No Ops",CHOOSE({1,2},tbl_ops[Name]&tbl_ops[Category],INDIRECT("tbl_ops["&var_crop&"]")),2,0)
B204: =VLOOKUP(r[0]c3&"No Ops",CHOOSE({1,2},tbl_ops[Name]&tbl_ops[Category],INDIRECT("tbl_ops["&var_crop&"]")),2,0)
B205: =VLOOKUP(r[0]c3&"No Ops",CHOOSE({1,2},tbl_ops[Name]&tbl_ops[Category],INDIRECT("tbl_ops["&var_crop&"]")),2,0)
B206: =VLOOKUP(r[0]c3&"No Ops",CHOOSE({1,2},tbl_ops[Name]&tbl_ops[Category],INDIRECT("tbl_ops["&var_crop&"]")),2,0)
B208: =VLOOKUP(r[0]c3&var_rain,CHOOSE({1,2},tbl_ops[Name]&tbl_ops[Rainfall],INDIRECT("tbl_ops["&var_crop&"]")),2,0)
B209: =VLOOKUP(r[0]c3&var_rain,CHOOSE({1,2},tbl_ops[Name]&tbl_ops[Rainfall],INDIRECT("tbl_ops["&var_crop&"]")),2,0)
B210: =VLOOKUP(r[0]c3&var_rain,CHOOSE({1,2},tbl_ops[Name]&tbl_ops[Rainfall],INDIRECT("tbl_ops["&var_crop&"]")),2,0)
B211: =VLOOKUP(r[0]c3&var_rain,CHOOSE({1,2},tbl_ops[Name]&tbl_ops[Rainfall],INDIRECT("tbl_ops["&var_crop&"]")),2,0)
C259: GM SENSITIVITY
C260: Gross Margin | E260: Per Cow ($/kg Liveweight(yearlings/steers))
G261: 2.5 | I261: 2.7 | K261: 2.9 | M261: 3.1 | O261: 3.3
E262: 0.6 | G262: =(((($Q$7*$E262*$Q$13-$E$11-1)*G$261*$I$36)+(($Q$7*$E262)*(1-$Q$13)*G$261*$I$35)+($E$37*$I$37*$M$37)+$Q$38)-$Q$170)/$Q$7 -> 100.6930662 | I262: =(((($Q$7*$E262*$Q$13-$E$11-1)*I$261*$I$36)+(($Q$7*$E262)*(1-$Q$13)*I$261*$I$35)+($E$37*$I$37*$M$37)+$Q$38)-$Q$170)/$Q$7 -> 129.6930662 | K262: =(((($Q$7*$E262*$Q$13-$E$11-1)*K$261*$I$36)+(($Q$7*$E262)*(1-$Q$13)*K$261*$I$35)+($E$37*$I$37*$M$37)+$Q$38)-$Q$170)/$Q$7 -> 158.6930662 | M262: =(((($Q$7*$E262*$Q$13-$E$11-1)*M$261*$I$36)+(($Q$7*$E262)*(1-$Q$13)*M$261*$I$35)+($E$37*$I$37*$M$37)+$Q$38)-$Q$170)/$Q$7 -> 187.6930662 | O262: =(((($Q$7*$E262*$Q$13-$E$11-1)*O$261*$I$36)+(($Q$7*$E262)*(1-$Q$13)*O$261*$I$35)+($E$37*$I$37*$M$37)+$Q$38)-$Q$170)/$Q$7 -> 216.6930662
E263: 0.65 | G263: =(((($Q$7*$E263*$Q$13-$E$11-1)*G$261*$I$36)+(($Q$7*$E263)*(1-$Q$13)*G$261*$I$35)+($E$37*$I$37*$M$37)+$Q$38)-$Q$170)/$Q$7 -> 142.5680662 | I263: =(((($Q$7*$E263*$Q$13-$E$11-1)*I$261*$I$36)+(($Q$7*$E263)*(1-$Q$13)*I$261*$I$35)+($E$37*$I$37*$M$37)+$Q$38)-$Q$170)/$Q$7 -> 174.9180662 | K263: =(((($Q$7*$E263*$Q$13-$E$11-1)*K$261*$I$36)+(($Q$7*$E263)*(1-$Q$13)*K$261*$I$35)+($E$37*$I$37*$M$37)+$Q$38)-$Q$170)/$Q$7 -> 207.2680662 | M263: =(((($Q$7*$E263*$Q$13-$E$11-1)*M$261*$I$36)+(($Q$7*$E263)*(1-$Q$13)*M$261*$I$35)+($E$37*$I$37*$M$37)+$Q$38)-$Q$170)/$Q$7 -> 239.6180662 | O263: =(((($Q$7*$E263*$Q$13-$E$11-1)*O$261*$I$36)+(($Q$7*$E263)*(1-$Q$13)*O$261*$I$35)+($E$37*$I$37*$M$37)+$Q$38)-$Q$170)/$Q$7 -> 271.9680662
C264: Weaning % | E264: 0.7 | G264: 184.4430662 | I264: 220.1430662 | K264: 255.8430662 | M264: 291.5430662 | O264: 327.2430662
E265: 0.75 | G265: 226.3180662 | I265: 265.3680662 | K265: 304.4180662 | M265: 343.4680662 | O265: 382.5180662
E266: 0.8 | G266: 268.1930662 | I266: 310.5930662 | K266: 352.9930662 | M266: 395.3930662 | O266: 437.7930662
E267: 0.85 | G267: 310.0680662 | I267: 355.8180662 | K267: 401.5680662 | M267: 447.3180662 | O267: 493.0680662
E268: 0.9 | G268: 351.9430662 | I268: 401.0430662 | K268: 450.1430662 | M268: 499.2430662 | O268: 548.3430662
E269: 0.95 | G269: 393.8180662 | I269: 446.2680662 | K269: 498.7180662 | M269: 551.1680662 | O269: 603.6180662
E270: 1 | G270: 435.6930662 | I270: 491.4930662 | K270: 547.2930662 | M270: 603.0930662 | O270: 658.8930662
C275: GM SENSITIVITY
C276: Gross Margin | E276: Per DSE ($/kg Liveweight(yearlings/steers))
G277: 2.5 | I277: 2.7 | K277: 2.9 | M277: 3.1 | O277: 3.3
E278: 0.6 | G278: =(((($Q$7*$E278*$Q$13-$E$11-1)*G$277*$I$36)+(($Q$7*$E278)*(1-$Q$13)*G$277*$I$35)+($E$37*$I$37*$M$37)+$Q$38)-$Q$170)/$Q$15 -> 5.137292128 | I278: =(((($Q$7*$E278*$Q$13-$E$11-1)*I$277*$I$36)+(($Q$7*$E278)*(1-$Q$13)*I$277*$I$35)+($E$37*$I$37*$M$37)+$Q$38)-$Q$170)/$Q$15 -> 6.616852511 | K278: =(((($Q$7*$E278*$Q$13-$E$11-1)*K$277*$I$36)+(($Q$7*$E278)*(1-$Q$13)*K$277*$I$35)+($E$37*$I$37*$M$37)+$Q$38)-$Q$170)/$Q$15 -> 8.096412895 | M278: =(((($Q$7*$E278*$Q$13-$E$11-1)*M$277*$I$36)+(($Q$7*$E278)*(1-$Q$13)*M$277*$I$35)+($E$37*$I$37*$M$37)+$Q$38)-$Q$170)/$Q$15 -> 9.575973278 | O278: =(((($Q$7*$E278*$Q$13-$E$11-1)*O$277*$I$36)+(($Q$7*$E278)*(1-$Q$13)*O$277*$I$35)+($E$37*$I$37*$M$37)+$Q$38)-$Q$170)/$Q$15 -> 11.05553366
E279: 0.65 | G279: =(((($Q$7*$E279*$Q$13-$E$11-1)*G$277*$I$36)+(($Q$7*$E279)*(1-$Q$13)*G$277*$I$35)+($E$37*$I$37*$M$37)+$Q$38)-$Q$170)/$Q$15 -> 7.273726302 | I279: =(((($Q$7*$E279*$Q$13-$E$11-1)*I$277*$I$36)+(($Q$7*$E279)*(1-$Q$13)*I$277*$I$35)+($E$37*$I$37*$M$37)+$Q$38)-$Q$170)/$Q$15 -> 8.92420142 | K279: =(((($Q$7*$E279*$Q$13-$E$11-1)*K$277*$I$36)+(($Q$7*$E279)*(1-$Q$13)*K$277*$I$35)+($E$37*$I$37*$M$37)+$Q$38)-$Q$170)/$Q$15 -> 10.57467654 | M279: =(((($Q$7*$E279*$Q$13-$E$11-1)*M$277*$I$36)+(($Q$7*$E279)*(1-$Q$13)*M$277*$I$35)+($E$37*$I$37*$M$37)+$Q$38)-$Q$170)/$Q$15 -> 12.22515165 | O279: =(((($Q$7*$E279*$Q$13-$E$11-1)*O$277*$I$36)+(($Q$7*$E279)*(1-$Q$13)*O$277*$I$35)+($E$37*$I$37*$M$37)+$Q$38)-$Q$170)/$Q$15 -> 13.87562677
C280: Weaning % | E280: 0.7 | G280: 9.410160477 | I280: 11.23155033 | K280: 13.05294018 | M280: 14.87433003 | O280: 16.69571988
E281: 0.75 | G281: 11.54659465 | I281: 13.53889924 | K281: 15.53120382 | M281: 17.52350841 | O281: 19.51581299
E282: 0.8 | G282: 13.68302883 | I282: 15.84624815 | K282: 18.00946746 | M282: 20.17268678 | O282: 22.3359061
E283: 0.85 | G283: 15.819463 | I283: 18.15359705 | K283: 20.48773111 | M283: 22.82186516 | O283: 25.15599921
E284: 0.9 | G284: 17.95589717 | I284: 20.46094596 | K284: 22.96599475 | M284: 25.47104354 | O284: 27.97609232
E285: 0.95 | G285: 20.09233135 | I285: 22.76829487 | K285: 25.44425839 | M285: 28.12022191 | O285: 30.79618543
E286: 1 | G286: 22.22876552 | I286: 25.07564378 | K286: 27.92252203 | M286: 30.76940029 | O286: 33.61627854

Sheet Beef Trading Input (hidden)
C2: ="BEEF TRADING GROSS MARGIN - "&TEXT(m_year,"0000") -> BEEF TRADING GROSS MARGIN - 2019
C4: GENERAL INFORMATION
C5: Cells with yellow highlight can be changed. No allowance has been made for pasture expenses such as seed, fertiliser and chemicals. Refer to pasture gross margins in the “Cropping Gross Margin Plan” for annual and perennial pasture costs. Use the livestock gross margin per DSE as income for the pasture gross margin.
C7: Vealers | E7: 8 | F7: DSE
C8: Yearlings | E8: 12 | F8: DSE
C9: Herd Deaths | E9: 0.02
C10: Purchases-Vealers | E10: 200
C14: Stocking rate | E14: 10 | F14: DSE/ha
C18: Stock Sales-vealers | E18: 100
C20: Feeds | E20: 35 | F20: kg/DSE hay equivalent supplement
C22: Drench vealers | E22: 1 | F22: x
C25: Supplementary Feed
C27: Grain | E27: 0 | F27: tonne

Sheet Beef Trading (hidden)
C1: BEEF TRADING
C2: =UPPER(Var_Animal)&" GROSS MARGIN - "&TEXT(m_year,"0000") -> BEEF TRADING GROSS MARGIN - 2019
C4: ASSUMPTIONS | E4: (Finishing young cattle for local trade, grass fattened)
C9: Herd Deaths | E9: ='Beef Trading Input'!E9 -> 0.02
C10: Vealers | E10: ='Beef Trading Input'!E7 -> 8 | G10: DSE
C11: Yearlings | E11: ='Beef Trading Input'!E8 -> 12 | G11: DSE
C13: Herd DSE | E13: =AVERAGE(E10:E11)*E36 -> 960
C14: Drench vealers | E14: ='Beef Trading Input'!E22 -> 1
C15: Stocking rate | E15: ='Beef Trading Input'!E14 -> 10 | G15: DSE/ha
C16: Area required | E16: =E13/E15 -> 96 | G16: hectares
C17: Feeds | E17: ='Beef Trading Input'!E20 -> 35 | G17: kg/DSE hay equivalent supplement
C32: INCOME | Q32: $
I34: kg liveweight | M34: /kg L/W
B35: Stock Sales | D35: vealers | E35: ='Beef Trading Input'!E18 -> 100 | G35: Reset Rate> | H35: =GM_INFO!B125 | I35: =GM_INFO!B125 -> 280 | K35: Reset Rate> | L35: =GM_INFO!D120 | M35: =GM_INFO!D120 -> 3 | Q35: =M35*I35*E35 -> 84000
D36: yearlings | E36: =ROUND(E76-(E76*E9),3)-E35 -> 96 | G36: Reset Rate> | H36: =GM_INFO!B126 | I36: =GM_INFO!B126 -> 420 | K36: Reset Rate> | L36: =GM_INFO!D121 | M36: =GM_INFO!D121 -> 2.8 | Q36: =M36*I36*E36 -> 112896
G37: Reset Rate> | H37: =GM_INFO!B122 | K37: Reset Rate> | L37: =GM_INFO!D122 | Q37: 0
Q38: ='Beef Trading Input'!E18*E38 -> 0
C41: Gross Income | Q41: =SUM(Q35:Q38) -> 196896
C46: VARIABLE COSTS
C75: Purchases | K75: Rate
C76: Vealers | E76: ='Beef Trading Input'!E10 -> 200 | I76: Reset Rate> | J76: ='Beef Input'!E17 | K76: ='Beef Input'!E17 -> 785 | M76: head | Q76: =K76*ROUND(E76,0) -> 157000
C77: Transport | E77: ='Beef Trading Input'!E10 -> 200 | I77: Reset Rate> | J77: =GM_INFO!B117 | K77: =GM_INFO!B117 -> 30 | M77: head | Q77: 6000
C89: Veterinary & Medicines
C90: Drench - vealers 1x | E90: =E76 -> 200 | G90: head | I90: Reset Rate> | J90: =GM_INFO!d62 | K90: =GM_INFO!D62 -> 4.1125 | M90: /head | Q90: =K90*ROUND(E90,0) -> 822.5
C91: Ear Tags NLIS | E91: =SUM(E35:E36) -> 196 | G91: head | I91: Reset Rate> | J91: =GM_INFO!d73 | K91: =GM_INFO!D73 -> 4.75 | M91: /tag | Q91: 931
C92: Lice Treatments | E92: =E76 -> 200 | G92: head | I92: Reset Rate> | J92: =GM_INFO!d62 | K92: =GM_INFO!D62 -> 4.1125 | M92: /dose | Q92: 822.5
C93: Vaccine (5 in 1) | E93: =E76 -> 200 | G93: head | I93: Reset Rate> | J93: =GM_INFO!d64 | K93: =GM_INFO!D64 -> 0.76 | M93: /dose | Q93: 152
C117: Sale Costs and other
C119: Insurance | E119: =Q76 -> 157000 | I119: Reset Rate> | J119: =GM_INFO!B107 | K119: =GM_INFO!B107 -> 2 | M119: /$1000 | Q119: =K119*ROUND(E119,0)/1000 -> 314
C120: Water | E120: =E13 -> 960 | G120: dse's | I120: Reset Rate> | J120: =GM_INFO!j79 | K120: =GM_INFO!J79 -> 1.5 | Q120: =K120*ROUND(E120,0) -> 1440
C121: Veh Fuel, R&M | E121: =E13 -> 960 | G121: dse's | I121: Reset Rate> | J121: =GM_INFO!j80 | K121: =GM_INFO!J80 -> 1 | Q121: 960
C122: Other | E122: =E13 -> 960 | G122: dse's | I122: Reset Rate> | J122: =GM_INFO!j81 | K122: =GM_INFO!J81 -> 0.5 | Q122: 480
C123: Transport: | E123: =SUM(E35:E38) -> 196 | G123: head | I123: Reset Rate> | J123: =GM_INFO!d76 | K123: =GM_INFO!D76 -> 30 | M123: /head | Q123: =K123*E123 -> 5880
C125: Commission | I125: Reset Rate> | J125: =GM_INFO!C48 | K125: =GM_INFO!C48 -> 0.06 | Q125: =Q41*K125 -> 11813.76
C126: Levies | I126: Reset Rate> | J126: =GM_INFO!d77 | K126: =GM_INFO!D77 -> 5 | M126: /head | Q126: =K126*SUM(E35:E38) -> 980
C143: Supplementary Feed
C145: Grain
C146: Hay | E146: =(E17*E13)/1000 -> 33.6 | G146: tonne | I146: Reset Rate> | J146: =GM_INFO!d82 | K146: =GM_INFO!D82 -> 260 | M146: /tonne | Q146: =K146*E146 -> 8736
C147: Grain | E147: ='Beef Trading Input'!E27 -> 0 | G147: tonne | I147: Reset Rate> | J147: =GM_INFO!d83 | K147: =GM_INFO!D83 -> 320 | M147: /tonne | Q147: =K147*E147 -> 0
C148: Blocks/ Mineral Mix | E148: =Q7 -> 0 | G148: @ | I148: Reset Rate> | J148: =GM_INFO!d85 | K148: =GM_INFO!D85 -> 5 | M148: /head | Q148: 0
C170: TOTAL VARIABLE COSTS | Q170: =SUM(Q48:Q166) -> 196331.76
C172: GROSS MARGIN TOTAL | Q172: =Q41-Q170 -> 564.24
C174: GROSS MARGIN/DSE | Q174: =Q172/E13 -> 0.58775
C178: GROSS MARGIN/HA | Q178: =Q172/E16 -> 5.8775
B203: =VLOOKUP(r[0]c3&"No Ops",CHOOSE({1,2},tbl_ops[Name]&tbl_ops[Category],INDIRECT("tbl_ops["&var_crop&"]")),2,0)
B204: =VLOOKUP(r[0]c3&"No Ops",CHOOSE({1,2},tbl_ops[Name]&tbl_ops[Category],INDIRECT("tbl_ops["&var_crop&"]")),2,0)
B205: =VLOOKUP(r[0]c3&"No Ops",CHOOSE({1,2},tbl_ops[Name]&tbl_ops[Category],INDIRECT("tbl_ops["&var_crop&"]")),2,0)
B206: =VLOOKUP(r[0]c3&"No Ops",CHOOSE({1,2},tbl_ops[Name]&tbl_ops[Category],INDIRECT("tbl_ops["&var_crop&"]")),2,0)
B208: =VLOOKUP(r[0]c3&var_rain,CHOOSE({1,2},tbl_ops[Name]&tbl_ops[Rainfall],INDIRECT("tbl_ops["&var_crop&"]")),2,0)
B209: =VLOOKUP(r[0]c3&var_rain,CHOOSE({1,2},tbl_ops[Name]&tbl_ops[Rainfall],INDIRECT("tbl_ops["&var_crop&"]")),2,0)
B210: =VLOOKUP(r[0]c3&var_rain,CHOOSE({1,2},tbl_ops[Name]&tbl_ops[Rainfall],INDIRECT("tbl_ops["&var_crop&"]")),2,0)
B211: =VLOOKUP(r[0]c3&var_rain,CHOOSE({1,2},tbl_ops[Name]&tbl_ops[Rainfall],INDIRECT("tbl_ops["&var_crop&"]")),2,0)
C275: GM SENSITIVITY
C276: Gross Margin | E276: Per DSE ($/kg Liveweight sales (yearlings)
G277: 2.4 | I277: 2.6 | K277: 2.8 | M277: 3 | O277: 3.2
E278: 2.4 | G278: =(((((G$277*$I$36)*($E$36/$E$76)-($I$35*$E278))/10-(SUM($Q$77:$Q$166)/$E$13)))) -> -59.78658333 | I278: -55.75458333 | K278: -51.72258333 | M278: -47.69058333 | O278: -43.65858333
E279: 2.5 | G279: -62.58658333 | I279: -58.55458333 | K279: -54.52258333 | M279: -50.49058333 | O279: -46.45858333
C280: $/kg Liveweight Purchases (Vealers) | E280: 2.6 | G280: -65.38658333 | I280: -61.35458333 | K280: -57.32258333 | M280: -53.29058333 | O280: -49.25858333
E281: 2.7 | G281: -68.18658333 | I281: -64.15458333 | K281: -60.12258333 | M281: -56.09058333 | O281: -52.05858333
E282: 2.8 | G282: -70.98658333 | I282: -66.95458333 | K282: -62.92258333 | M282: -58.89058333 | O282: -54.85858333
E283: 2.9 | G283: -73.78658333 | I283: -69.75458333 | K283: -65.72258333 | M283: -61.69058333 | O283: -57.65858333
E284: 3 | G284: -76.58658333 | I284: -72.55458333 | K284: -68.52258333 | M284: -64.49058333 | O284: -60.45858333
E285: 3.1 | G285: -79.38658333 | I285: -75.35458333 | K285: -71.32258333 | M285: -67.29058333 | O285: -63.25858333
E286: 3.2 | G286: -82.18658333 | I286: -78.15458333 | K286: -74.12258333 | M286: -70.09058333 | O286: -66.05858333

Sheet Beef Feed Lot Input (hidden)
C2: ="BEEF FEED LOT GROSS MARGIN - "&TEXT(m_year,"0000") -> BEEF FEED LOT GROSS MARGIN - 2019
C4: GENERAL INFORMATION
C5: This sheet not used. Please enter all data in the Beef Feed Lot sheet

Sheet Beef Feed Lot (hidden)
C1: BEEF FEED LOT
C2: =UPPER(Var_Animal)&" GROSS MARGIN - "&TEXT(m_year,"0000") -> BEEF FEED LOT GROSS MARGIN - 2019
C4: ASSUMPTIONS | E4: ('Local supermarket, 210kg HSCW Carcase, AUSMEAT Fat Score 3-4)
C8: Steer Costs:
C9: Steer purchase | E9: =I9*M9 -> 744 | G9: for | I9: 240 | K9: kg@ | M9: 3.1 | O9: /kg liveweight
C10: Transport In | E10: 30 | G10: /head | M10: Average weight gain | O10: 1.8 | Q10: kg/hd/day
C11: Est. dressing % | E11: 0.05 | M11: Carcase weight specification | O11: =(E11*O12) -> 20.9 | Q11: kg HSCW
M12: Final liveweight in lot | O12: 418 | Q12: kg
M13: Avge liveweight in lot | O13: 329 | Q13: kg
M14: Est. time on feed | O14: 100 | Q14: days
C15: Feed Costs: | M15: Avge daily Feed intake | O15: =O13*0.035 -> 11.515 | Q15: kg
C16: Total feed consumed | G16: =O14*O15 -> 1151.5 | I16: kg | M16: (3.5% of Liveweight)
C17: Feed Wastage | E17: 0.05 | G17: =G16*E17 -> 57.575 | I17: kg | M17: Death Rate | O17: 0.01
C18: Feed cost per tonne | G18: 325 | I18: without premix / supplement
C32: INCOME | Q32: $
C34: Finished steers & 2% poor performers sold at 30 days
E35: 0.97 | G35: % Steer @ | H35: =GM_INFO!B125 | I35: =O11 -> 20.9 | K35: kg carcass @ | L35: =GM_INFO!D120 | M35: 6 | O35: /kg HSCW | Q35: =M35*I35*E35 -> 121.638
E36: =SUM(1,-E35,-E37) -> 0.02 | G36: % Steer @ | H36: =GM_INFO!B126 | I36: 240 | K36: kg liveweight | L36: =GM_INFO!D121 | M36: 2.8 | O36: /kg LVWT | Q36: 13.44
E37: =O17 -> 0.01 | G37: % Steer @ | H37: =GM_INFO!B122 | I37: 0 | L37: =GM_INFO!D122 | M37: 0 | Q37: 0
Q38: ='Beef Feed Lot Input'!E18*E38 -> 0
D39: TOTAL (must be 100%) | E39: =SUM(E35:E38) -> 1
C41: Gross Income | Q41: =SUM(Q35:Q38) -> 135.078
C46: VARIABLE COSTS
C75: Purchases | K75: Rate
C76: Steer purchase | E76: 1 | G76: head | K76: 700 | M76: /head | Q76: =K76*ROUND(E76,0) -> 700
C77: Feeding Out & Feed
C78: Feed purchased | E78: =(E35*(G16+G17)+(E36*(G16+G17)*30/O14)) -> 1180.0572 | G78: kg | K78: =G18 -> 325 | M78: /tonne | Q78: =E78*K78/1000 -> 383.51859
C79: Premix cost per tonne mixed feed | E79: =E78 -> 1180.0572 | G79: kg | I79: Reset Rate> | J79: =GM_INFO!I68 | K79: =GM_INFO!I68 -> 50 | M79: /tonne | Q79: 59.00286
C80: Milling costs + Labour | E80: 1 | I80: Reset Rate> | J80: =GM_INFO!I69 | K80: =GM_INFO!I69 -> 26 | M80: /head | Q80: 26
C81: Water | E81: 1 | I81: Reset Rate> | J81: =GM_INFO!I70 | K81: =GM_INFO!I70 -> 20 | M81: /head | Q81: 20
C89: Veterinary & Medicines
C90: Drench, Dectomax | E90: 1 | G90: head | I90: Reset Rate> | J90: =GM_INFO!d62 | K90: =GM_INFO!I61 -> 4.88 | M90: /head | Q90: =K90*ROUND(E90,0) -> 4.88
C91: Ear Tags | E91: 1 | G91: head | I91: Reset Rate> | J91: =GM_INFO!d73 | K91: =GM_INFO!I62 -> 0.5 | M91: /tag | Q91: 0.5
C92: HGP implant , Synovex | E92: 0 | G92: head | I92: Reset Rate> | J92: =GM_INFO!d62 | K92: =GM_INFO!I63 -> 2.5 | M92: /dose | Q92: 0
C93: Lice Treatments | E93: 0 | G93: head | I93: Reset Rate> | J93: =GM_INFO!d64 | K93: =GM_INFO!I64 -> 0 | M93: /dose | Q93: 0
C94: Vaccine | E94: 1 | G94: head | I94: Reset Rate> | J94: =GM_INFO!d64 | K94: =GM_INFO!I65 -> 1 | M94: /dose | Q94: =K94*ROUND(E94,0) -> 1
C95: Veterinary | E95: 1 | G95: head | I95: Reset Rate> | J95: =GM_INFO!d64 | K95: =GM_INFO!I66 -> 1.25 | M95: /dose | Q95: 1.25
C96: Vitamin injection | E96: 0 | G96: head | I96: Reset Rate> | J96: =GM_INFO!d64 | K96: =GM_INFO!I67 -> 1.5 | M96: /dose | Q96: 0
C117: Sale Costs and other
C119: Insurance | E119: =Q76 -> 700 | I119: Reset Rate> | J119: =GM_INFO!I71 | K119: =GM_INFO!I71 -> 2 | M119: /$1000 | Q119: =K119*ROUND(E119,0)/1000 -> 1.4
C122: Transport In | E122: 1 | G122: dse's | I122: Reset Rate> | J122: =GM_INFO!I72 | K122: =GM_INFO!I72 -> 15 | Q122: =K122*ROUND(E122,0) -> 15
C123: Transport Out | E123: 1 | G123: head | I123: Reset Rate> | J123: =GM_INFO!I73 | K123: =GM_INFO!I73 -> 30 | M123: /head | Q123: =K123*E123 -> 30
C125: Commission | I125: Reset Rate> | J125: =GM_INFO!I74 | K125: =GM_INFO!I74 -> 0.06 | Q125: =Q41*K125 -> 8.10468
C126: Levies | I126: Reset Rate> | J126: =GM_INFO!I75 | K126: =GM_INFO!I75 -> 5 | M126: /head | Q126: =K126*SUM(E35:E38) -> 5
C143: Accreditation costs on a 600 hd/year throughput | Q143: 1
C170: TOTAL VARIABLE COSTS | Q170: =SUM(Q48:Q166) -> 1256.65613
C172: GROSS MARGIN PER HEAD | Q172: =Q41-Q170 -> -1121.57813
C174: Current interest rate | E174: 0.06
C175: Interest on cattle | K175: =K76*E174*O14/365 -> 11.50684932
C176: Interest on feed | K176: =Q78*E174*O14/365 -> 6.304415178
C178: GROSS MARGIN AFTER INTEREST | Q178: =SUM(Q172,-K175,-K176) -> -1139.389394
C180: Break even sale price :-- c/kg on purchase price, costs & interest | Q180: =((Q170+K175+K176-Q36)/(E35*I35))*100 -> 6220.230822
C182: Break even purchase price :-- c/kg on sale price & costs | Q182: =(-K176-K175+Q35-SUM(Q78:Q166))/I9*100 -> -188.6789144
B203: =VLOOKUP(r[0]c3&"No Ops",CHOOSE({1,2},tbl_ops[Name]&tbl_ops[Category],INDIRECT("tbl_ops["&var_crop&"]")),2,0)
B204: =VLOOKUP(r[0]c3&"No Ops",CHOOSE({1,2},tbl_ops[Name]&tbl_ops[Category],INDIRECT("tbl_ops["&var_crop&"]")),2,0)
B205: =VLOOKUP(r[0]c3&"No Ops",CHOOSE({1,2},tbl_ops[Name]&tbl_ops[Category],INDIRECT("tbl_ops["&var_crop&"]")),2,0)
B206: =VLOOKUP(r[0]c3&"No Ops",CHOOSE({1,2},tbl_ops[Name]&tbl_ops[Category],INDIRECT("tbl_ops["&var_crop&"]")),2,0)
B208: =VLOOKUP(r[0]c3&var_rain,CHOOSE({1,2},tbl_ops[Name]&tbl_ops[Rainfall],INDIRECT("tbl_ops["&var_crop&"]")),2,0)
B209: =VLOOKUP(r[0]c3&var_rain,CHOOSE({1,2},tbl_ops[Name]&tbl_ops[Rainfall],INDIRECT("tbl_ops["&var_crop&"]")),2,0)
B210: =VLOOKUP(r[0]c3&var_rain,CHOOSE({1,2},tbl_ops[Name]&tbl_ops[Rainfall],INDIRECT("tbl_ops["&var_crop&"]")),2,0)
B211: =VLOOKUP(r[0]c3&var_rain,CHOOSE({1,2},tbl_ops[Name]&tbl_ops[Rainfall],INDIRECT("tbl_ops["&var_crop&"]")),2,0)
C275: GM SENSITIVITY
C276: Gross Margin | E276: Per head ($/kg HSCW Carcase)
G277: 5 | H277: 5.5 | I277: 5.5 | J277: 6.5 | K277: 6 | M277: 6.5 | O277: 7
E278: 285 | G278: =($E$35*$I$35*G$277)+($E$36*$I$36*$M$36)-$Q$170+$Q$78-(($E$78*$E278)/1000) -> -1094.648842 | H278: -1084.512342 | I278: -1084.512342 | J278: -1064.239342 | K278: -1074.375842 | L278: -1196.013842 | M278: -1064.239342 | N278: -1196.013842 | O278: -1054.102842
E279: 295 | G279: -1106.449414 | H279: -1096.312914 | I279: -1096.312914 | J279: -1076.039914 | K279: -1086.176414 | L279: -1207.814414 | M279: -1076.039914 | N279: -1207.814414 | O279: -1065.903414
C280: Feed Cost/tonne | E280: 305 | G280: -1118.249986 | H280: -1108.113486 | I280: -1108.113486 | J280: -1087.840486 | K280: -1097.976986 | L280: -1219.614986 | M280: -1087.840486 | N280: -1219.614986 | O280: -1077.703986
E281: 315 | G281: -1130.050558 | H281: -1119.914058 | I281: -1119.914058 | J281: -1099.641058 | K281: -1109.777558 | L281: -1231.415558 | M281: -1099.641058 | N281: -1231.415558 | O281: -1089.504558
E282: 325 | G282: -1141.85113 | H282: -1131.71463 | I282: -1131.71463 | J282: -1111.44163 | K282: -1121.57813 | L282: -1243.21613 | M282: -1111.44163 | N282: -1243.21613 | O282: -1101.30513
E283: 335 | G283: -1153.651702 | H283: -1143.515202 | I283: -1143.515202 | J283: -1123.242202 | K283: -1133.378702 | L283: -1255.016702 | M283: -1123.242202 | N283: -1255.016702 | O283: -1113.105702
E284: 345 | G284: -1165.452274 | H284: -1155.315774 | I284: -1155.315774 | J284: -1135.042774 | K284: -1145.179274 | L284: -1266.817274 | M284: -1135.042774 | N284: -1266.817274 | O284: -1124.906274
E285: 355 | G285: -1177.252846 | H285: -1167.116346 | I285: -1167.116346 | J285: -1146.843346 | K285: -1156.979846 | L285: -1278.617846 | M285: -1146.843346 | N285: -1278.617846 | O285: -1136.706846
E286: 365 | G286: -1189.053418 | H286: -1178.916918 | I286: -1178.916918 | J286: -1158.643918 | K286: -1168.780418 | L286: -1290.418418 | M286: -1158.643918 | N286: -1290.418418 | O286: -1148.507418
